Workbook

Sheet questions (hidden)
A1: Question number | B1: Datasets affected | C1: Who with? | D1: Ongoing? | E1: Question | F1: Answer | G1: Further details? | H1: Further action necessary?
A2: 1 | B2: Tables and charts | C2: FES remit team | D2: N | E2: What footnotes are needed? | F2: TBD in final publication. Covered by issue 11.
A3: 2 | B3: T2, C1, C2 | C3: Sarah Pearce | D3: N | E3: Provider types: HEI, NCS, DaDa. Are these ok to be included in our in-year reporting? | F3: Yes we include these now. Sarah P to explain anything needed in 'notes' or 'quality report'
A4: 3 | B4: P1, T2a | C4: Alan Marchant/Sarah Pearce | D4: Y | E4: Who finds out if prison inspections have been published? | F4: Caroline Prandas has a list but it's sensitive. Her manager Lisa Parkes is keen not to share parts of this however has agreed that we should be able to access historical information where necessary. Alan Marchant to finalise this. | G4: Ongoing - just securing agreement from ARC to get data. | H4: Liaise with ARC to get agreement to share data. Alan Marchant is looking into how best to do this. Suggest Sarah P liaise directly with him.
A5: 4 | B5: D1P | C5: FES remit team | D5: Y | E5: Prisons data to be finalised by FES remit team when the time comes. Current version is just a placeholder.
A6: 5 | B6: C1 | C6: Lucy Lo.Vel/Alan Marchant | D6: Y | E6: Need a new datasource for Chart 1 to include all provider types. Is this possible or are there data quality issues in the way? | F6: We now also have a plan B in case this is not possible. | G6: Now have a dataset, but need to check data quality and any changes since last time. Charlie to meet Sarah to talk through these issues.
A7: 6 | B7: All | C7: Systems team | D7: N? | E7: Provider types and groups to fix. | G7: Almost done now - just change 16-19 Academy to '16-19 academy' and 16-19 Free school to '16-19 free school' and the same for sponsor leds THEN also change groupings to plural, THEN change capitals in National Careers Service contractors | H7: Have done that but not pluralised provider groups. Suggest leave for now as complicated!
A8: 7 | B8: D1,D2 | C8: Charlie | D8: ?N | E8: Ensure consistency of column headings Between D1 and D2 (and formatting) | F8: Think this is now fine
A9: 8 | B9: Publication | C9: Charlie | D9: Y/N | E9: Check how to publish underlying datasets - in with Charts and Tables or separately? | F9: Schools are publishing the data sets in their charts file, so I will too. | G9: There needs to be clear instructions about what gets deleted before it is published on the web (taking into account that we don't want to upset the automatic pivot and charts) and then instructions on locking it down, but allowing users to still copy the data. | H9: Charlie - is this in hand as part of the development work? (see comment left)
A10: 9 | B10: All | C10: Charlie | D10: ?N | E10: Respond to Sarah's email of 20/03 and amend QA logs etc as necessary. | F10: Charlie has responded - to confirm no outstanding actions.
A11: 10 | B11: Notes tab | C11: Sarah Pearce | D11: Y | E11: Revisit 'notes' tab in light of requirement for new 'quality report' and the fact that SoN is no longer comparable. | G11: I'll supply this in May, once we have consulted with the public and I can finalise the text.
A12: 11 | B12: FES provider groups | C12: Sarah Pearce | D12: ?N | E12: Sarah to tweak footnotes and column headings in v4. | H12: Current v6 has new footnotes. Consider need for final tweaks.
A13: 12 | B13: Dropdowns | C13: Charlie | D13: N? | E13: Change dropdown menus after Sarah completes Action 11 | F13: Believe dropdown menus now ready
A14: 13 | B14: Ordering of tabs | C14: Charlie | D14: N | E14: Change spec document after Sarah has reordered | F14: Sarah to talk to James twist and decide on what works best. Then Charlie to make changes. | G14: I have checked with James, he liked my ideas for tab names, but no confirmation. I will make tab names standard with my products. Schools order their tabs as table, followed by relevant charts, I have done the same in here. | H14: I've changed the table and chart tab names in this file - the contents tab will need updating. The orange tab names will also need updating - we can't publish something with SoN written on it, that is an internally used term only. Charlie has updated.
A15: 14 | B15: Charts | C15: Charlie | D15: N | E15: Change 0 to blank and remove background colour from chart lables | F15: Charlie completed in FES v5
A16: 15 | B16: SoN charts/tables | C16: Charlie | D16: N | E16: Remove provision judgements from dropdowns | F16: Removed
A17: 16 | B17: All | C17: Charlie/Sarah | D17: N | E17: Should footnotes have full stops at the end of them? Check D&I guidance (Sam Grant) | F17: Footnotes should have full stops at the end (James Twist confirmed). | H17: Footnotes now all full-stopped.
A18: 17 | B18: All | C18: Charlie/Sarah | D18: N | E18: Should note under table be 'Ofsted inspections' or 'Ofsted inspection data'? And size of font. Check D&I guidance (Sam Grant) | F18: Ofsted inspection data (8pt) | H18: Changed in this version.
A19: 17 | B19: Charts | C19: Charlie Ogilvie | D19: Y | E19: The colours of the charts need to match the new D&I guidance | F19: Charlie asked Laura for colours. Received colour scheme for normal judgements (and made changes) but awaiting steer on improved/declined/same.
A20: 18 | B20: 1H | C20: Sarah Pearce | D20: N | E20: Partial reinspections - do these count as full inspections and can they have a full OE judgement or not? | F20: These do NOT count as full inspections! (for the moment…)
A21: 19 | B21: 1H | C21: Sarah Pearce | D21: Y | E21: What to do about data mismatches? | G21: Charlie sent in an email 31 March 2016.
A22: 20 | B22: 1H | C22: Austen/Sarah | D22: Y/N | E22: Decide on a historical dataset to use for the in-year historical charts. | F22: I need a proper historical data set that pulls out all the data, which is what you have created me. The only problem is that provider name, type and group may not reflect what that provider was at the time of inspection. Therefore as a one off exercise, I will correct these three columns to match the hitoric data once this product is supplied to me (as Cahrlie you said once this is run once, it wouldn't change). For the current year, it is important that the row at the top of the chart pulls out data that is as at the time of inspection (not using the SoN methodology that takes the provider's current deatils) - Charlie can you confirm if this logic is correct?
A23: 21 | B23: 1H | C23: Charlie | D23: N | E23: Charlie to send Sarah details of 1H and checks done on it. | G23: Sent in an email 31 March 2016.
A24: 21 | B24: 1P | C24: Sarah Pearce | D24: Y | E24: What fields (if any) should be published for prisons?
A25: 22 | B25: 2 | C25: Systems team | D25: Y | E25: Remove provision judgements from SoN dataset

Sheet Cover
B9: Further education and skills inspections and outcomes
B11: This release contains:
B12: ="• final data for inspections conducted between "&Inspections_From&" and "&Inspections_To -> • final data for inspections conducted between 1 September 2015 and 29 February 2016
B13: ="• final data for the most recent inspection outcomes as at "&Inspections_To -> • final data for the most recent inspection outcomes as at 29 February 2016
B15: Published on: "&Published_Date | D15: 2016-06-30
B16: Publication frequency: Twice a year. Inspections up to the end of February are published in June each year, inspections up to the end of August are published in November/December each year.
B17: Responsible Statistician: Sarah Pearce, 03000 130 632 or | K17: Sarah.Pearce@ofsted.gov.uk
B19: © Crown copyright You may use and re-use this information (not including logos) free of charge in any format or medium, under the terms of the Open Government Licence.
B20: To view this licence, visit: | E20: http://www.nationalarchives.gov.uk/doc/open-government-licence/
B21: Or write to the Information Policy Team, The National Archives, Kew, London, TW9 4DU. Or email: | M21: psi@nationalarchives.gsi.gov.uk

Sheet Notes
B2: Notes
B4: The new common inspection framework was introduced on 1 September 2015 and was designed to provide greater coherence across different providers that cater for similar age ranges. It sets out the principles that apply to inspection and the main judgements that inspectors make when conducting inspections of maintained schools, academies, non-association independent schools, further education and skills providers and registered early years settings. The framework can be found here:
B5: https://www.gov.uk/government/publications/common-inspection-framework-education-skills-and-early-years-from-september-2015
B7: The framework is accompanied by an inspection handbook for each of the four remits. The handbooks set out how each of the inspection judgements will be made and reflects the needs and expectations of different phases and the differences between various age groups. The further education and skills inspection handbook can be found here:
B8: https://www.gov.uk/government/publications/further-education-and-skills-inspection-handbook-from-september-2015
B10: Under the new framework previously good providers can receive a short inspection, rather than a full inspection. Short inspections can either confirm that the provider is still good overall or the lead inspector can choose to convert the inspection to a full inspection where:
B11: § There is insufficient evidence to confirm that the provider remains good;
B12: § There are concerns that there is evidence that the provider may no longer be good (which may include concerns about safeguarding);
B13: § Or if there is sufficient evidence of improved performance to suggest that the provider may be judged outstanding.
B14: A decision to convert the short inspection does not predetermine the outcome of the full inspection. At the end of the full inspection a provider could remain good, improve to outstanding or decline to requires improvement or inadequate.
B16: In-year reporting
B17: This refers to inspections that have been conducted within a reporting year, between 1 September and 31 August. The tables and charts count the number of inspections that have been conducted during the reporting year. If a provider has been inspected twice, they will appear twice in the underlying data.
B19: Most recent inspection outcomes
B20: This refers to the most recent (or latest) full inspection outcomes for all open and funded providers at one point in time, regardless of when the inspection took place. The tables and charts count the number of providers that have been inspected. Each provider can only appear once in the underlying data. If a provider is open and funded but has not yet been inspected then they do not appear in this measure, but are included within the underlying data.
B22: Provider types and groups
B23: Provider type | C23: Provider group
B24: General further education college | C24: Colleges | D24: All further education and skills providers
B25: Sixth form college
B26: Specialist further education college
B27: Independent specialist college | C27: Independent specialist colleges
B28: Independent learning provider | C28: Independent learning providers (including employer providers)
B29: Employer provider
B30: Local authority provider | C30: Community learning and skills providers
B31: Not for profit organisation
B32: Specialist designated institution
B33: 16-19 academy converter | C33: 16-19 academies
B34: 16-19 academy sponsor led
B35: 16-19 free school
B36: Dance and drama college | C36: Dance and drama colleges
B37: Higher education institution* | C37: Higher education institutions
B38: National Careers Service contractor | C38: National Careers Service contractors
B39: Prison and young offender institution | C39: Prison and young offender institutions
B40: *Further education being delivered in higher education institutions
B42: Methodology and quality report
B43: A methodology and quality report for these statistics can be found here:
B44: https://www.gov.uk/government/statistics/further-education-and-skills-inspection-and-outcomes-as-at-29-february-2016
B46: It contains a range of different information about the statistics which includes the methodology used to aggregate the statistics, the accuracy of the data and descriptions of the provider types.
B48: Notes specific to this release
B50: There have been several changes to the ‘further education and skills inspections and outcomes’ Official Statistics since they were last published in December 2015.
B51: There have been two types of changes. The first set of changes were essential to accommodate the new common inspection framework, implemented by Ofsted on 1 September 2015, and changes resulting from a database migration.
B52: The second set of changes are open for consultation until 29 July 2016 and include a possible change in the methodology for aggregating the ‘all further education and skills providers’ figure, along with excluding providers that have ceased to be funded or closed from the statistics as at 31 August.
B53: Data within these statistics have been labelled as ‘final’, as the outcomes from all inspections conducted between 1 September 2015 and 29 February 2016 have been included. The way that the data has been aggregated is provisional and open for consultation.
B54: We are inviting users to explore the changes that have been made and to feedback on the changes that are open for consultation. Depending on the results of this consultation, the statistics within this document could be revised and republished.
B55: The consultation document can be found here:
B56: https://www.gov.uk/government/statistics/further-education-and-skills-inspection-and-outcomes-as-at-29-february-2016

Sheet Contents
B2: Contents
B4: Tables
B5: ='T1 In-year inspections'!B2 -> Table 1: Number of further education and skills inspections this reporting year, by inspection type
B6: ='T2 In-year short inspections'!B2 -> Table 2: Short inspections this reporting year
B7: ='T3 In-year outcomes'!B2 -> Table 3: Further education and skills full inspection outcomes this reporting year, by judgement and provider type
B8: ='T3a Prison outcomes'!B2 -> Table 3a: Inspection outcomes of prison and young offender institutions, by judgement
B9: ='T4 Most recent outcomes'!B2 -> Table 4: Inspection outcomes for further education and skills providers at their most recent inspection
B11: Charts
B12: ='C1 In-year judgement outcomes'!B2 -> Chart 1: Further education and skills full inspection outcomes this reporting year, by judgement
B13: ='C2 In-year provider outcomes'!B2 -> Chart 2: Further education and skills full and short inspection outcomes this reporting year, by overall effectiveness and provider group
B14: ='C3 In-year outcomes over time'!B2 -> Chart 3: Further education and skills full and short inspection outcomes, by overall effectiveness and reporting year
B15: ='C4 In-year grade 3 outcomes'!B2 -> Chart 4: Proportion of previously grade 3 further education and skills providers that improved, declined or stayed the same at their next full inspection
B16: ='C5 Most recent outcomes'!B2 -> Chart 5: Overall effectiveness of further education and skills providers at their most recent inspection
B17: ='C6 Most recent over time'!B2 -> Chart 6: Most recent overall effectiveness of further education and skills providers, over time
B19: Underlying data
B20: ='D1 In-year inspection data'!A1 -> Data 1: In-year inspection data
B21: ='D2 In-year historical data'!A1 -> Data 2: Historical in-year full inspection outcomes
B22: ='D3 Most recent inspection data'!A1 -> Data 3: Most recent full inspection outcomes
B26: Key
B27: Blue tabs: T1 to T4 are tables
B28: Orange tabs: C1 to C6 are charts
B29: Green tabs: D1 to D3 are the underlying provider level data

Sheet VLOOKUPS (hidden)
A1: Name | B1: Event_Type_Grouping | C1: Table 1 grouping
A2: 14-16 Monitoring visit | B2: FES - Monitoring Inspection/Other | C2: Monitoring
A3: 16-19 academy - Full | B3: FES - Full Inspection | C3: Full
A4: 16-19 academy - Improvement visit | B4: FES - Monitoring Inspection/Other | C4: Monitoring
A5: 16-19 academy - Monitoring visit | B5: FES - Monitoring Inspection/Other | C5: Monitoring
A6: 16-19 academy - Reinspection | B6: FES - Full Inspection | C6: Reinspection
A7: 16-19 academy - Reinspection monitoring visit | B7: FES - Monitoring Inspection/Other | C7: Reinspection monitoring
A8: 16-19 academy - Requires Improvement | B8: FES - Full Inspection | C8: Full
A9: 16-19 academy - Requires Improvement -second inspection | B9: FES - Full Inspection | C9: Full
A10: 16-19 academy - Short | B10: FES - Short inspection | C10: Short
A11: ACL - Full | B11: FES - Full Inspection | C11: Full
A12: ACL - Reinspection | B12: FES - Full Inspection | C12: Reinspection
A13: ACL - Requires improvement | B13: FES - Full Inspection | C13: Full
A14: ACL - Requires improvement - second inspection | B14: FES - Full Inspection | C14: Full
A15: Community Learning and Skills - Local authority - Full | B15: FES - Full Inspection | C15: Full
A16: Community Learning and Skills - Local authority - Improvement visit | B16: FES - Monitoring Inspection/Other | C16: Monitoring
A17: Community Learning and Skills - Local authority - Monitoring visit | B17: FES - Monitoring Inspection/Other | C17: Monitoring
A18: Community Learning and Skills - Local authority - Reinspection | B18: FES - Full Inspection | C18: Reinspection
A19: Community Learning and Skills - Local authority - Reinspection monitoring visit | B19: FES - Monitoring Inspection/Other | C19: Reinspection monitoring
A20: Community Learning and Skills - Local authority - Requires Improvement | B20: FES - Full Inspection | C20: Full
A21: Community Learning and Skills - Local authority - Requires Improvement - second inspection | B21: FES - Full Inspection | C21: Full
A22: Community Learning and Skills - Local authority - Short | B22: FES - Short inspection | C22: Short
A23: Community Learning and Skills - Not for profit organisation - Full | B23: FES - Full Inspection | C23: Full
A24: Community Learning and Skills - Not for profit organisation - Improvement visit | B24: FES - Monitoring Inspection/Other | C24: Monitoring
A25: Community Learning and Skills - Not for profit organisation - Monitoring visit | B25: FES - Monitoring Inspection/Other | C25: Monitoring
A26: Community Learning and Skills - Not for profit organisation - Reinspection | B26: FES - Full Inspection | C26: Reinspection
A27: Community Learning and Skills - Not for profit organisation - Reinspection monitoring visit | B27: FES - Monitoring Inspection/Other | C27: Reinspection monitoring
A28: Community Learning and Skills - Not for profit organisation - Requires Improvement | B28: FES - Full Inspection | C28: Full
A29: Community Learning and Skills - Not for profit organisation - Requires Improvement - second inspection | B29: FES - Full Inspection | C29: Full
A30: Community Learning and Skills - Not for profit organisation - Short | B30: FES - Short inspection | C30: Short
A31: Community Learning and Skills - Short | B31: FES - Short inspection | C31: Short
A32: Community Learning and Skills - Specialist designated institution - Full | B32: FES - Full Inspection | C32: Full
A33: Community Learning and Skills - Specialist designated institution - Improvement visit | B33: FES - Monitoring Inspection/Other | C33: Monitoring
A34: Community Learning and Skills - Specialist designated institution - Monitoring visit | B34: FES - Monitoring Inspection/Other | C34: Monitoring
A35: Community Learning and Skills - Specialist designated institution - Reinspection | B35: FES - Full Inspection | C35: Reinspection
A36: Community Learning and Skills - Specialist designated institution - Reinspection monitoring visit | B36: FES - Monitoring Inspection/Other | C36: Reinspection monitoring
A37: Community Learning and Skills - Specialist designated institution - Requires Improvement | B37: FES - Full Inspection | C37: Full
A38: Community Learning and Skills - Specialist designated institution - Requires Improvement - second inspection | B38: FES - Full Inspection | C38: Full
A39: Community Learning and Skills - Specialist designated institution - Short | B39: FES - Short inspection | C39: Short
A40: Dance and drama - Full | B40: FES - Full Inspection | C40: Full
A41: Dance and drama - Improvement visit | B41: FES - Monitoring Inspection/Other | C41: Monitoring
A42: Dance and drama - Monitoring visit | B42: FES - Monitoring Inspection/Other | C42: Monitoring
A43: Dance and drama - Reinspection | B43: FES - Full Inspection | C43: Reinspection
A44: Dance and drama - Reinspection monitoring visit | B44: FES - Monitoring Inspection/Other | C44: Reinspection monitoring
A45: Dance and drama - Requires Improvement | B45: FES - Full Inspection | C45: Full
A46: Dance and drama - Requires Improvement - second inspection | B46: FES - Full Inspection | C46: Full
A47: Dance and drama - Short | B47: FES - Short inspection | C47: Short
A48: Defence Recovery Capability - Comissioned work | B48: FES - Full Inspection | C48: Full
A49: Employer - Full | B49: FES - Full Inspection | C49: Full
A50: Employer - Improvement visit | B50: FES - Monitoring Inspection/Other | C50: Monitoring
A51: Employer - Monitoring visit | B51: FES - Monitoring Inspection/Other | C51: Monitoring
A52: Employer - Reinspection | B52: FES - Full Inspection | C52: Reinspection
A53: Employer - Reinspection monitoring visit | B53: FES - Monitoring Inspection/Other | C53: Reinspection monitoring
A54: Employer - Requires improvement | B54: FES - Full Inspection | C54: Full
A55: Employer - Requires improvement - second inspection | B55: FES - Full Inspection | C55: Full
A56: Employer - Short | B56: FES - Short inspection | C56: Short
A57: FE College - Full | B57: FES - Full Inspection | C57: Full
A58: FE College - Improvement visit | B58: FES - Monitoring Inspection/Other | C58: Monitoring
A59: FE College - Monitoring visit | B59: FES - Monitoring Inspection/Other | C59: Monitoring
A60: FE College - Reinspection | B60: FES - Full Inspection | C60: Reinspection
A61: FE College - Reinspection monitoring visit | B61: FES - Monitoring Inspection/Other | C61: Reinspection monitoring
A62: FE College - Requires improvement | B62: FES - Full Inspection | C62: Full
A63: FE College - Requires improvement - second inspection | B63: FES - Full Inspection | C63: Full
A64: FE College - Short | B64: FES - Short inspection | C64: Short
A65: FE in HE - Full | B65: FES - Full Inspection | C65: Full
A66: FE in HE - Improvement visit | B66: FES - Monitoring Inspection/Other | C66: Monitoring
A67: FE in HE - Monitoring visit | B67: FES - Monitoring Inspection/Other | C67: Monitoring
A68: FE in HE - Reinspection | B68: FES - Full Inspection | C68: Reinspection
A69: FE in HE - Reinspection monitoring visit | B69: FES - Monitoring Inspection/Other | C69: Reinspection monitoring
A70: FE in HE - Requires improvement | B70: FES - Full Inspection | C70: Full
A71: FE in HE - Requires improvement - second inspection | B71: FES - Full Inspection | C71: Full
A72: FE in HE - Short | B72: FES - Short inspection | C72: Short
A73: Independent Learning Provider (National) - Full | B73: FES - Full Inspection | C73: Full
A74: Independent Learning Provider (National) - Improvement visit | B74: FES - Monitoring Inspection/Other | C74: Monitoring
A75: Independent Learning Provider (National) - Monitoring visit | B75: FES - Monitoring Inspection/Other | C75: Monitoring
A76: Independent Learning Provider (National) - Reinspection | B76: FES - Full Inspection | C76: Reinspection
A77: Independent Learning Provider (National) - Reinspection monitoring visit | B77: FES - Monitoring Inspection/Other | C77: Reinspection monitoring
A78: Independent Learning Provider (National) - Requires improvement | B78: FES - Full Inspection | C78: Full
A79: Independent Learning Provider (National) - Requires improvement - second inspection | B79: FES - Full Inspection | C79: Full
A80: Independent Learning Provider (National) - Short | B80: FES - Short inspection | C80: Short
A81: Independent Learning Provider (Regional) - Full | B81: FES - Full Inspection | C81: Full
A82: Independent Learning Provider (Regional) - Improvement visit | B82: FES - Monitoring Inspection/Other | C82: Monitoring
A83: Independent Learning Provider (Regional) - Monitoring visit | B83: FES - Monitoring Inspection/Other | C83: Monitoring
A84: Independent Learning Provider (Regional) - Reinspection | B84: FES - Full Inspection | C84: Reinspection
A85: Independent Learning Provider (Regional) - Reinspection monitoring visit | B85: FES - Monitoring Inspection/Other | C85: Reinspection monitoring
A86: Independent Learning Provider (Regional) - Requires Improvement | B86: FES - Full Inspection | C86: Full
A87: Independent Learning Provider (Regional) - Requires Improvement - second inspection | B87: FES - Full Inspection | C87: Full
A88: Independent Learning Provider (Regional) - Short | B88: FES - Short inspection | C88: Short
A89: ISC - Full | B89: FES - Full Inspection | C89: Full
A90: ISC - Improvement visit | B90: FES - Monitoring Inspection/Other | C90: Monitoring
A91: ISC - Monitoring visit | B91: FES - Monitoring Inspection/Other | C91: Monitoring
A92: ISC - Reinspection | B92: FES - Full Inspection | C92: Reinspection
A93: ISC - Reinspection monitoring visit | B93: FES - Monitoring Inspection/Other | C93: Reinspection monitoring
A94: ISC - Requires improvement | B94: FES - Full Inspection | C94: Full
A95: ISC - Requires improvement - second inspection | B95: FES - Full Inspection | C95: Full
A96: ISC - Short | B96: FES - Short inspection | C96: Short
A97: National Careers Service - Full | B97: FES - Full Inspection | C97: Full
A98: National Careers Service - Improvement visit | B98: FES - Monitoring Inspection/Other | C98: Monitoring
A99: National Careers Service - Monitoring visit | B99: FES - Monitoring Inspection/Other | C99: Monitoring
A100: National Careers Service - Reinspection | B100: FES - Full Inspection | C100: Reinspection
A101: National Careers Service - Reinspection monitoring visit | B101: FES - Monitoring Inspection/Other | C101: Reinspection monitoring
A102: National Careers Service - Requires Improvement | B102: FES - Full Inspection | C102: Full
A103: National Careers Service - Requires Improvement - second inspection | B103: FES - Full Inspection | C103: Full
A104: National Careers Service - Short | B104: FES - Short inspection | C104: Short
A105: Probation - Full announced | B105: FES - Full Inspection | C105: Full
A106: Probation - Full unannounced | B106: FES - Full Inspection | C106: Full
A107: SFC - Full | B107: FES - Full Inspection | C107: Full
A108: SFC - Improvement visit | B108: FES - Monitoring Inspection/Other | C108: Monitoring
A109: SFC - Monitoring visit | B109: FES - Monitoring Inspection/Other | C109: Monitoring
A110: SFC - Reinspection | B110: FES - Full Inspection | C110: Reinspection
A111: SFC - Reinspection monitoring visit | B111: FES - Monitoring Inspection/Other | C111: Reinspection monitoring
A112: SFC - Requires improvement | B112: FES - Full Inspection | C112: Full
A113: SFC - Requires improvement - second inspection | B113: FES - Full Inspection | C113: Full
A114: SFC - Short | B114: FES - Short inspection | C114: Short
A115: Training Establishments - Commissioned Work | B115: FES - Full Inspection | C115: Full
A116: WBL (national) - Full | B116: FES - Full Inspection | C116: Full
A117: WBL (national) - Reinspection | B117: FES - Full Inspection | C117: Reinspection

Sheet Dates1 (hidden)
A3: Inspections from | E3: 1 September 2015
A4: Inspections to | E4: 29 February 2016
A5: Inspections published by: | E5: 31 March 2016
A6: Provider information effective as at | E6: As at 31 March 2016
A7: Reporting period | E7: =Inspections_From&" to "&Inspections_To -> 1 September 2015 to 29 February 2016
A8: Reporting period ("between…") | E8: =Inspections_From&" and "&Inspections_To -> 1 September 2015 and 29 February 2016
A12: Historic reporting dates
A13: Start | B13: End | D13: Year bracket
A14: 1 September 2015 | B14: 29 February 2016 | D14: =A14&" - "&B14 -> 1 September 2015 - 29 February 2016
A15: 1 September 2014 | B15: 31 August 2015 | D15: =A15&" - "&B15 -> 1 September 2014 - 31 August 2015
A16: 1 September 2013 | B16: 31 August 2014 | D16: 1 September 2013 - 31 August 2014
A17: 1 September 2012 | B17: 31 August 2013 | D17: 1 September 2012 - 31 August 2013
A18: 1 September 2011 | B18: 31 August 2012 | D18: 1 September 2011 - 31 August 2012
A19: 1 September 2010 | B19: 31 August 2011 | D19: 1 September 2010 - 31 August 2011
A21: 2015-09-01 | B21: 2016-02-29
A22: 2014-09-01 | B22: 2015-08-31
A23: 2013-09-01 | B23: 2014-08-31
A24: 2012-09-01 | B24: 2013-08-31
A25: 2011-09-01 | B25: 2012-08-31
A26: 2010-09-01 | B26: 2011-08-31

Sheet T1 In-year inspections
B2: Table 1: Number of further education and skills inspections this reporting year, by inspection type
B3: =Reporting_Period -> 1 September 2015 to 29 February 2016
E4: College | F4: Independent specialist college | G4: Independent learning provider | H4: Community learning and skills provider | I4: 16-19 Academy | J4: Dance and drama college | K4: Higher education institution | L4: National Careers Service Contractor
D5: Number of inspections
B6: Inspection activity (full inspections) | D6: All further education and skills providers1 | E6: Colleges2 | F6: Independent specialist colleges | G6: Independent learning providers3 | H6: Community learning and skills providers4 | I6: 16-19 academies5 | J6: Dance and drama colleges | K6: Higher education institutions6 | L6: National Careers Service contractors | N6: Prison and young offender institutions7
A7: Full | B7: Full inspections | D7: =IFERROR(GETPIVOTDATA("URN",Pivots!$A$87,"Inspection type grouping","Full","Event type grouping","FES - Full Inspection"),0) -> 141 | E7: =IFERROR(GETPIVOTDATA("URN",Pivots!$A$87,"Provider Group",E$4,"Inspection type grouping","Full","Event type grouping","FES - Full Inspection"),0) -> 40 | F7: =IFERROR(GETPIVOTDATA("URN",Pivots!$A$87,"Provider Group",F$4,"Inspection type grouping","Full","Event type grouping","FES - Full Inspection"),0) -> 9 | G7: =IFERROR(GETPIVOTDATA("URN",Pivots!$A$87,"Provider Group",G$4,"Inspection type grouping","Full","Event type grouping","FES - Full Inspection"),0) -> 52 | H7: =IFERROR(GETPIVOTDATA("URN",Pivots!$A$87,"Provider Group",H$4,"Inspection type grouping","Full","Event type grouping","FES - Full Inspection"),0) -> 22 | I7: =IFERROR(GETPIVOTDATA("URN",Pivots!$A$87,"Provider Group",I$4,"Inspection type grouping","Full","Event type grouping","FES - Full Inspection"),0) -> 2 | J7: =IFERROR(GETPIVOTDATA("URN",Pivots!$A$87,"Provider Group",J$4,"Inspection type grouping","Full","Event type grouping","FES - Full Inspection"),0) -> 16 | K7: =IFERROR(GETPIVOTDATA("URN",Pivots!$A$87,"Provider Group",K$4,"Inspection type grouping","Full","Event type grouping","FES - Full Inspection"),0) -> 0 | L7: =IFERROR(GETPIVOTDATA("URN",Pivots!$A$87,"Provider Group",L$4,"Inspection type grouping","Full","Event type grouping","FES - Full Inspection"),0) -> 0 | N7: 22
A8: Reinspection | B8: Re-inspections | D8: =IFERROR(GETPIVOTDATA("URN",Pivots!$A$87,"Inspection type grouping","Reinspection","Event type grouping","FES - Full Inspection"),0) -> 6 | E8: =IFERROR(GETPIVOTDATA("URN",Pivots!$A$87,"Provider Group",E$4,"Inspection type grouping","Reinspection","Event type grouping","FES - Full Inspection"),0) -> 4 | F8: =IFERROR(GETPIVOTDATA("URN",Pivots!$A$87,"Provider Group",F$4,"Inspection type grouping","Reinspection","Event type grouping","FES - Full Inspection"),0) -> 0 | G8: =IFERROR(GETPIVOTDATA("URN",Pivots!$A$87,"Provider Group",G$4,"Inspection type grouping","Reinspection","Event type grouping","FES - Full Inspection"),0) -> 0 | H8: =IFERROR(GETPIVOTDATA("URN",Pivots!$A$87,"Provider Group",H$4,"Inspection type grouping","Reinspection","Event type grouping","FES - Full Inspection"),0) -> 2 | I8: =IFERROR(GETPIVOTDATA("URN",Pivots!$A$87,"Provider Group",I$4,"Inspection type grouping","Reinspection","Event type grouping","FES - Full Inspection"),0) -> 0 | J8: =IFERROR(GETPIVOTDATA("URN",Pivots!$A$87,"Provider Group",J$4,"Inspection type grouping","Reinspection","Event type grouping","FES - Full Inspection"),0) -> 0 | K8: =IFERROR(GETPIVOTDATA("URN",Pivots!$A$87,"Provider Group",K$4,"Inspection type grouping","Reinspection","Event type grouping","FES - Full Inspection"),0) -> 0 | L8: =IFERROR(GETPIVOTDATA("URN",Pivots!$A$87,"Provider Group",L$4,"Inspection type grouping","Reinspection","Event type grouping","FES - Full Inspection"),0) -> 0 | N8: 0
A9: Short conversion | B9: Short inspections that converted | D9: =IFERROR(GETPIVOTDATA("URN",Pivots!$A$87,"Event type grouping","FES - Short inspection Conversion"),0) -> 5 | E9: =IFERROR(GETPIVOTDATA("URN",Pivots!$A$87,"Provider Group",E$4,"Event type grouping","FES - Short inspection Conversion"),0) -> 2 | F9: =IFERROR(GETPIVOTDATA("URN",Pivots!$A$87,"Provider Group",F$4,"Event type grouping","FES - Short inspection Conversion"),0) -> 0 | G9: =IFERROR(GETPIVOTDATA("URN",Pivots!$A$87,"Provider Group",G$4,"Event type grouping","FES - Short inspection Conversion"),0) -> 1 | H9: =IFERROR(GETPIVOTDATA("URN",Pivots!$A$87,"Provider Group",H$4,"Event type grouping","FES - Short inspection Conversion"),0) -> 2 | I9: =IFERROR(GETPIVOTDATA("URN",Pivots!$A$87,"Provider Group",I$4,"Event type grouping","FES - Short inspection Conversion"),0) -> 0 | J9: =IFERROR(GETPIVOTDATA("URN",Pivots!$A$87,"Provider Group",J$4,"Event type grouping","FES - Short inspection Conversion"),0) -> 0 | K9: =IFERROR(GETPIVOTDATA("URN",Pivots!$A$87,"Provider Group",K$4,"Event type grouping","FES - Short inspection Conversion"),0) -> 0 | L9: =IFERROR(GETPIVOTDATA("URN",Pivots!$A$87,"Provider Group",L$4,"Event type grouping","FES - Short inspection Conversion"),0) -> 0 | N9: 0
B10: Total | D10: =SUM(D7:D9) -> 152 | E10: =SUM(E7:E9) -> 46 | F10: 9 | G10: 53 | H10: 26 | I10: 2 | J10: 16 | K10: 0 | L10: 0 | N10: 22
N11: Source: Ofsted inspection data and Her Majesty's Inspectorate of Prisons (HMIP)
D12: Number of inspections
B13: Inspection activity (other inspections) | D13: All further education and skills providers1 | E13: Colleges2 | F13: Independent specialist colleges | G13: Independent learning providers3 | H13: Community learning and skills providers4 | I13: 16-19 academies5 | J13: Dance and drama colleges | K13: Higher education institutions6 | L13: National Careers Service contractors
A14: Monitoring | B14: Monitoring visits | D14: =IFERROR(GETPIVOTDATA("URN",Pivots!$A$87,"Inspection type grouping","Monitoring","Event type grouping","FES - Monitoring Inspection"),0) -> 1 | E14: =IFERROR(GETPIVOTDATA("URN",Pivots!$A$87,"Provider Group",E$4,"Inspection type grouping","Monitoring","Event type grouping","FES - Monitoring Inspection"),0) -> 0 | F14: =IFERROR(GETPIVOTDATA("URN",Pivots!$A$87,"Provider Group",F$4,"Inspection type grouping","Monitoring","Event type grouping","FES - Monitoring Inspection"),0) -> 0 | G14: =IFERROR(GETPIVOTDATA("URN",Pivots!$A$87,"Provider Group",G$4,"Inspection type grouping","Monitoring","Event type grouping","FES - Monitoring Inspection"),0) -> 0 | H14: =IFERROR(GETPIVOTDATA("URN",Pivots!$A$87,"Provider Group",H$4,"Inspection type grouping","Monitoring","Event type grouping","FES - Monitoring Inspection"),0) -> 0 | I14: =IFERROR(GETPIVOTDATA("URN",Pivots!$A$87,"Provider Group",I$4,"Inspection type grouping","Monitoring","Event type grouping","FES - Monitoring Inspection"),0) -> 1 | J14: =IFERROR(GETPIVOTDATA("URN",Pivots!$A$87,"Provider Group",J$4,"Inspection type grouping","Monitoring","Event type grouping","FES - Monitoring Inspection"),0) -> 0 | K14: =IFERROR(GETPIVOTDATA("URN",Pivots!$A$87,"Provider Group",K$4,"Inspection type grouping","Monitoring","Event type grouping","FES - Monitoring Inspection"),0) -> 0 | L14: =IFERROR(GETPIVOTDATA("URN",Pivots!$A$87,"Provider Group",L$4,"Inspection type grouping","Monitoring","Event type grouping","FES - Monitoring Inspection"),0) -> 0
A15: Reinspection monitoring | B15: Re-inspection monitoring visits | D15: =IFERROR(GETPIVOTDATA("URN",Pivots!$A$87,"Inspection type grouping","Reinspection monitoring","Event type grouping","FES - Monitoring Inspection"),0) -> 20 | E15: =IFERROR(GETPIVOTDATA("URN",Pivots!$A$87,"Provider Group",E$4,"Inspection type grouping","Reinspection monitoring","Event type grouping","FES - Monitoring Inspection"),0) -> 10 | F15: =IFERROR(GETPIVOTDATA("URN",Pivots!$A$87,"Provider Group",F$4,"Inspection type grouping","Reinspection monitoring","Event type grouping","FES - Monitoring Inspection"),0) -> 0 | G15: =IFERROR(GETPIVOTDATA("URN",Pivots!$A$87,"Provider Group",G$4,"Inspection type grouping","Reinspection monitoring","Event type grouping","FES - Monitoring Inspection"),0) -> 2 | H15: =IFERROR(GETPIVOTDATA("URN",Pivots!$A$87,"Provider Group",H$4,"Inspection type grouping","Reinspection monitoring","Event type grouping","FES - Monitoring Inspection"),0) -> 5 | I15: =IFERROR(GETPIVOTDATA("URN",Pivots!$A$87,"Provider Group",I$4,"Inspection type grouping","Reinspection monitoring","Event type grouping","FES - Monitoring Inspection"),0) -> 3 | J15: =IFERROR(GETPIVOTDATA("URN",Pivots!$A$87,"Provider Group",J$4,"Inspection type grouping","Reinspection monitoring","Event type grouping","FES - Monitoring Inspection"),0) -> 0 | K15: =IFERROR(GETPIVOTDATA("URN",Pivots!$A$87,"Provider Group",K$4,"Inspection type grouping","Reinspection monitoring","Event type grouping","FES - Monitoring Inspection"),0) -> 0 | L15: =IFERROR(GETPIVOTDATA("URN",Pivots!$A$87,"Provider Group",L$4,"Inspection type grouping","Reinspection monitoring","Event type grouping","FES - Monitoring Inspection"),0) -> 0
A16: Short | B16: Short inspections that did not convert | D16: =IFERROR(SUM(GETPIVOTDATA("URN",Pivots!$A$87,"Event type grouping","FES - Short inspection")),0) -> 47 | E16: =IFERROR(GETPIVOTDATA("URN",Pivots!$A$87,"Provider Group",E$4,"Event type grouping","FES - Short inspection"),0) -> 14 | F16: =IFERROR(GETPIVOTDATA("URN",Pivots!$A$87,"Provider Group",F$4,"Event type grouping","FES - Short inspection"),0) -> 1 | G16: =IFERROR(GETPIVOTDATA("URN",Pivots!$A$87,"Provider Group",G$4,"Event type grouping","FES - Short inspection"),0) -> 17 | H16: =IFERROR(GETPIVOTDATA("URN",Pivots!$A$87,"Provider Group",H$4,"Event type grouping","FES - Short inspection"),0) -> 13 | I16: =IFERROR(GETPIVOTDATA("URN",Pivots!$A$87,"Provider Group",I$4,"Event type grouping","FES - Short inspection"),0) -> 0 | J16: =IFERROR(GETPIVOTDATA("URN",Pivots!$A$87,"Provider Group",J$4,"Event type grouping","FES - Short inspection"),0) -> 0 | K16: =IFERROR(GETPIVOTDATA("URN",Pivots!$A$87,"Provider Group",K$4,"Event type grouping","FES - Short inspection"),0) -> 2 | L16: =IFERROR(GETPIVOTDATA("URN",Pivots!$A$87,"Provider Group",L$4,"Event type grouping","FES - Short inspection"),0) -> 0
B17: Total | D17: =SUM(D14:D16) -> 68 | E17: =SUM(E14:E16) -> 24 | F17: 1 | G17: 19 | H17: 18 | I17: 4 | J17: 0 | K17: 2 | L17: 0
L18: Source: Ofsted inspection data
B19: 1. Does not include prison and young offender institution inspections.
B20: 2. Includes general further education colleges, sixth form colleges and specialist further education colleges.
B21: 3. Includes employer providers.
B22: 4. Includes local authority, not for profit and specialist designated providers.
B23: 5. Includes 16-19 free schools, 16-19 academy converters and 16-19 sponsor led academies.
B24: 6. Inspection of further education provision only, not provider as a whole.
B25: 7. Where the report has been published within the reporting period, but the inspection may have taken place in the previous reporting year.

Sheet T2 In-year short inspections
B2: Table 2: Short inspections this reporting year
B3: =Reporting_Period -> 1 September 2015 to 29 February 2016
E5: Total number of short inspections | G5: Total number of short inspections that did not convert to a full inspection | I5: Total number of short inspections that converted to a full inspection | J5: Overall effectiveness grade at converted inspection
J6: Number | O6: Percentage
J7: Outstanding | K7: Good | L7: Requires improvement | M7: Inadequate | O7: Outstanding | P7: Good | Q7: Requires improvement | R7: Inadequate
B8: Total number of short inspections | E8: =SUM(G8+I8) -> 52 | G8: =GETPIVOTDATA("URN",Pivots!$CV$9,"Event type grouping","FES - Short inspection") -> 47 | I8: =GETPIVOTDATA("URN",Pivots!$CV$9,"Event type grouping","FES - Short inspection Conversion") -> 5 | J8: =GETPIVOTDATA("URN",Pivots!$CV$9,"Event type grouping","FES - Short inspection Conversion","Overall effectiveness",1) -> 0 | K8: =GETPIVOTDATA("URN",Pivots!$CV$9,"Event type grouping","FES - Short inspection Conversion","Overall effectiveness",2) -> 3 | L8: =GETPIVOTDATA("URN",Pivots!$CV$9,"Event type grouping","FES - Short inspection Conversion","Overall effectiveness",3) -> 2 | M8: =GETPIVOTDATA("URN",Pivots!$CV$9,"Event type grouping","FES - Short inspection Conversion","Overall effectiveness",4) -> 0 | O8: =J8/$I8*100 -> 0 | P8: =K8/$I8*100 -> 60 | Q8: 40 | R8: 0
R9: Source: Ofsted inspection data
B10: 1. Percentages are rounded and may not add to 100. Where the number of inspections is small, percentages should be treated with caution.

Sheet T3 In-year outcomes
B2: Table 3: Further education and skills full inspection outcomes this reporting year, by judgement and provider type
B3: =Reporting_Period -> 1 September 2015 to 29 February 2016
B5: Select provider group1: | D5: <All providers>
B7: Select provider type: | D7: <All>
F8: 1 | G8: 2 | H8: 3 | I8: 4
D9: Total number of inspections | F9: Number of inspections | K9: Percentage of inspections
F10: Outstanding | G10: Good | H10: Requires improvement | I10: Inadequate | K10: Outstanding | L10: Good | M10: Requires improvement | N10: Inadequate
B11: Overall effectiveness | D11: =SUM(F11:I11) -> 152 | F11: =IF(T2_PG="<All providers>", IFERROR(GETPIVOTDATA("Organisation ID",Pivots!$V$6,$B11,F$8),0), IF(OR(ISBLANK(T2_PT),T2_PT="<All>"), IFERROR(GETPIVOTDATA("Organisation ID",Pivots!$V$6,"Provider Group",T2_PG1,$B11,F$8),0), IFERROR(GETPIVOTDATA("Organisation ID",Pivots!$AF$6,"Reporting provider type",T2_PT,$B11,F$8),0))) -> 15 | G11: =IF(T2_PG="<All providers>", IFERROR(GETPIVOTDATA("Organisation ID",Pivots!$V$6,$B11,G$8),0), IF(OR(ISBLANK(T2_PT),T2_PT="<All>"), IFERROR(GETPIVOTDATA("Organisation ID",Pivots!$V$6,"Provider Group",T2_PG1,$B11,G$8),0), IFERROR(GETPIVOTDATA("Organisation ID",Pivots!$AF$6,"Reporting provider type",T2_PT,$B11,G$8),0))) -> 72 | H11: =IF(T2_PG="<All providers>", IFERROR(GETPIVOTDATA("Organisation ID",Pivots!$V$6,$B11,H$8),0), IF(OR(ISBLANK(T2_PT),T2_PT="<All>"), IFERROR(GETPIVOTDATA("Organisation ID",Pivots!$V$6,"Provider Group",T2_PG1,$B11,H$8),0), IFERROR(GETPIVOTDATA("Organisation ID",Pivots!$AF$6,"Reporting provider type",T2_PT,$B11,H$8),0))) -> 47 | I11: =IF(T2_PG="<All providers>", IFERROR(GETPIVOTDATA("Organisation ID",Pivots!$V$6,$B11,I$8),0), IF(OR(ISBLANK(T2_PT),T2_PT="<All>"), IFERROR(GETPIVOTDATA("Organisation ID",Pivots!$V$6,"Provider Group",T2_PG1,$B11,I$8),0), IFERROR(GETPIVOTDATA("Organisation ID",Pivots!$AF$6,"Reporting provider type",T2_PT,$B11,I$8),0))) -> 18 | K11: =IFERROR(F11/$D11*100,0) -> 9.868421053 | L11: =IFERROR(G11/$D11*100,0) -> 47.36842105 | M11: 30.92105263 | N11: 11.84210526
B12: Effectiveness of leadership and management | D12: =SUM(F12:I12) -> 152 | F12: =IF(T2_PG="<All providers>", IFERROR(GETPIVOTDATA("Organisation ID",Pivots!$V$24,$B12,F$8),0), IF(OR(ISBLANK(T2_PT),T2_PT="<All>"), IFERROR(GETPIVOTDATA("Organisation ID",Pivots!$V$24,"Provider Group",T2_PG1,$B12,F$8),0), IFERROR(GETPIVOTDATA("Organisation ID",Pivots!$AF$24,"Reporting provider type",T2_PT,$B12,F$8),0))) -> 16 | G12: =IF(T2_PG="<All providers>", IFERROR(GETPIVOTDATA("Organisation ID",Pivots!$V$24,$B12,G$8),0), IF(OR(ISBLANK(T2_PT),T2_PT="<All>"), IFERROR(GETPIVOTDATA("Organisation ID",Pivots!$V$24,"Provider Group",T2_PG1,$B12,G$8),0), IFERROR(GETPIVOTDATA("Organisation ID",Pivots!$AF$24,"Reporting provider type",T2_PT,$B12,G$8),0))) -> 71 | H12: =IF(T2_PG="<All providers>", IFERROR(GETPIVOTDATA("Organisation ID",Pivots!$V$24,$B12,H$8),0), IF(OR(ISBLANK(T2_PT),T2_PT="<All>"), IFERROR(GETPIVOTDATA("Organisation ID",Pivots!$V$24,"Provider Group",T2_PG1,$B12,H$8),0), IFERROR(GETPIVOTDATA("Organisation ID",Pivots!$AF$24,"Reporting provider type",T2_PT,$B12,H$8),0))) -> 49 | I12: =IF(T2_PG="<All providers>", IFERROR(GETPIVOTDATA("Organisation ID",Pivots!$V$24,$B12,I$8),0), IF(OR(ISBLANK(T2_PT),T2_PT="<All>"), IFERROR(GETPIVOTDATA("Organisation ID",Pivots!$V$24,"Provider Group",T2_PG1,$B12,I$8),0), IFERROR(GETPIVOTDATA("Organisation ID",Pivots!$AF$24,"Reporting provider type",T2_PT,$B12,I$8),0))) -> 16 | K12: =IFERROR(F12/$D12*100,0) -> 10.52631579 | L12: =IFERROR(G12/$D12*100,0) -> 46.71052632 | M12: =IFERROR(H12/$D12*100,0) -> 32.23684211 | N12: =IFERROR(I12/$D12*100,0) -> 10.52631579
B13: Quality of teaching, learning and assessment | D13: 152 | F13: =IF(T2_PG="<All providers>", IFERROR(GETPIVOTDATA("Organisation ID",Pivots!$V$42,$B13,F$8),0), IF(OR(ISBLANK(T2_PT),T2_PT="<All>"), IFERROR(GETPIVOTDATA("Organisation ID",Pivots!$V$42,"Provider Group",T2_PG1,$B13,F$8),0), IFERROR(GETPIVOTDATA("Organisation ID",Pivots!$AF$42,"Reporting provider type",T2_PT,$B13,F$8),0))) -> 15 | G13: =IF(T2_PG="<All providers>", IFERROR(GETPIVOTDATA("Organisation ID",Pivots!$V$42,$B13,G$8),0), IF(OR(ISBLANK(T2_PT),T2_PT="<All>"), IFERROR(GETPIVOTDATA("Organisation ID",Pivots!$V$42,"Provider Group",T2_PG1,$B13,G$8),0), IFERROR(GETPIVOTDATA("Organisation ID",Pivots!$AF$42,"Reporting provider type",T2_PT,$B13,G$8),0))) -> 73 | H13: =IF(T2_PG="<All providers>", IFERROR(GETPIVOTDATA("Organisation ID",Pivots!$V$42,$B13,H$8),0), IF(OR(ISBLANK(T2_PT),T2_PT="<All>"), IFERROR(GETPIVOTDATA("Organisation ID",Pivots!$V$42,"Provider Group",T2_PG1,$B13,H$8),0), IFERROR(GETPIVOTDATA("Organisation ID",Pivots!$AF$42,"Reporting provider type",T2_PT,$B13,H$8),0))) -> 52 | I13: =IF(T2_PG="<All providers>", IFERROR(GETPIVOTDATA("Organisation ID",Pivots!$V$42,$B13,I$8),0), IF(OR(ISBLANK(T2_PT),T2_PT="<All>"), IFERROR(GETPIVOTDATA("Organisation ID",Pivots!$V$42,"Provider Group",T2_PG1,$B13,I$8),0), IFERROR(GETPIVOTDATA("Organisation ID",Pivots!$AF$42,"Reporting provider type",T2_PT,$B13,I$8),0))) -> 12 | K13: =IFERROR(F13/$D13*100,0) -> 9.868421053 | L13: =IFERROR(G13/$D13*100,0) -> 48.02631579 | M13: =IFERROR(H13/$D13*100,0) -> 34.21052632 | N13: =IFERROR(I13/$D13*100,0) -> 7.894736842
B14: Personal development, behaviour and welfare | D14: 152 | F14: =IF(T2_PG="<All providers>", IFERROR(GETPIVOTDATA("Organisation ID",Pivots!$V$60,$B14,F$8),0), IF(OR(ISBLANK(T2_PT),T2_PT="<All>"), IFERROR(GETPIVOTDATA("Organisation ID",Pivots!$V$60,"Provider Group",T2_PG1,$B14,F$8),0), IFERROR(GETPIVOTDATA("Organisation ID",Pivots!$AF$60,"Reporting provider type",T2_PT,$B14,F$8),0))) -> 18 | G14: =IF(T2_PG="<All providers>", IFERROR(GETPIVOTDATA("Organisation ID",Pivots!$V$60,$B14,G$8),0), IF(OR(ISBLANK(T2_PT),T2_PT="<All>"), IFERROR(GETPIVOTDATA("Organisation ID",Pivots!$V$60,"Provider Group",T2_PG1,$B14,G$8),0), IFERROR(GETPIVOTDATA("Organisation ID",Pivots!$AF$60,"Reporting provider type",T2_PT,$B14,G$8),0))) -> 88 | H14: =IF(T2_PG="<All providers>", IFERROR(GETPIVOTDATA("Organisation ID",Pivots!$V$60,$B14,H$8),0), IF(OR(ISBLANK(T2_PT),T2_PT="<All>"), IFERROR(GETPIVOTDATA("Organisation ID",Pivots!$V$60,"Provider Group",T2_PG1,$B14,H$8),0), IFERROR(GETPIVOTDATA("Organisation ID",Pivots!$AF$60,"Reporting provider type",T2_PT,$B14,H$8),0))) -> 37 | I14: =IF(T2_PG="<All providers>", IFERROR(GETPIVOTDATA("Organisation ID",Pivots!$V$60,$B14,I$8),0), IF(OR(ISBLANK(T2_PT),T2_PT="<All>"), IFERROR(GETPIVOTDATA("Organisation ID",Pivots!$V$60,"Provider Group",T2_PG1,$B14,I$8),0), IFERROR(GETPIVOTDATA("Organisation ID",Pivots!$AF$60,"Reporting provider type",T2_PT,$B14,I$8),0))) -> 9 | K14: 11.84210526 | L14: 57.89473684 | M14: 24.34210526 | N14: 5.921052632
B15: Outcomes for learners | D15: 152 | F15: =IF(T2_PG="<All providers>", IFERROR(GETPIVOTDATA("Organisation ID",Pivots!$V$78,$B15,F$8),0), IF(OR(ISBLANK(T2_PT),T2_PT="<All>"), IFERROR(GETPIVOTDATA("Organisation ID",Pivots!$V$78,"Provider Group",T2_PG1,$B15,F$8),0), IFERROR(GETPIVOTDATA("Organisation ID",Pivots!$AF$78,"Reporting provider type",T2_PT,$B15,F$8),0))) -> 15 | G15: =IF(T2_PG="<All providers>", IFERROR(GETPIVOTDATA("Organisation ID",Pivots!$V$78,$B15,G$8),0), IF(OR(ISBLANK(T2_PT),T2_PT="<All>"), IFERROR(GETPIVOTDATA("Organisation ID",Pivots!$V$78,"Provider Group",T2_PG1,$B15,G$8),0), IFERROR(GETPIVOTDATA("Organisation ID",Pivots!$AF$78,"Reporting provider type",T2_PT,$B15,G$8),0))) -> 73 | H15: =IF(T2_PG="<All providers>", IFERROR(GETPIVOTDATA("Organisation ID",Pivots!$V$78,$B15,H$8),0), IF(OR(ISBLANK(T2_PT),T2_PT="<All>"), IFERROR(GETPIVOTDATA("Organisation ID",Pivots!$V$78,"Provider Group",T2_PG1,$B15,H$8),0), IFERROR(GETPIVOTDATA("Organisation ID",Pivots!$AF$78,"Reporting provider type",T2_PT,$B15,H$8),0))) -> 50 | I15: =IF(T2_PG="<All providers>", IFERROR(GETPIVOTDATA("Organisation ID",Pivots!$V$78,$B15,I$8),0), IF(OR(ISBLANK(T2_PT),T2_PT="<All>"), IFERROR(GETPIVOTDATA("Organisation ID",Pivots!$V$78,"Provider Group",T2_PG1,$B15,I$8),0), IFERROR(GETPIVOTDATA("Organisation ID",Pivots!$AF$78,"Reporting provider type",T2_PT,$B15,I$8),0))) -> 14 | K15: 9.868421053 | L15: 48.02631579 | M15: 32.89473684 | N15: 9.210526316
B16: 16 to 19 study programmes | D16: 67 | F16: =IF(T2_PG="<All providers>", IFERROR(GETPIVOTDATA("Organisation ID",Pivots!$V$96,$B16,F$8),0), IF(OR(ISBLANK(T2_PT),T2_PT="<All>"), IFERROR(GETPIVOTDATA("Organisation ID",Pivots!$V$96,"Provider Group",T2_PG1,$B16,F$8),0), IFERROR(GETPIVOTDATA("Organisation ID",Pivots!$AF$96,"Reporting provider type",T2_PT,$B16,F$8),0))) -> 0 | G16: =IF(T2_PG="<All providers>", IFERROR(GETPIVOTDATA("Organisation ID",Pivots!$V$96,$B16,G$8),0), IF(OR(ISBLANK(T2_PT),T2_PT="<All>"), IFERROR(GETPIVOTDATA("Organisation ID",Pivots!$V$96,"Provider Group",T2_PG1,$B16,G$8),0), IFERROR(GETPIVOTDATA("Organisation ID",Pivots!$AF$96,"Reporting provider type",T2_PT,$B16,G$8),0))) -> 26 | H16: =IF(T2_PG="<All providers>", IFERROR(GETPIVOTDATA("Organisation ID",Pivots!$V$96,$B16,H$8),0), IF(OR(ISBLANK(T2_PT),T2_PT="<All>"), IFERROR(GETPIVOTDATA("Organisation ID",Pivots!$V$96,"Provider Group",T2_PG1,$B16,H$8),0), IFERROR(GETPIVOTDATA("Organisation ID",Pivots!$AF$96,"Reporting provider type",T2_PT,$B16,H$8),0))) -> 32 | I16: =IF(T2_PG="<All providers>", IFERROR(GETPIVOTDATA("Organisation ID",Pivots!$V$96,$B16,I$8),0), IF(OR(ISBLANK(T2_PT),T2_PT="<All>"), IFERROR(GETPIVOTDATA("Organisation ID",Pivots!$V$96,"Provider Group",T2_PG1,$B16,I$8),0), IFERROR(GETPIVOTDATA("Organisation ID",Pivots!$AF$96,"Reporting provider type",T2_PT,$B16,I$8),0))) -> 9 | K16: 0 | L16: 38.80597015 | M16: 47.76119403 | N16: 13.43283582
B17: Adult learning programmes | D17: 70 | F17: =IF(T2_PG="<All providers>", IFERROR(GETPIVOTDATA("Organisation ID",Pivots!$V$114,$B17,F$8),0), IF(OR(ISBLANK(T2_PT),T2_PT="<All>"), IFERROR(GETPIVOTDATA("Organisation ID",Pivots!$V$114,"Provider Group",T2_PG1,$B17,F$8),0), IFERROR(GETPIVOTDATA("Organisation ID",Pivots!$AF$114,"Reporting provider type",T2_PT,$B17,F$8),0))) -> 2 | G17: =IF(T2_PG="<All providers>", IFERROR(GETPIVOTDATA("Organisation ID",Pivots!$V$114,$B17,G$8),0), IF(OR(ISBLANK(T2_PT),T2_PT="<All>"), IFERROR(GETPIVOTDATA("Organisation ID",Pivots!$V$114,"Provider Group",T2_PG1,$B17,G$8),0), IFERROR(GETPIVOTDATA("Organisation ID",Pivots!$AF$114,"Reporting provider type",T2_PT,$B17,G$8),0))) -> 40 | H17: =IF(T2_PG="<All providers>", IFERROR(GETPIVOTDATA("Organisation ID",Pivots!$V$114,$B17,H$8),0), IF(OR(ISBLANK(T2_PT),T2_PT="<All>"), IFERROR(GETPIVOTDATA("Organisation ID",Pivots!$V$114,"Provider Group",T2_PG1,$B17,H$8),0), IFERROR(GETPIVOTDATA("Organisation ID",Pivots!$AF$114,"Reporting provider type",T2_PT,$B17,H$8),0))) -> 24 | I17: =IF(T2_PG="<All providers>", IFERROR(GETPIVOTDATA("Organisation ID",Pivots!$V$114,$B17,I$8),0), IF(OR(ISBLANK(T2_PT),T2_PT="<All>"), IFERROR(GETPIVOTDATA("Organisation ID",Pivots!$V$114,"Provider Group",T2_PG1,$B17,I$8),0), IFERROR(GETPIVOTDATA("Organisation ID",Pivots!$AF$114,"Reporting provider type",T2_PT,$B17,I$8),0))) -> 4 | K17: 2.857142857 | L17: 57.14285714 | M17: 34.28571429 | N17: 5.714285714
B18: Apprenticeships | D18: 86 | F18: =IF(T2_PG="<All providers>", IFERROR(GETPIVOTDATA("Organisation ID",Pivots!$V$132,$B18,F$8),0), IF(OR(ISBLANK(T2_PT),T2_PT="<All>"), IFERROR(GETPIVOTDATA("Organisation ID",Pivots!$V$132,"Provider Group",T2_PG1,$B18,F$8),0), IFERROR(GETPIVOTDATA("Organisation ID",Pivots!$AF$132,"Reporting provider type",T2_PT,$B18,F$8),0))) -> 3 | G18: =IF(T2_PG="<All providers>", IFERROR(GETPIVOTDATA("Organisation ID",Pivots!$V$132,$B18,G$8),0), IF(OR(ISBLANK(T2_PT),T2_PT="<All>"), IFERROR(GETPIVOTDATA("Organisation ID",Pivots!$V$132,"Provider Group",T2_PG1,$B18,G$8),0), IFERROR(GETPIVOTDATA("Organisation ID",Pivots!$AF$132,"Reporting provider type",T2_PT,$B18,G$8),0))) -> 52 | H18: =IF(T2_PG="<All providers>", IFERROR(GETPIVOTDATA("Organisation ID",Pivots!$V$132,$B18,H$8),0), IF(OR(ISBLANK(T2_PT),T2_PT="<All>"), IFERROR(GETPIVOTDATA("Organisation ID",Pivots!$V$132,"Provider Group",T2_PG1,$B18,H$8),0), IFERROR(GETPIVOTDATA("Organisation ID",Pivots!$AF$132,"Reporting provider type",T2_PT,$B18,H$8),0))) -> 21 | I18: =IF(T2_PG="<All providers>", IFERROR(GETPIVOTDATA("Organisation ID",Pivots!$V$132,$B18,I$8),0), IF(OR(ISBLANK(T2_PT),T2_PT="<All>"), IFERROR(GETPIVOTDATA("Organisation ID",Pivots!$V$132,"Provider Group",T2_PG1,$B18,I$8),0), IFERROR(GETPIVOTDATA("Organisation ID",Pivots!$AF$132,"Reporting provider type",T2_PT,$B18,I$8),0))) -> 10 | K18: 3.488372093 | L18: 60.46511628 | M18: 24.41860465 | N18: 11.62790698
B19: Traineeships | D19: 8 | F19: =IF(T2_PG="<All providers>", IFERROR(GETPIVOTDATA("Organisation ID",Pivots!$V$150,$B19,F$8),0), IF(OR(ISBLANK(T2_PT),T2_PT="<All>"), IFERROR(GETPIVOTDATA("Organisation ID",Pivots!$V$150,"Provider Group",T2_PG1,$B19,F$8),0), IFERROR(GETPIVOTDATA("Organisation ID",Pivots!$AF$150,"Reporting provider type",T2_PT,$B19,F$8),0))) -> 0 | G19: =IF(T2_PG="<All providers>", IFERROR(GETPIVOTDATA("Organisation ID",Pivots!$V$150,$B19,G$8),0), IF(OR(ISBLANK(T2_PT),T2_PT="<All>"), IFERROR(GETPIVOTDATA("Organisation ID",Pivots!$V$150,"Provider Group",T2_PG1,$B19,G$8),0), IFERROR(GETPIVOTDATA("Organisation ID",Pivots!$AF$150,"Reporting provider type",T2_PT,$B19,G$8),0))) -> 7 | H19: =IF(T2_PG="<All providers>", IFERROR(GETPIVOTDATA("Organisation ID",Pivots!$V$150,$B19,H$8),0), IF(OR(ISBLANK(T2_PT),T2_PT="<All>"), IFERROR(GETPIVOTDATA("Organisation ID",Pivots!$V$150,"Provider Group",T2_PG1,$B19,H$8),0), IFERROR(GETPIVOTDATA("Organisation ID",Pivots!$AF$150,"Reporting provider type",T2_PT,$B19,H$8),0))) -> 0 | I19: =IF(T2_PG="<All providers>", IFERROR(GETPIVOTDATA("Organisation ID",Pivots!$V$150,$B19,I$8),0), IF(OR(ISBLANK(T2_PT),T2_PT="<All>"), IFERROR(GETPIVOTDATA("Organisation ID",Pivots!$V$150,"Provider Group",T2_PG1,$B19,I$8),0), IFERROR(GETPIVOTDATA("Organisation ID",Pivots!$AF$150,"Reporting provider type",T2_PT,$B19,I$8),0))) -> 1 | K19: =IFERROR(F19/$D19*100,0) -> 0 | L19: =IFERROR(G19/$D19*100,0) -> 87.5 | M19: =IFERROR(H19/$D19*100,0) -> 0 | N19: =IFERROR(I19/$D19*100,0) -> 12.5
B20: Provision for learners with high needs | D20: 32 | F20: =IF(T2_PG="<All providers>", IFERROR(GETPIVOTDATA("Organisation ID",Pivots!$V$168,$B20,F$8),0), IF(OR(ISBLANK(T2_PT),T2_PT="<All>"), IFERROR(GETPIVOTDATA("Organisation ID",Pivots!$V$168,"Provider Group",T2_PG1,$B20,F$8),0), IFERROR(GETPIVOTDATA("Organisation ID",Pivots!$AF$168,"Reporting provider type",T2_PT,$B20,F$8),0))) -> 1 | G20: =IF(T2_PG="<All providers>", IFERROR(GETPIVOTDATA("Organisation ID",Pivots!$V$168,$B20,G$8),0), IF(OR(ISBLANK(T2_PT),T2_PT="<All>"), IFERROR(GETPIVOTDATA("Organisation ID",Pivots!$V$168,"Provider Group",T2_PG1,$B20,G$8),0), IFERROR(GETPIVOTDATA("Organisation ID",Pivots!$AF$168,"Reporting provider type",T2_PT,$B20,G$8),0))) -> 19 | H20: =IF(T2_PG="<All providers>", IFERROR(GETPIVOTDATA("Organisation ID",Pivots!$V$168,$B20,H$8),0), IF(OR(ISBLANK(T2_PT),T2_PT="<All>"), IFERROR(GETPIVOTDATA("Organisation ID",Pivots!$V$168,"Provider Group",T2_PG1,$B20,H$8),0), IFERROR(GETPIVOTDATA("Organisation ID",Pivots!$AF$168,"Reporting provider type",T2_PT,$B20,H$8),0))) -> 10 | I20: =IF(T2_PG="<All providers>", IFERROR(GETPIVOTDATA("Organisation ID",Pivots!$V$168,$B20,I$8),0), IF(OR(ISBLANK(T2_PT),T2_PT="<All>"), IFERROR(GETPIVOTDATA("Organisation ID",Pivots!$V$168,"Provider Group",T2_PG1,$B20,I$8),0), IFERROR(GETPIVOTDATA("Organisation ID",Pivots!$AF$168,"Reporting provider type",T2_PT,$B20,I$8),0))) -> 2 | K20: 3.125 | L20: 59.375 | M20: 31.25 | N20: 6.25
B21: Full-time provision for 14 to 16-year-olds | D21: 2 | F21: =IF(T2_PG="<All providers>", IFERROR(GETPIVOTDATA("Organisation ID",Pivots!$V$186,$B21,F$8),0), IF(OR(ISBLANK(T2_PT),T2_PT="<All>"), IFERROR(GETPIVOTDATA("Organisation ID",Pivots!$V$186,"Provider Group",T2_PG1,$B21,F$8),0), IFERROR(GETPIVOTDATA("Organisation ID",Pivots!$AF$186,"Reporting provider type",T2_PT,$B21,F$8),0))) -> 0 | G21: =IF(T2_PG="<All providers>", IFERROR(GETPIVOTDATA("Organisation ID",Pivots!$V$186,$B21,G$8),0), IF(OR(ISBLANK(T2_PT),T2_PT="<All>"), IFERROR(GETPIVOTDATA("Organisation ID",Pivots!$V$186,"Provider Group",T2_PG1,$B21,G$8),0), IFERROR(GETPIVOTDATA("Organisation ID",Pivots!$AF$186,"Reporting provider type",T2_PT,$B21,G$8),0))) -> 2 | H21: =IF(T2_PG="<All providers>", IFERROR(GETPIVOTDATA("Organisation ID",Pivots!$V$186,$B21,H$8),0), IF(OR(ISBLANK(T2_PT),T2_PT="<All>"), IFERROR(GETPIVOTDATA("Organisation ID",Pivots!$V$186,"Provider Group",T2_PG1,$B21,H$8),0), IFERROR(GETPIVOTDATA("Organisation ID",Pivots!$AF$186,"Reporting provider type",T2_PT,$B21,H$8),0))) -> 0 | I21: =IF(T2_PG="<All providers>", IFERROR(GETPIVOTDATA("Organisation ID",Pivots!$V$186,$B21,I$8),0), IF(OR(ISBLANK(T2_PT),T2_PT="<All>"), IFERROR(GETPIVOTDATA("Organisation ID",Pivots!$V$186,"Provider Group",T2_PG1,$B21,I$8),0), IFERROR(GETPIVOTDATA("Organisation ID",Pivots!$AF$186,"Reporting provider type",T2_PT,$B21,I$8),0))) -> 0 | K21: =IFERROR(F21/$D21*100,0) -> 0 | L21: =IFERROR(G21/$D21*100,0) -> 100 | M21: =IFERROR(H21/$D21*100,0) -> 0 | N21: =IFERROR(I21/$D21*100,0) -> 0
N22: Source: Ofsted inspection data
B23: 1. See 'notes' tab for a description of which providers are included in each group.
B24: 2. Percentages are rounded and may not add to 100. Where the number of inspections is small, percentages should be treated with caution.

Sheet T2 Outcomes this year (2) (hidden)
B2: Table 2: Further education and skills this reporting year
B3: =Reporting_Period -> 1 September 2015 to 29 February 2016
B5: Select provider group | D5: Independent learning providers
B7: Select provider type | I7: Different picklist
D9: Total number of inspections | F9: Number of providers | K9: Percentage of providers
B10: CHANGE TO NEW JUDGEMENTS | F10: Outstanding | G10: Good | H10: Requires Improvement | I10: Inadequate | K10: Outstanding | L10: Good | M10: Requires Improvement | N10: Inadequate
B11: Overall effectiveness | D11: =SUM(F11:I11) -> 0 | F11: =IF($D$5=Pivots!$A$171,IFERROR(GETPIVOTDATA("Organisation ID",Pivots!$V$6,"Overall effectiveness",1),0), IF($D$5=Pivots!$A$172,IFERROR(GETPIVOTDATA("Organisation ID",Pivots!$V$6,"Provider Group","College","Overall effectiveness",1),0), IF($D$5=Pivots!$A$173,IFERROR(GETPIVOTDATA("Organisation ID",Pivots!$V$6,"Provider Group","Independent Specialist College","Overall effectiveness",1),0), IF($D$5=Pivots!$A$174,IFERROR(GETPIVOTDATA("Organisation ID",Pivots!$V$6,"Provider Group","Independent learning Provider","Overall effectiveness",1),0), IF($D$5=Pivots!$A$175,IFERROR(GETPIVOTDATA("Organisation ID",Pivots!$V$6,"Provider Group","Community Learning and Skills Provider","Overall effectiveness",1),0), IF($D$5=Pivots!$A$176,IFERROR(GETPIVOTDATA("Organisation ID",Pivots!$V$6,"Provider Group","16-19 Academy","Overall effectiveness",1),0), IF($D$5=Pivots!$A$177,IFERROR(GETPIVOTDATA("Organisation ID",Pivots!$V$6,"Provider Group","Dance and Drama College","Overall effectiveness",1),0), IF($D$5=Pivots!$A$178,IFERROR(GETPIVOTDATA("Organisation ID",Pivots!$V$6,"Provider Group","Higher Education Institution","Overall effectiveness",1),0), IF($D$5=Pivots!$A$179,IFERROR(SUM(GETPIVOTDATA("Organisation ID",Pivots!$V$6,"Provider Group","Next Step ILP","Overall effectiveness",1)+GETPIVOTDATA("Organisation ID",Pivots!$V$6,"Provider Group","Next Step Voluntary Organisation","Overall effectiveness",1)),0), IF($D$5=Pivots!$A$180,IFERROR(GETPIVOTDATA("Organisation ID",Pivots!$V$6,"Provider Group","Prisons","Overall effectiveness",1),0),0)))))))))) -> 0 | G11: =IF($D$5=Pivots!$A$171,IFERROR(GETPIVOTDATA("Organisation ID",Pivots!$V$6,"Overall effectiveness",2),0), IF($D$5=Pivots!$A$172,IFERROR(GETPIVOTDATA("Organisation ID",Pivots!$V$6,"Provider Group","College","Overall effectiveness",2),0), IF($D$5=Pivots!$A$173,IFERROR(GETPIVOTDATA("Organisation ID",Pivots!$V$6,"Provider Group","Independent Specialist College","Overall effectiveness",2),0), IF($D$5=Pivots!$A$174,IFERROR(GETPIVOTDATA("Organisation ID",Pivots!$V$6,"Provider Group","Independent learning Provider","Overall effectiveness",2),0), IF($D$5=Pivots!$A$175,IFERROR(GETPIVOTDATA("Organisation ID",Pivots!$V$6,"Provider Group","Community Learning and Skills Provider","Overall effectiveness",2),0), IF($D$5=Pivots!$A$176,IFERROR(GETPIVOTDATA("Organisation ID",Pivots!$V$6,"Provider Group","16-19 Academy","Overall effectiveness",2),0), IF($D$5=Pivots!$A$177,IFERROR(GETPIVOTDATA("Organisation ID",Pivots!$V$6,"Provider Group","Dance and Drama College","Overall effectiveness",2),0), IF($D$5=Pivots!$A$178,IFERROR(GETPIVOTDATA("Organisation ID",Pivots!$V$6,"Provider Group","Higher Education Institution","Overall effectiveness",2),0), IF($D$5=Pivots!$A$179,IFERROR(SUM(GETPIVOTDATA("Organisation ID",Pivots!$V$6,"Provider Group","Next Step ILP","Overall effectiveness",2)+GETPIVOTDATA("Organisation ID",Pivots!$V$6,"Provider Group","Next Step Voluntary Organisation","Overall effectiveness",2)),0), IF($D$5=Pivots!$A$180,IFERROR(GETPIVOTDATA("Organisation ID",Pivots!$V$6,"Provider Group","Prisons","Overall effectiveness",2),0),0)))))))))) -> 0 | H11: =IF($D$5=Pivots!$A$171,IFERROR(GETPIVOTDATA("Organisation ID",Pivots!$V$6,"Overall effectiveness",3),0), IF($D$5=Pivots!$A$172,IFERROR(GETPIVOTDATA("Organisation ID",Pivots!$V$6,"Provider Group","College","Overall effectiveness",3),0), IF($D$5=Pivots!$A$173,IFERROR(GETPIVOTDATA("Organisation ID",Pivots!$V$6,"Provider Group","Independent Specialist College","Overall effectiveness",3),0), IF($D$5=Pivots!$A$174,IFERROR(GETPIVOTDATA("Organisation ID",Pivots!$V$6,"Provider Group","Independent learning Provider","Overall effectiveness",3),0), IF($D$5=Pivots!$A$175,IFERROR(GETPIVOTDATA("Organisation ID",Pivots!$V$6,"Provider Group","Community Learning and Skills Provider","Overall effectiveness",3),0), IF($D$5=Pivots!$A$176,IFERROR(GETPIVOTDATA("Organisation ID",Pivots!$V$6,"Provider Group","16-19 Academy","Overall effectiveness",3),0), IF($D$5=Pivots!$A$177,IFERROR(GETPIVOTDATA("Organisation ID",Pivots!$V$6,"Provider Group","Dance and Drama College","Overall effectiveness",3),0), IF($D$5=Pivots!$A$178,IFERROR(GETPIVOTDATA("Organisation ID",Pivots!$V$6,"Provider Group","Higher Education Institution","Overall effectiveness",3),0), IF($D$5=Pivots!$A$179,IFERROR(SUM(GETPIVOTDATA("Organisation ID",Pivots!$V$6,"Provider Group","Next Step ILP","Overall effectiveness",3)+GETPIVOTDATA("Organisation ID",Pivots!$V$6,"Provider Group","Next Step Voluntary Organisation","Overall effectiveness",3)),0), IF($D$5=Pivots!$A$180,IFERROR(GETPIVOTDATA("Organisation ID",Pivots!$V$6,"Provider Group","Prisons","Overall effectiveness",3),0),0)))))))))) -> 0 | I11: =IF($D$5=Pivots!$A$171,IFERROR(GETPIVOTDATA("Organisation ID",Pivots!$V$6,"Overall effectiveness",4),0), IF($D$5=Pivots!$A$172,IFERROR(GETPIVOTDATA("Organisation ID",Pivots!$V$6,"Provider Group","College","Overall effectiveness",4),0), IF($D$5=Pivots!$A$173,IFERROR(GETPIVOTDATA("Organisation ID",Pivots!$V$6,"Provider Group","Independent Specialist College","Overall effectiveness",4),0), IF($D$5=Pivots!$A$174,IFERROR(GETPIVOTDATA("Organisation ID",Pivots!$V$6,"Provider Group","Independent learning Provider","Overall effectiveness",4),0), IF($D$5=Pivots!$A$175,IFERROR(GETPIVOTDATA("Organisation ID",Pivots!$V$6,"Provider Group","Community Learning and Skills Provider","Overall effectiveness",4),0), IF($D$5=Pivots!$A$176,IFERROR(GETPIVOTDATA("Organisation ID",Pivots!$V$6,"Provider Group","16-19 Academy","Overall effectiveness",4),0), IF($D$5=Pivots!$A$177,IFERROR(GETPIVOTDATA("Organisation ID",Pivots!$V$6,"Provider Group","Dance and Drama College","Overall effectiveness",4),0), IF($D$5=Pivots!$A$178,IFERROR(GETPIVOTDATA("Organisation ID",Pivots!$V$6,"Provider Group","Higher Education Institution","Overall effectiveness",4),0), IF($D$5=Pivots!$A$179,IFERROR(SUM(GETPIVOTDATA("Organisation ID",Pivots!$V$6,"Provider Group","Next Step ILP","Overall effectiveness",4)+GETPIVOTDATA("Organisation ID",Pivots!$V$6,"Provider Group","Next Step Voluntary Organisation","Overall effectiveness",4)),0), IF($D$5=Pivots!$A$180,IFERROR(GETPIVOTDATA("Organisation ID",Pivots!$V$6,"Provider Group","Prisons","Overall effectiveness",4),0),0)))))))))) -> 0 | K11: =IFERROR(F11/$D11*100,0) -> 0 | L11: =IFERROR(G11/$D11*100,0) -> 0 | M11: 0 | N11: 0
B12: Effectiveness of leadership and management | D12: =SUM(F12:I12) -> 0 | F12: =IF($D$5=Pivots!$A$171,IFERROR(GETPIVOTDATA("Organisation ID",Pivots!$V$24,"Effectiveness of leadership and management",1),0), IF($D$5=Pivots!$A$172,IFERROR(GETPIVOTDATA("Organisation ID",Pivots!$V$24,"Provider Group","College","Effectiveness of leadership and management",1),0), IF($D$5=Pivots!$A$173,IFERROR(GETPIVOTDATA("Organisation ID",Pivots!$V$24,"Provider Group","Independent Specialist College","Effectiveness of leadership and management",1),0), IF($D$5=Pivots!$A$174,IFERROR(GETPIVOTDATA("Organisation ID",Pivots!$V$24,"Provider Group","Independent learning Provider","Effectiveness of leadership and management",1),0), IF($D$5=Pivots!$A$175,IFERROR(GETPIVOTDATA("Organisation ID",Pivots!$V$24,"Provider Group","Community Learning and Skills Provider","Effectiveness of leadership and management",1),0), IF($D$5=Pivots!$A$176,IFERROR(GETPIVOTDATA("Organisation ID",Pivots!$V$24,"Provider Group","16-19 Academy","Effectiveness of leadership and management",1),0), IF($D$5=Pivots!$A$177,IFERROR(GETPIVOTDATA("Organisation ID",Pivots!$V$24,"Provider Group","Dance and Drama College","Effectiveness of leadership and management",1),0), IF($D$5=Pivots!$A$178,IFERROR(GETPIVOTDATA("Organisation ID",Pivots!$V$24,"Provider Group","Higher Education Institution","Effectiveness of leadership and management",1),0), IF($D$5=Pivots!$A$179,IFERROR(SUM(GETPIVOTDATA("Organisation ID",Pivots!$V$24,"Provider Group","Next Step ILP","Effectiveness of leadership and management",1)+GETPIVOTDATA("Organisation ID",Pivots!$V$24,"Provider Group","Next Step Voluntary Organisation","Effectiveness of leadership and management",1)),0), IF($D$5=Pivots!$A$180,IFERROR(GETPIVOTDATA("Organisation ID",Pivots!$V$24,"Provider Group","Prisons","Effectiveness of leadership and management",1),0),0)))))))))) -> 0 | G12: =IF($D$5=Pivots!$A$171,IFERROR(GETPIVOTDATA("Organisation ID",Pivots!$V$24,"Effectiveness of leadership and management",2),0), IF($D$5=Pivots!$A$172,IFERROR(GETPIVOTDATA("Organisation ID",Pivots!$V$24,"Provider Group","College","Effectiveness of leadership and management",2),0), IF($D$5=Pivots!$A$173,IFERROR(GETPIVOTDATA("Organisation ID",Pivots!$V$24,"Provider Group","Independent Specialist College","Effectiveness of leadership and management",2),0), IF($D$5=Pivots!$A$174,IFERROR(GETPIVOTDATA("Organisation ID",Pivots!$V$24,"Provider Group","Independent learning Provider","Effectiveness of leadership and management",2),0), IF($D$5=Pivots!$A$175,IFERROR(GETPIVOTDATA("Organisation ID",Pivots!$V$24,"Provider Group","Community Learning and Skills Provider","Effectiveness of leadership and management",2),0), IF($D$5=Pivots!$A$176,IFERROR(GETPIVOTDATA("Organisation ID",Pivots!$V$24,"Provider Group","16-19 Academy","Effectiveness of leadership and management",2),0), IF($D$5=Pivots!$A$177,IFERROR(GETPIVOTDATA("Organisation ID",Pivots!$V$24,"Provider Group","Dance and Drama College","Effectiveness of leadership and management",2),0), IF($D$5=Pivots!$A$178,IFERROR(GETPIVOTDATA("Organisation ID",Pivots!$V$24,"Provider Group","Higher Education Institution","Effectiveness of leadership and management",2),0), IF($D$5=Pivots!$A$179,IFERROR(SUM(GETPIVOTDATA("Organisation ID",Pivots!$V$24,"Provider Group","Next Step ILP","Effectiveness of leadership and management",2)+GETPIVOTDATA("Organisation ID",Pivots!$V$24,"Provider Group","Next Step Voluntary Organisation","Effectiveness of leadership and management",2)),0), IF($D$5=Pivots!$A$180,IFERROR(GETPIVOTDATA("Organisation ID",Pivots!$V$24,"Provider Group","Prisons","Effectiveness of leadership and management",2),0),0)))))))))) -> 0 | H12: =IF($D$5=Pivots!$A$171,IFERROR(GETPIVOTDATA("Organisation ID",Pivots!$V$24,"Effectiveness of leadership and management",3),0), IF($D$5=Pivots!$A$172,IFERROR(GETPIVOTDATA("Organisation ID",Pivots!$V$24,"Provider Group","College","Effectiveness of leadership and management",3),0), IF($D$5=Pivots!$A$173,IFERROR(GETPIVOTDATA("Organisation ID",Pivots!$V$24,"Provider Group","Independent Specialist College","Effectiveness of leadership and management",3),0), IF($D$5=Pivots!$A$174,IFERROR(GETPIVOTDATA("Organisation ID",Pivots!$V$24,"Provider Group","Independent learning Provider","Effectiveness of leadership and management",3),0), IF($D$5=Pivots!$A$175,IFERROR(GETPIVOTDATA("Organisation ID",Pivots!$V$24,"Provider Group","Community Learning and Skills Provider","Effectiveness of leadership and management",3),0), IF($D$5=Pivots!$A$176,IFERROR(GETPIVOTDATA("Organisation ID",Pivots!$V$24,"Provider Group","16-19 Academy","Effectiveness of leadership and management",3),0), IF($D$5=Pivots!$A$177,IFERROR(GETPIVOTDATA("Organisation ID",Pivots!$V$24,"Provider Group","Dance and Drama College","Effectiveness of leadership and management",3),0), IF($D$5=Pivots!$A$178,IFERROR(GETPIVOTDATA("Organisation ID",Pivots!$V$24,"Provider Group","Higher Education Institution","Effectiveness of leadership and management",3),0), IF($D$5=Pivots!$A$179,IFERROR(SUM(GETPIVOTDATA("Organisation ID",Pivots!$V$24,"Provider Group","Next Step ILP","Effectiveness of leadership and management",3)+GETPIVOTDATA("Organisation ID",Pivots!$V$24,"Provider Group","Next Step Voluntary Organisation","Effectiveness of leadership and management",3)),0), IF($D$5=Pivots!$A$180,IFERROR(GETPIVOTDATA("Organisation ID",Pivots!$V$24,"Provider Group","Prisons","Effectiveness of leadership and management",3),0),0)))))))))) -> 0 | I12: =IF($D$5=Pivots!$A$171,IFERROR(GETPIVOTDATA("Organisation ID",Pivots!$V$24,"Effectiveness of leadership and management",4),0), IF($D$5=Pivots!$A$172,IFERROR(GETPIVOTDATA("Organisation ID",Pivots!$V$24,"Provider Group","College","Effectiveness of leadership and management",4),0), IF($D$5=Pivots!$A$173,IFERROR(GETPIVOTDATA("Organisation ID",Pivots!$V$24,"Provider Group","Independent Specialist College","Effectiveness of leadership and management",4),0), IF($D$5=Pivots!$A$174,IFERROR(GETPIVOTDATA("Organisation ID",Pivots!$V$24,"Provider Group","Independent learning Provider","Effectiveness of leadership and management",4),0), IF($D$5=Pivots!$A$175,IFERROR(GETPIVOTDATA("Organisation ID",Pivots!$V$24,"Provider Group","Community Learning and Skills Provider","Effectiveness of leadership and management",4),0), IF($D$5=Pivots!$A$176,IFERROR(GETPIVOTDATA("Organisation ID",Pivots!$V$24,"Provider Group","16-19 Academy","Effectiveness of leadership and management",4),0), IF($D$5=Pivots!$A$177,IFERROR(GETPIVOTDATA("Organisation ID",Pivots!$V$24,"Provider Group","Dance and Drama College","Effectiveness of leadership and management",4),0), IF($D$5=Pivots!$A$178,IFERROR(GETPIVOTDATA("Organisation ID",Pivots!$V$24,"Provider Group","Higher Education Institution","Effectiveness of leadership and management",4),0), IF($D$5=Pivots!$A$179,IFERROR(SUM(GETPIVOTDATA("Organisation ID",Pivots!$V$24,"Provider Group","Next Step ILP","Effectiveness of leadership and management",4)+GETPIVOTDATA("Organisation ID",Pivots!$V$24,"Provider Group","Next Step Voluntary Organisation","Effectiveness of leadership and management",4)),0), IF($D$5=Pivots!$A$180,IFERROR(GETPIVOTDATA("Organisation ID",Pivots!$V$24,"Provider Group","Prisons","Effectiveness of leadership and management",4),0),0)))))))))) -> 0 | K12: =IFERROR(F12/$D12*100,0) -> 0 | L12: 0 | M12: 0 | N12: 0
B13: Quality of teaching, learning and assessment | D13: =SUM(F13:I13) -> 0 | F13: =IF($D$5=Pivots!$A$171,IFERROR(GETPIVOTDATA("Organisation ID",Pivots!$V$42,"Quality of teaching, learning and assessment",1),0), IF($D$5=Pivots!$A$172,IFERROR(GETPIVOTDATA("Organisation ID",Pivots!$V$42,"Provider Group","College","Quality of teaching, learning and assessment",1),0), IF($D$5=Pivots!$A$173,IFERROR(GETPIVOTDATA("Organisation ID",Pivots!$V$42,"Provider Group","Independent Specialist College","Quality of teaching, learning and assessment",1),0), IF($D$5=Pivots!$A$174,IFERROR(GETPIVOTDATA("Organisation ID",Pivots!$V$42,"Provider Group","Independent learning Provider","Quality of teaching, learning and assessment",1),0), IF($D$5=Pivots!$A$175,IFERROR(GETPIVOTDATA("Organisation ID",Pivots!$V$42,"Provider Group","Community Learning and Skills Provider","Quality of teaching, learning and assessment",1),0), IF($D$5=Pivots!$A$176,IFERROR(GETPIVOTDATA("Organisation ID",Pivots!$V$42,"Provider Group","16-19 Academy","Quality of teaching, learning and assessment",1),0), IF($D$5=Pivots!$A$177,IFERROR(GETPIVOTDATA("Organisation ID",Pivots!$V$42,"Provider Group","Dance and Drama College","Quality of teaching, learning and assessment",1),0), IF($D$5=Pivots!$A$178,IFERROR(GETPIVOTDATA("Organisation ID",Pivots!$V$42,"Provider Group","Higher Education Institution","Quality of teaching, learning and assessment",1),0), IF($D$5=Pivots!$A$179,IFERROR(SUM(GETPIVOTDATA("Organisation ID",Pivots!$V$42,"Provider Group","Next Step ILP","Quality of teaching, learning and assessment",1)+GETPIVOTDATA("Organisation ID",Pivots!$V$42,"Provider Group","Next Step Voluntary Organisation","Quality of teaching, learning and assessment",1)),0), IF($D$5=Pivots!$A$180,IFERROR(GETPIVOTDATA("Organisation ID",Pivots!$V$42,"Provider Group","Prisons","Quality of teaching, learning and assessment",1),0),0)))))))))) -> 0 | G13: =IF($D$5=Pivots!$A$171,IFERROR(GETPIVOTDATA("Organisation ID",Pivots!$V$42,"Quality of teaching, learning and assessment",2),0), IF($D$5=Pivots!$A$172,IFERROR(GETPIVOTDATA("Organisation ID",Pivots!$V$42,"Provider Group","College","Quality of teaching, learning and assessment",2),0), IF($D$5=Pivots!$A$173,IFERROR(GETPIVOTDATA("Organisation ID",Pivots!$V$42,"Provider Group","Independent Specialist College","Quality of teaching, learning and assessment",2),0), IF($D$5=Pivots!$A$174,IFERROR(GETPIVOTDATA("Organisation ID",Pivots!$V$42,"Provider Group","Independent learning Provider","Quality of teaching, learning and assessment",2),0), IF($D$5=Pivots!$A$175,IFERROR(GETPIVOTDATA("Organisation ID",Pivots!$V$42,"Provider Group","Community Learning and Skills Provider","Quality of teaching, learning and assessment",2),0), IF($D$5=Pivots!$A$176,IFERROR(GETPIVOTDATA("Organisation ID",Pivots!$V$42,"Provider Group","16-19 Academy","Quality of teaching, learning and assessment",2),0), IF($D$5=Pivots!$A$177,IFERROR(GETPIVOTDATA("Organisation ID",Pivots!$V$42,"Provider Group","Dance and Drama College","Quality of teaching, learning and assessment",2),0), IF($D$5=Pivots!$A$178,IFERROR(GETPIVOTDATA("Organisation ID",Pivots!$V$42,"Provider Group","Higher Education Institution","Quality of teaching, learning and assessment",2),0), IF($D$5=Pivots!$A$179,IFERROR(SUM(GETPIVOTDATA("Organisation ID",Pivots!$V$42,"Provider Group","Next Step ILP","Quality of teaching, learning and assessment",2)+GETPIVOTDATA("Organisation ID",Pivots!$V$42,"Provider Group","Next Step Voluntary Organisation","Quality of teaching, learning and assessment",2)),0), IF($D$5=Pivots!$A$180,IFERROR(GETPIVOTDATA("Organisation ID",Pivots!$V$42,"Provider Group","Prisons","Quality of teaching, learning and assessment",2),0),0)))))))))) -> 0 | H13: =IF($D$5=Pivots!$A$171,IFERROR(GETPIVOTDATA("Organisation ID",Pivots!$V$42,"Quality of teaching, learning and assessment",3),0), IF($D$5=Pivots!$A$172,IFERROR(GETPIVOTDATA("Organisation ID",Pivots!$V$42,"Provider Group","College","Quality of teaching, learning and assessment",3),0), IF($D$5=Pivots!$A$173,IFERROR(GETPIVOTDATA("Organisation ID",Pivots!$V$42,"Provider Group","Independent Specialist College","Quality of teaching, learning and assessment",3),0), IF($D$5=Pivots!$A$174,IFERROR(GETPIVOTDATA("Organisation ID",Pivots!$V$42,"Provider Group","Independent learning Provider","Quality of teaching, learning and assessment",3),0), IF($D$5=Pivots!$A$175,IFERROR(GETPIVOTDATA("Organisation ID",Pivots!$V$42,"Provider Group","Community Learning and Skills Provider","Quality of teaching, learning and assessment",3),0), IF($D$5=Pivots!$A$176,IFERROR(GETPIVOTDATA("Organisation ID",Pivots!$V$42,"Provider Group","16-19 Academy","Quality of teaching, learning and assessment",3),0), IF($D$5=Pivots!$A$177,IFERROR(GETPIVOTDATA("Organisation ID",Pivots!$V$42,"Provider Group","Dance and Drama College","Quality of teaching, learning and assessment",3),0), IF($D$5=Pivots!$A$178,IFERROR(GETPIVOTDATA("Organisation ID",Pivots!$V$42,"Provider Group","Higher Education Institution","Quality of teaching, learning and assessment",3),0), IF($D$5=Pivots!$A$179,IFERROR(SUM(GETPIVOTDATA("Organisation ID",Pivots!$V$42,"Provider Group","Next Step ILP","Quality of teaching, learning and assessment",3)+GETPIVOTDATA("Organisation ID",Pivots!$V$42,"Provider Group","Next Step Voluntary Organisation","Quality of teaching, learning and assessment",3)),0), IF($D$5=Pivots!$A$180,IFERROR(GETPIVOTDATA("Organisation ID",Pivots!$V$42,"Provider Group","Prisons","Quality of teaching, learning and assessment",3),0),0)))))))))) -> 0 | I13: =IF($D$5=Pivots!$A$171,IFERROR(GETPIVOTDATA("Organisation ID",Pivots!$V$42,"Quality of teaching, learning and assessment",4),0), IF($D$5=Pivots!$A$172,IFERROR(GETPIVOTDATA("Organisation ID",Pivots!$V$42,"Provider Group","College","Quality of teaching, learning and assessment",4),0), IF($D$5=Pivots!$A$173,IFERROR(GETPIVOTDATA("Organisation ID",Pivots!$V$42,"Provider Group","Independent Specialist College","Quality of teaching, learning and assessment",4),0), IF($D$5=Pivots!$A$174,IFERROR(GETPIVOTDATA("Organisation ID",Pivots!$V$42,"Provider Group","Independent learning Provider","Quality of teaching, learning and assessment",4),0), IF($D$5=Pivots!$A$175,IFERROR(GETPIVOTDATA("Organisation ID",Pivots!$V$42,"Provider Group","Community Learning and Skills Provider","Quality of teaching, learning and assessment",4),0), IF($D$5=Pivots!$A$176,IFERROR(GETPIVOTDATA("Organisation ID",Pivots!$V$42,"Provider Group","16-19 Academy","Quality of teaching, learning and assessment",4),0), IF($D$5=Pivots!$A$177,IFERROR(GETPIVOTDATA("Organisation ID",Pivots!$V$42,"Provider Group","Dance and Drama College","Quality of teaching, learning and assessment",4),0), IF($D$5=Pivots!$A$178,IFERROR(GETPIVOTDATA("Organisation ID",Pivots!$V$42,"Provider Group","Higher Education Institution","Quality of teaching, learning and assessment",4),0), IF($D$5=Pivots!$A$179,IFERROR(SUM(GETPIVOTDATA("Organisation ID",Pivots!$V$42,"Provider Group","Next Step ILP","Quality of teaching, learning and assessment",4)+GETPIVOTDATA("Organisation ID",Pivots!$V$42,"Provider Group","Next Step Voluntary Organisation","Quality of teaching, learning and assessment",4)),0), IF($D$5=Pivots!$A$180,IFERROR(GETPIVOTDATA("Organisation ID",Pivots!$V$42,"Provider Group","Prisons","Quality of teaching, learning and assessment",4),0),0)))))))))) -> 0 | K13: =IFERROR(F13/$D13*100,0) -> 0 | L13: =IFERROR(G13/$D13*100,0) -> 0 | M13: =IFERROR(H13/$D13*100,0) -> 0 | N13: =IFERROR(I13/$D13*100,0) -> 0
B14: Personal development, behaviour and welfare | D14: =SUM(F14:I14) -> 0 | F14: =IF($D$5=Pivots!$A$171,IFERROR(GETPIVOTDATA("Organisation ID",Pivots!$V$60,"Personal development, behaviour and welfare",1),0), IF($D$5=Pivots!$A$172,IFERROR(GETPIVOTDATA("Organisation ID",Pivots!$V$60,"Provider Group","College","Personal development, behaviour and welfare",1),0), IF($D$5=Pivots!$A$173,IFERROR(GETPIVOTDATA("Organisation ID",Pivots!$V$60,"Provider Group","Independent Specialist College","Personal development, behaviour and welfare",1),0), IF($D$5=Pivots!$A$174,IFERROR(GETPIVOTDATA("Organisation ID",Pivots!$V$60,"Provider Group","Independent learning Provider","Personal development, behaviour and welfare",1),0), IF($D$5=Pivots!$A$175,IFERROR(GETPIVOTDATA("Organisation ID",Pivots!$V$60,"Provider Group","Community Learning and Skills Provider","Personal development, behaviour and welfare",1),0), IF($D$5=Pivots!$A$176,IFERROR(GETPIVOTDATA("Organisation ID",Pivots!$V$60,"Provider Group","16-19 Academy","Personal development, behaviour and welfare",1),0), IF($D$5=Pivots!$A$177,IFERROR(GETPIVOTDATA("Organisation ID",Pivots!$V$60,"Provider Group","Dance and Drama College","Personal development, behaviour and welfare",1),0), IF($D$5=Pivots!$A$178,IFERROR(GETPIVOTDATA("Organisation ID",Pivots!$V$60,"Provider Group","Higher Education Institution","Personal development, behaviour and welfare",1),0), IF($D$5=Pivots!$A$179,IFERROR(SUM(GETPIVOTDATA("Organisation ID",Pivots!$V$60,"Provider Group","Next Step ILP","Personal development, behaviour and welfare",1)+GETPIVOTDATA("Organisation ID",Pivots!$V$60,"Provider Group","Next Step Voluntary Organisation","Personal development, behaviour and welfare",1)),0), IF($D$5=Pivots!$A$180,IFERROR(GETPIVOTDATA("Organisation ID",Pivots!$V$60,"Provider Group","Prisons","Personal development, behaviour and welfare",1),0),0)))))))))) -> 0 | G14: =IF($D$5=Pivots!$A$171,IFERROR(GETPIVOTDATA("Organisation ID",Pivots!$V$60,"Personal development, behaviour and welfare",2),0), IF($D$5=Pivots!$A$172,IFERROR(GETPIVOTDATA("Organisation ID",Pivots!$V$60,"Provider Group","College","Personal development, behaviour and welfare",2),0), IF($D$5=Pivots!$A$173,IFERROR(GETPIVOTDATA("Organisation ID",Pivots!$V$60,"Provider Group","Independent Specialist College","Personal development, behaviour and welfare",2),0), IF($D$5=Pivots!$A$174,IFERROR(GETPIVOTDATA("Organisation ID",Pivots!$V$60,"Provider Group","Independent learning Provider","Personal development, behaviour and welfare",2),0), IF($D$5=Pivots!$A$175,IFERROR(GETPIVOTDATA("Organisation ID",Pivots!$V$60,"Provider Group","Community Learning and Skills Provider","Personal development, behaviour and welfare",2),0), IF($D$5=Pivots!$A$176,IFERROR(GETPIVOTDATA("Organisation ID",Pivots!$V$60,"Provider Group","16-19 Academy","Personal development, behaviour and welfare",2),0), IF($D$5=Pivots!$A$177,IFERROR(GETPIVOTDATA("Organisation ID",Pivots!$V$60,"Provider Group","Dance and Drama College","Personal development, behaviour and welfare",2),0), IF($D$5=Pivots!$A$178,IFERROR(GETPIVOTDATA("Organisation ID",Pivots!$V$60,"Provider Group","Higher Education Institution","Personal development, behaviour and welfare",2),0), IF($D$5=Pivots!$A$179,IFERROR(SUM(GETPIVOTDATA("Organisation ID",Pivots!$V$60,"Provider Group","Next Step ILP","Personal development, behaviour and welfare",2)+GETPIVOTDATA("Organisation ID",Pivots!$V$60,"Provider Group","Next Step Voluntary Organisation","Personal development, behaviour and welfare",2)),0), IF($D$5=Pivots!$A$180,IFERROR(GETPIVOTDATA("Organisation ID",Pivots!$V$60,"Provider Group","Prisons","Personal development, behaviour and welfare",2),0),0)))))))))) -> 0 | H14: =IF($D$5=Pivots!$A$171,IFERROR(GETPIVOTDATA("Organisation ID",Pivots!$V$60,"Personal development, behaviour and welfare",3),0), IF($D$5=Pivots!$A$172,IFERROR(GETPIVOTDATA("Organisation ID",Pivots!$V$60,"Provider Group","College","Personal development, behaviour and welfare",3),0), IF($D$5=Pivots!$A$173,IFERROR(GETPIVOTDATA("Organisation ID",Pivots!$V$60,"Provider Group","Independent Specialist College","Personal development, behaviour and welfare",3),0), IF($D$5=Pivots!$A$174,IFERROR(GETPIVOTDATA("Organisation ID",Pivots!$V$60,"Provider Group","Independent learning Provider","Personal development, behaviour and welfare",3),0), IF($D$5=Pivots!$A$175,IFERROR(GETPIVOTDATA("Organisation ID",Pivots!$V$60,"Provider Group","Community Learning and Skills Provider","Personal development, behaviour and welfare",3),0), IF($D$5=Pivots!$A$176,IFERROR(GETPIVOTDATA("Organisation ID",Pivots!$V$60,"Provider Group","16-19 Academy","Personal development, behaviour and welfare",3),0), IF($D$5=Pivots!$A$177,IFERROR(GETPIVOTDATA("Organisation ID",Pivots!$V$60,"Provider Group","Dance and Drama College","Personal development, behaviour and welfare",3),0), IF($D$5=Pivots!$A$178,IFERROR(GETPIVOTDATA("Organisation ID",Pivots!$V$60,"Provider Group","Higher Education Institution","Personal development, behaviour and welfare",3),0), IF($D$5=Pivots!$A$179,IFERROR(SUM(GETPIVOTDATA("Organisation ID",Pivots!$V$60,"Provider Group","Next Step ILP","Personal development, behaviour and welfare",3)+GETPIVOTDATA("Organisation ID",Pivots!$V$60,"Provider Group","Next Step Voluntary Organisation","Personal development, behaviour and welfare",3)),0), IF($D$5=Pivots!$A$180,IFERROR(GETPIVOTDATA("Organisation ID",Pivots!$V$60,"Provider Group","Prisons","Personal development, behaviour and welfare",3),0),0)))))))))) -> 0 | I14: =IF($D$5=Pivots!$A$171,IFERROR(GETPIVOTDATA("Organisation ID",Pivots!$V$60,"Personal development, behaviour and welfare",4),0), IF($D$5=Pivots!$A$172,IFERROR(GETPIVOTDATA("Organisation ID",Pivots!$V$60,"Provider Group","College","Personal development, behaviour and welfare",4),0), IF($D$5=Pivots!$A$173,IFERROR(GETPIVOTDATA("Organisation ID",Pivots!$V$60,"Provider Group","Independent Specialist College","Personal development, behaviour and welfare",4),0), IF($D$5=Pivots!$A$174,IFERROR(GETPIVOTDATA("Organisation ID",Pivots!$V$60,"Provider Group","Independent learning Provider","Personal development, behaviour and welfare",4),0), IF($D$5=Pivots!$A$175,IFERROR(GETPIVOTDATA("Organisation ID",Pivots!$V$60,"Provider Group","Community Learning and Skills Provider","Personal development, behaviour and welfare",4),0), IF($D$5=Pivots!$A$176,IFERROR(GETPIVOTDATA("Organisation ID",Pivots!$V$60,"Provider Group","16-19 Academy","Personal development, behaviour and welfare",4),0), IF($D$5=Pivots!$A$177,IFERROR(GETPIVOTDATA("Organisation ID",Pivots!$V$60,"Provider Group","Dance and Drama College","Personal development, behaviour and welfare",4),0), IF($D$5=Pivots!$A$178,IFERROR(GETPIVOTDATA("Organisation ID",Pivots!$V$60,"Provider Group","Higher Education Institution","Personal development, behaviour and welfare",4),0), IF($D$5=Pivots!$A$179,IFERROR(SUM(GETPIVOTDATA("Organisation ID",Pivots!$V$60,"Provider Group","Next Step ILP","Personal development, behaviour and welfare",4)+GETPIVOTDATA("Organisation ID",Pivots!$V$60,"Provider Group","Next Step Voluntary Organisation","Personal development, behaviour and welfare",4)),0), IF($D$5=Pivots!$A$180,IFERROR(GETPIVOTDATA("Organisation ID",Pivots!$V$60,"Provider Group","Prisons","Personal development, behaviour and welfare",4),0),0)))))))))) -> 0 | K14: 0 | L14: 0 | M14: 0 | N14: 0
B15: Outcomes for learners | D15: 0 | F15: =IF($D$5=Pivots!$A$171,IFERROR(GETPIVOTDATA("Organisation ID",Pivots!$V$78,"Outcomes for learners",1),0), IF($D$5=Pivots!$A$172,IFERROR(GETPIVOTDATA("Organisation ID",Pivots!$V$78,"Provider Group","College","Outcomes for learners",1),0), IF($D$5=Pivots!$A$173,IFERROR(GETPIVOTDATA("Organisation ID",Pivots!$V$78,"Provider Group","Independent Specialist College","Outcomes for learners",1),0), IF($D$5=Pivots!$A$174,IFERROR(GETPIVOTDATA("Organisation ID",Pivots!$V$78,"Provider Group","Independent learning Provider","Outcomes for learners",1),0), IF($D$5=Pivots!$A$175,IFERROR(GETPIVOTDATA("Organisation ID",Pivots!$V$78,"Provider Group","Community Learning and Skills Provider","Outcomes for learners",1),0), IF($D$5=Pivots!$A$176,IFERROR(GETPIVOTDATA("Organisation ID",Pivots!$V$78,"Provider Group","16-19 Academy","Outcomes for learners",1),0), IF($D$5=Pivots!$A$177,IFERROR(GETPIVOTDATA("Organisation ID",Pivots!$V$78,"Provider Group","Dance and Drama College","Outcomes for learners",1),0), IF($D$5=Pivots!$A$178,IFERROR(GETPIVOTDATA("Organisation ID",Pivots!$V$78,"Provider Group","Higher Education Institution","Outcomes for learners",1),0), IF($D$5=Pivots!$A$179,IFERROR(SUM(GETPIVOTDATA("Organisation ID",Pivots!$V$78,"Provider Group","Next Step ILP","Outcomes for learners",1)+GETPIVOTDATA("Organisation ID",Pivots!$V$78,"Provider Group","Next Step Voluntary Organisation","Outcomes for learners",1)),0), IF($D$5=Pivots!$A$180,IFERROR(GETPIVOTDATA("Organisation ID",Pivots!$V$78,"Provider Group","Prisons","Outcomes for learners",1),0),0)))))))))) -> 0 | G15: =IF($D$5=Pivots!$A$171,IFERROR(GETPIVOTDATA("Organisation ID",Pivots!$V$78,"Outcomes for learners",2),0), IF($D$5=Pivots!$A$172,IFERROR(GETPIVOTDATA("Organisation ID",Pivots!$V$78,"Provider Group","College","Outcomes for learners",2),0), IF($D$5=Pivots!$A$173,IFERROR(GETPIVOTDATA("Organisation ID",Pivots!$V$78,"Provider Group","Independent Specialist College","Outcomes for learners",2),0), IF($D$5=Pivots!$A$174,IFERROR(GETPIVOTDATA("Organisation ID",Pivots!$V$78,"Provider Group","Independent learning Provider","Outcomes for learners",2),0), IF($D$5=Pivots!$A$175,IFERROR(GETPIVOTDATA("Organisation ID",Pivots!$V$78,"Provider Group","Community Learning and Skills Provider","Outcomes for learners",2),0), IF($D$5=Pivots!$A$176,IFERROR(GETPIVOTDATA("Organisation ID",Pivots!$V$78,"Provider Group","16-19 Academy","Outcomes for learners",2),0), IF($D$5=Pivots!$A$177,IFERROR(GETPIVOTDATA("Organisation ID",Pivots!$V$78,"Provider Group","Dance and Drama College","Outcomes for learners",2),0), IF($D$5=Pivots!$A$178,IFERROR(GETPIVOTDATA("Organisation ID",Pivots!$V$78,"Provider Group","Higher Education Institution","Outcomes for learners",2),0), IF($D$5=Pivots!$A$179,IFERROR(SUM(GETPIVOTDATA("Organisation ID",Pivots!$V$78,"Provider Group","Next Step ILP","Outcomes for learners",2)+GETPIVOTDATA("Organisation ID",Pivots!$V$78,"Provider Group","Next Step Voluntary Organisation","Outcomes for learners",2)),0), IF($D$5=Pivots!$A$180,IFERROR(GETPIVOTDATA("Organisation ID",Pivots!$V$78,"Provider Group","Prisons","Outcomes for learners",2),0),0)))))))))) -> 0 | H15: =IF($D$5=Pivots!$A$171,IFERROR(GETPIVOTDATA("Organisation ID",Pivots!$V$78,"Outcomes for learners",3),0), IF($D$5=Pivots!$A$172,IFERROR(GETPIVOTDATA("Organisation ID",Pivots!$V$78,"Provider Group","College","Outcomes for learners",3),0), IF($D$5=Pivots!$A$173,IFERROR(GETPIVOTDATA("Organisation ID",Pivots!$V$78,"Provider Group","Independent Specialist College","Outcomes for learners",3),0), IF($D$5=Pivots!$A$174,IFERROR(GETPIVOTDATA("Organisation ID",Pivots!$V$78,"Provider Group","Independent learning Provider","Outcomes for learners",3),0), IF($D$5=Pivots!$A$175,IFERROR(GETPIVOTDATA("Organisation ID",Pivots!$V$78,"Provider Group","Community Learning and Skills Provider","Outcomes for learners",3),0), IF($D$5=Pivots!$A$176,IFERROR(GETPIVOTDATA("Organisation ID",Pivots!$V$78,"Provider Group","16-19 Academy","Outcomes for learners",3),0), IF($D$5=Pivots!$A$177,IFERROR(GETPIVOTDATA("Organisation ID",Pivots!$V$78,"Provider Group","Dance and Drama College","Outcomes for learners",3),0), IF($D$5=Pivots!$A$178,IFERROR(GETPIVOTDATA("Organisation ID",Pivots!$V$78,"Provider Group","Higher Education Institution","Outcomes for learners",3),0), IF($D$5=Pivots!$A$179,IFERROR(SUM(GETPIVOTDATA("Organisation ID",Pivots!$V$78,"Provider Group","Next Step ILP","Outcomes for learners",3)+GETPIVOTDATA("Organisation ID",Pivots!$V$78,"Provider Group","Next Step Voluntary Organisation","Outcomes for learners",3)),0), IF($D$5=Pivots!$A$180,IFERROR(GETPIVOTDATA("Organisation ID",Pivots!$V$78,"Provider Group","Prisons","Outcomes for learners",3),0),0)))))))))) -> 0 | I15: =IF($D$5=Pivots!$A$171,IFERROR(GETPIVOTDATA("Organisation ID",Pivots!$V$78,"Outcomes for learners",4),0), IF($D$5=Pivots!$A$172,IFERROR(GETPIVOTDATA("Organisation ID",Pivots!$V$78,"Provider Group","College","Outcomes for learners",4),0), IF($D$5=Pivots!$A$173,IFERROR(GETPIVOTDATA("Organisation ID",Pivots!$V$78,"Provider Group","Independent Specialist College","Outcomes for learners",4),0), IF($D$5=Pivots!$A$174,IFERROR(GETPIVOTDATA("Organisation ID",Pivots!$V$78,"Provider Group","Independent learning Provider","Outcomes for learners",4),0), IF($D$5=Pivots!$A$175,IFERROR(GETPIVOTDATA("Organisation ID",Pivots!$V$78,"Provider Group","Community Learning and Skills Provider","Outcomes for learners",4),0), IF($D$5=Pivots!$A$176,IFERROR(GETPIVOTDATA("Organisation ID",Pivots!$V$78,"Provider Group","16-19 Academy","Outcomes for learners",4),0), IF($D$5=Pivots!$A$177,IFERROR(GETPIVOTDATA("Organisation ID",Pivots!$V$78,"Provider Group","Dance and Drama College","Outcomes for learners",4),0), IF($D$5=Pivots!$A$178,IFERROR(GETPIVOTDATA("Organisation ID",Pivots!$V$78,"Provider Group","Higher Education Institution","Outcomes for learners",4),0), IF($D$5=Pivots!$A$179,IFERROR(SUM(GETPIVOTDATA("Organisation ID",Pivots!$V$78,"Provider Group","Next Step ILP","Outcomes for learners",4)+GETPIVOTDATA("Organisation ID",Pivots!$V$78,"Provider Group","Next Step Voluntary Organisation","Outcomes for learners",4)),0), IF($D$5=Pivots!$A$180,IFERROR(GETPIVOTDATA("Organisation ID",Pivots!$V$78,"Provider Group","Prisons","Outcomes for learners",4),0),0)))))))))) -> 0 | K15: 0 | L15: 0 | M15: 0 | N15: 0
B16: 16-19 study programmes | D16: 0 | F16: =IF($D$5=Pivots!$A$171,IFERROR(GETPIVOTDATA("Organisation ID",Pivots!$V$96,"16 to 19 study programmes",1),0), IF($D$5=Pivots!$A$172,IFERROR(GETPIVOTDATA("Organisation ID",Pivots!$V$96,"Provider Group","College","16 to 19 study programmes",1),0), IF($D$5=Pivots!$A$173,IFERROR(GETPIVOTDATA("Organisation ID",Pivots!$V$96,"Provider Group","Independent Specialist College","16 to 19 study programmes",1),0), IF($D$5=Pivots!$A$174,IFERROR(GETPIVOTDATA("Organisation ID",Pivots!$V$96,"Provider Group","Independent learning Provider","16 to 19 study programmes",1),0), IF($D$5=Pivots!$A$175,IFERROR(GETPIVOTDATA("Organisation ID",Pivots!$V$96,"Provider Group","Community Learning and Skills Provider","16 to 19 study programmes",1),0), IF($D$5=Pivots!$A$176,IFERROR(GETPIVOTDATA("Organisation ID",Pivots!$V$96,"Provider Group","16-19 Academy","16 to 19 study programmes",1),0), IF($D$5=Pivots!$A$177,IFERROR(GETPIVOTDATA("Organisation ID",Pivots!$V$96,"Provider Group","Dance and Drama College","16 to 19 study programmes",1),0), IF($D$5=Pivots!$A$178,IFERROR(GETPIVOTDATA("Organisation ID",Pivots!$V$96,"Provider Group","Higher Education Institution","16 to 19 study programmes",1),0), IF($D$5=Pivots!$A$179,IFERROR(SUM(GETPIVOTDATA("Organisation ID",Pivots!$V$96,"Provider Group","Next Step ILP","16 to 19 study programmes",1)+GETPIVOTDATA("Organisation ID",Pivots!$V$96,"Provider Group","Next Step Voluntary Organisation","16 to 19 study programmes",1)),0), IF($D$5=Pivots!$A$180,IFERROR(GETPIVOTDATA("Organisation ID",Pivots!$V$96,"Provider Group","Prisons","16 to 19 study programmes",1),0),0)))))))))) -> 0 | G16: =IF($D$5=Pivots!$A$171,IFERROR(GETPIVOTDATA("Organisation ID",Pivots!$V$96,"16 to 19 study programmes",2),0), IF($D$5=Pivots!$A$172,IFERROR(GETPIVOTDATA("Organisation ID",Pivots!$V$96,"Provider Group","College","16 to 19 study programmes",2),0), IF($D$5=Pivots!$A$173,IFERROR(GETPIVOTDATA("Organisation ID",Pivots!$V$96,"Provider Group","Independent Specialist College","16 to 19 study programmes",2),0), IF($D$5=Pivots!$A$174,IFERROR(GETPIVOTDATA("Organisation ID",Pivots!$V$96,"Provider Group","Independent learning Provider","16 to 19 study programmes",2),0), IF($D$5=Pivots!$A$175,IFERROR(GETPIVOTDATA("Organisation ID",Pivots!$V$96,"Provider Group","Community Learning and Skills Provider","16 to 19 study programmes",2),0), IF($D$5=Pivots!$A$176,IFERROR(GETPIVOTDATA("Organisation ID",Pivots!$V$96,"Provider Group","16-19 Academy","16 to 19 study programmes",2),0), IF($D$5=Pivots!$A$177,IFERROR(GETPIVOTDATA("Organisation ID",Pivots!$V$96,"Provider Group","Dance and Drama College","16 to 19 study programmes",2),0), IF($D$5=Pivots!$A$178,IFERROR(GETPIVOTDATA("Organisation ID",Pivots!$V$96,"Provider Group","Higher Education Institution","16 to 19 study programmes",2),0), IF($D$5=Pivots!$A$179,IFERROR(SUM(GETPIVOTDATA("Organisation ID",Pivots!$V$96,"Provider Group","Next Step ILP","16 to 19 study programmes",2)+GETPIVOTDATA("Organisation ID",Pivots!$V$96,"Provider Group","Next Step Voluntary Organisation","16 to 19 study programmes",2)),0), IF($D$5=Pivots!$A$180,IFERROR(GETPIVOTDATA("Organisation ID",Pivots!$V$96,"Provider Group","Prisons","16 to 19 study programmes",2),0),0)))))))))) -> 0 | H16: =IF($D$5=Pivots!$A$171,IFERROR(GETPIVOTDATA("Organisation ID",Pivots!$V$96,"16 to 19 study programmes",3),0), IF($D$5=Pivots!$A$172,IFERROR(GETPIVOTDATA("Organisation ID",Pivots!$V$96,"Provider Group","College","16 to 19 study programmes",3),0), IF($D$5=Pivots!$A$173,IFERROR(GETPIVOTDATA("Organisation ID",Pivots!$V$96,"Provider Group","Independent Specialist College","16 to 19 study programmes",3),0), IF($D$5=Pivots!$A$174,IFERROR(GETPIVOTDATA("Organisation ID",Pivots!$V$96,"Provider Group","Independent learning Provider","16 to 19 study programmes",3),0), IF($D$5=Pivots!$A$175,IFERROR(GETPIVOTDATA("Organisation ID",Pivots!$V$96,"Provider Group","Community Learning and Skills Provider","16 to 19 study programmes",3),0), IF($D$5=Pivots!$A$176,IFERROR(GETPIVOTDATA("Organisation ID",Pivots!$V$96,"Provider Group","16-19 Academy","16 to 19 study programmes",3),0), IF($D$5=Pivots!$A$177,IFERROR(GETPIVOTDATA("Organisation ID",Pivots!$V$96,"Provider Group","Dance and Drama College","16 to 19 study programmes",3),0), IF($D$5=Pivots!$A$178,IFERROR(GETPIVOTDATA("Organisation ID",Pivots!$V$96,"Provider Group","Higher Education Institution","16 to 19 study programmes",3),0), IF($D$5=Pivots!$A$179,IFERROR(SUM(GETPIVOTDATA("Organisation ID",Pivots!$V$96,"Provider Group","Next Step ILP","16 to 19 study programmes",3)+GETPIVOTDATA("Organisation ID",Pivots!$V$96,"Provider Group","Next Step Voluntary Organisation","16 to 19 study programmes",3)),0), IF($D$5=Pivots!$A$180,IFERROR(GETPIVOTDATA("Organisation ID",Pivots!$V$96,"Provider Group","Prisons","16 to 19 study programmes",3),0),0)))))))))) -> 0 | I16: =IF($D$5=Pivots!$A$171,IFERROR(GETPIVOTDATA("Organisation ID",Pivots!$V$96,"16 to 19 study programmes",4),0), IF($D$5=Pivots!$A$172,IFERROR(GETPIVOTDATA("Organisation ID",Pivots!$V$96,"Provider Group","College","16 to 19 study programmes",4),0), IF($D$5=Pivots!$A$173,IFERROR(GETPIVOTDATA("Organisation ID",Pivots!$V$96,"Provider Group","Independent Specialist College","16 to 19 study programmes",4),0), IF($D$5=Pivots!$A$174,IFERROR(GETPIVOTDATA("Organisation ID",Pivots!$V$96,"Provider Group","Independent learning Provider","16 to 19 study programmes",4),0), IF($D$5=Pivots!$A$175,IFERROR(GETPIVOTDATA("Organisation ID",Pivots!$V$96,"Provider Group","Community Learning and Skills Provider","16 to 19 study programmes",4),0), IF($D$5=Pivots!$A$176,IFERROR(GETPIVOTDATA("Organisation ID",Pivots!$V$96,"Provider Group","16-19 Academy","16 to 19 study programmes",4),0), IF($D$5=Pivots!$A$177,IFERROR(GETPIVOTDATA("Organisation ID",Pivots!$V$96,"Provider Group","Dance and Drama College","16 to 19 study programmes",4),0), IF($D$5=Pivots!$A$178,IFERROR(GETPIVOTDATA("Organisation ID",Pivots!$V$96,"Provider Group","Higher Education Institution","16 to 19 study programmes",4),0), IF($D$5=Pivots!$A$179,IFERROR(SUM(GETPIVOTDATA("Organisation ID",Pivots!$V$96,"Provider Group","Next Step ILP","16 to 19 study programmes",4)+GETPIVOTDATA("Organisation ID",Pivots!$V$96,"Provider Group","Next Step Voluntary Organisation","16 to 19 study programmes",4)),0), IF($D$5=Pivots!$A$180,IFERROR(GETPIVOTDATA("Organisation ID",Pivots!$V$96,"Provider Group","Prisons","16 to 19 study programmes",4),0),0)))))))))) -> 0 | K16: 0 | L16: 0 | M16: 0 | N16: 0
B17: Adult learning programmes | D17: 0 | F17: =IF($D$5=Pivots!$A$171,IFERROR(GETPIVOTDATA("Organisation ID",Pivots!$V$114,"Adult learning programmes",1),0), IF($D$5=Pivots!$A$172,IFERROR(GETPIVOTDATA("Organisation ID",Pivots!$V$114,"Provider Group","College","Adult learning programmes",1),0), IF($D$5=Pivots!$A$173,IFERROR(GETPIVOTDATA("Organisation ID",Pivots!$V$114,"Provider Group","Independent Specialist College","Adult learning programmes",1),0), IF($D$5=Pivots!$A$174,IFERROR(GETPIVOTDATA("Organisation ID",Pivots!$V$114,"Provider Group","Independent learning Provider","Adult learning programmes",1),0), IF($D$5=Pivots!$A$175,IFERROR(GETPIVOTDATA("Organisation ID",Pivots!$V$114,"Provider Group","Community Learning and Skills Provider","Adult learning programmes",1),0), IF($D$5=Pivots!$A$176,IFERROR(GETPIVOTDATA("Organisation ID",Pivots!$V$114,"Provider Group","16-19 Academy","Adult learning programmes",1),0), IF($D$5=Pivots!$A$177,IFERROR(GETPIVOTDATA("Organisation ID",Pivots!$V$114,"Provider Group","Dance and Drama College","Adult learning programmes",1),0), IF($D$5=Pivots!$A$178,IFERROR(GETPIVOTDATA("Organisation ID",Pivots!$V$114,"Provider Group","Higher Education Institution","Adult learning programmes",1),0), IF($D$5=Pivots!$A$179,IFERROR(SUM(GETPIVOTDATA("Organisation ID",Pivots!$V$114,"Provider Group","Next Step ILP","Adult learning programmes",1)+GETPIVOTDATA("Organisation ID",Pivots!$V$114,"Provider Group","Next Step Voluntary Organisation","Adult learning programmes",1)),0), IF($D$5=Pivots!$A$180,IFERROR(GETPIVOTDATA("Organisation ID",Pivots!$V$114,"Provider Group","Prisons","Adult learning programmes",1),0),0)))))))))) -> 0 | G17: =IF($D$5=Pivots!$A$171,IFERROR(GETPIVOTDATA("Organisation ID",Pivots!$V$114,"Adult learning programmes",2),0), IF($D$5=Pivots!$A$172,IFERROR(GETPIVOTDATA("Organisation ID",Pivots!$V$114,"Provider Group","College","Adult learning programmes",2),0), IF($D$5=Pivots!$A$173,IFERROR(GETPIVOTDATA("Organisation ID",Pivots!$V$114,"Provider Group","Independent Specialist College","Adult learning programmes",2),0), IF($D$5=Pivots!$A$174,IFERROR(GETPIVOTDATA("Organisation ID",Pivots!$V$114,"Provider Group","Independent learning Provider","Adult learning programmes",2),0), IF($D$5=Pivots!$A$175,IFERROR(GETPIVOTDATA("Organisation ID",Pivots!$V$114,"Provider Group","Community Learning and Skills Provider","Adult learning programmes",2),0), IF($D$5=Pivots!$A$176,IFERROR(GETPIVOTDATA("Organisation ID",Pivots!$V$114,"Provider Group","16-19 Academy","Adult learning programmes",2),0), IF($D$5=Pivots!$A$177,IFERROR(GETPIVOTDATA("Organisation ID",Pivots!$V$114,"Provider Group","Dance and Drama College","Adult learning programmes",2),0), IF($D$5=Pivots!$A$178,IFERROR(GETPIVOTDATA("Organisation ID",Pivots!$V$114,"Provider Group","Higher Education Institution","Adult learning programmes",2),0), IF($D$5=Pivots!$A$179,IFERROR(SUM(GETPIVOTDATA("Organisation ID",Pivots!$V$114,"Provider Group","Next Step ILP","Adult learning programmes",2)+GETPIVOTDATA("Organisation ID",Pivots!$V$114,"Provider Group","Next Step Voluntary Organisation","Adult learning programmes",2)),0), IF($D$5=Pivots!$A$180,IFERROR(GETPIVOTDATA("Organisation ID",Pivots!$V$114,"Provider Group","Prisons","Adult learning programmes",2),0),0)))))))))) -> 0 | H17: =IF($D$5=Pivots!$A$171,IFERROR(GETPIVOTDATA("Organisation ID",Pivots!$V$114,"Adult learning programmes",3),0), IF($D$5=Pivots!$A$172,IFERROR(GETPIVOTDATA("Organisation ID",Pivots!$V$114,"Provider Group","College","Adult learning programmes",3),0), IF($D$5=Pivots!$A$173,IFERROR(GETPIVOTDATA("Organisation ID",Pivots!$V$114,"Provider Group","Independent Specialist College","Adult learning programmes",3),0), IF($D$5=Pivots!$A$174,IFERROR(GETPIVOTDATA("Organisation ID",Pivots!$V$114,"Provider Group","Independent learning Provider","Adult learning programmes",3),0), IF($D$5=Pivots!$A$175,IFERROR(GETPIVOTDATA("Organisation ID",Pivots!$V$114,"Provider Group","Community Learning and Skills Provider","Adult learning programmes",3),0), IF($D$5=Pivots!$A$176,IFERROR(GETPIVOTDATA("Organisation ID",Pivots!$V$114,"Provider Group","16-19 Academy","Adult learning programmes",3),0), IF($D$5=Pivots!$A$177,IFERROR(GETPIVOTDATA("Organisation ID",Pivots!$V$114,"Provider Group","Dance and Drama College","Adult learning programmes",3),0), IF($D$5=Pivots!$A$178,IFERROR(GETPIVOTDATA("Organisation ID",Pivots!$V$114,"Provider Group","Higher Education Institution","Adult learning programmes",3),0), IF($D$5=Pivots!$A$179,IFERROR(SUM(GETPIVOTDATA("Organisation ID",Pivots!$V$114,"Provider Group","Next Step ILP","Adult learning programmes",3)+GETPIVOTDATA("Organisation ID",Pivots!$V$114,"Provider Group","Next Step Voluntary Organisation","Adult learning programmes",3)),0), IF($D$5=Pivots!$A$180,IFERROR(GETPIVOTDATA("Organisation ID",Pivots!$V$114,"Provider Group","Prisons","Adult learning programmes",3),0),0)))))))))) -> 0 | I17: =IF($D$5=Pivots!$A$171,IFERROR(GETPIVOTDATA("Organisation ID",Pivots!$V$114,"Adult learning programmes",4),0), IF($D$5=Pivots!$A$172,IFERROR(GETPIVOTDATA("Organisation ID",Pivots!$V$114,"Provider Group","College","Adult learning programmes",4),0), IF($D$5=Pivots!$A$173,IFERROR(GETPIVOTDATA("Organisation ID",Pivots!$V$114,"Provider Group","Independent Specialist College","Adult learning programmes",4),0), IF($D$5=Pivots!$A$174,IFERROR(GETPIVOTDATA("Organisation ID",Pivots!$V$114,"Provider Group","Independent learning Provider","Adult learning programmes",4),0), IF($D$5=Pivots!$A$175,IFERROR(GETPIVOTDATA("Organisation ID",Pivots!$V$114,"Provider Group","Community Learning and Skills Provider","Adult learning programmes",4),0), IF($D$5=Pivots!$A$176,IFERROR(GETPIVOTDATA("Organisation ID",Pivots!$V$114,"Provider Group","16-19 Academy","Adult learning programmes",4),0), IF($D$5=Pivots!$A$177,IFERROR(GETPIVOTDATA("Organisation ID",Pivots!$V$114,"Provider Group","Dance and Drama College","Adult learning programmes",4),0), IF($D$5=Pivots!$A$178,IFERROR(GETPIVOTDATA("Organisation ID",Pivots!$V$114,"Provider Group","Higher Education Institution","Adult learning programmes",4),0), IF($D$5=Pivots!$A$179,IFERROR(SUM(GETPIVOTDATA("Organisation ID",Pivots!$V$114,"Provider Group","Next Step ILP","Adult learning programmes",4)+GETPIVOTDATA("Organisation ID",Pivots!$V$114,"Provider Group","Next Step Voluntary Organisation","Adult learning programmes",4)),0), IF($D$5=Pivots!$A$180,IFERROR(GETPIVOTDATA("Organisation ID",Pivots!$V$114,"Provider Group","Prisons","Adult learning programmes",4),0),0)))))))))) -> 0 | K17: 0 | L17: 0 | M17: 0 | N17: 0
B18: Apprenticeships | D18: 0 | F18: =IF($D$5=Pivots!$A$171,IFERROR(GETPIVOTDATA("Organisation ID",Pivots!$V$132,"Apprenticeships",1),0), IF($D$5=Pivots!$A$172,IFERROR(GETPIVOTDATA("Organisation ID",Pivots!$V$132,"Provider Group","College","Apprenticeships",1),0), IF($D$5=Pivots!$A$173,IFERROR(GETPIVOTDATA("Organisation ID",Pivots!$V$132,"Provider Group","Independent Specialist College","Apprenticeships",1),0), IF($D$5=Pivots!$A$174,IFERROR(GETPIVOTDATA("Organisation ID",Pivots!$V$132,"Provider Group","Independent learning Provider","Apprenticeships",1),0), IF($D$5=Pivots!$A$175,IFERROR(GETPIVOTDATA("Organisation ID",Pivots!$V$132,"Provider Group","Community Learning and Skills Provider","Apprenticeships",1),0), IF($D$5=Pivots!$A$176,IFERROR(GETPIVOTDATA("Organisation ID",Pivots!$V$132,"Provider Group","16-19 Academy","Apprenticeships",1),0), IF($D$5=Pivots!$A$177,IFERROR(GETPIVOTDATA("Organisation ID",Pivots!$V$132,"Provider Group","Dance and Drama College","Apprenticeships",1),0), IF($D$5=Pivots!$A$178,IFERROR(GETPIVOTDATA("Organisation ID",Pivots!$V$132,"Provider Group","Higher Education Institution","Apprenticeships",1),0), IF($D$5=Pivots!$A$179,IFERROR(SUM(GETPIVOTDATA("Organisation ID",Pivots!$V$132,"Provider Group","Next Step ILP","Apprenticeships",1)+GETPIVOTDATA("Organisation ID",Pivots!$V$132,"Provider Group","Next Step Voluntary Organisation","Apprenticeships",1)),0), IF($D$5=Pivots!$A$180,IFERROR(GETPIVOTDATA("Organisation ID",Pivots!$V$132,"Provider Group","Prisons","Apprenticeships",1),0),0)))))))))) -> 0 | G18: =IF($D$5=Pivots!$A$171,IFERROR(GETPIVOTDATA("Organisation ID",Pivots!$V$132,"Apprenticeships",2),0), IF($D$5=Pivots!$A$172,IFERROR(GETPIVOTDATA("Organisation ID",Pivots!$V$132,"Provider Group","College","Apprenticeships",2),0), IF($D$5=Pivots!$A$173,IFERROR(GETPIVOTDATA("Organisation ID",Pivots!$V$132,"Provider Group","Independent Specialist College","Apprenticeships",2),0), IF($D$5=Pivots!$A$174,IFERROR(GETPIVOTDATA("Organisation ID",Pivots!$V$132,"Provider Group","Independent learning Provider","Apprenticeships",2),0), IF($D$5=Pivots!$A$175,IFERROR(GETPIVOTDATA("Organisation ID",Pivots!$V$132,"Provider Group","Community Learning and Skills Provider","Apprenticeships",2),0), IF($D$5=Pivots!$A$176,IFERROR(GETPIVOTDATA("Organisation ID",Pivots!$V$132,"Provider Group","16-19 Academy","Apprenticeships",2),0), IF($D$5=Pivots!$A$177,IFERROR(GETPIVOTDATA("Organisation ID",Pivots!$V$132,"Provider Group","Dance and Drama College","Apprenticeships",2),0), IF($D$5=Pivots!$A$178,IFERROR(GETPIVOTDATA("Organisation ID",Pivots!$V$132,"Provider Group","Higher Education Institution","Apprenticeships",2),0), IF($D$5=Pivots!$A$179,IFERROR(SUM(GETPIVOTDATA("Organisation ID",Pivots!$V$132,"Provider Group","Next Step ILP","Apprenticeships",2)+GETPIVOTDATA("Organisation ID",Pivots!$V$132,"Provider Group","Next Step Voluntary Organisation","Apprenticeships",2)),0), IF($D$5=Pivots!$A$180,IFERROR(GETPIVOTDATA("Organisation ID",Pivots!$V$132,"Provider Group","Prisons","Apprenticeships",2),0),0)))))))))) -> 0 | H18: =IF($D$5=Pivots!$A$171,IFERROR(GETPIVOTDATA("Organisation ID",Pivots!$V$132,"Apprenticeships",3),0), IF($D$5=Pivots!$A$172,IFERROR(GETPIVOTDATA("Organisation ID",Pivots!$V$132,"Provider Group","College","Apprenticeships",3),0), IF($D$5=Pivots!$A$173,IFERROR(GETPIVOTDATA("Organisation ID",Pivots!$V$132,"Provider Group","Independent Specialist College","Apprenticeships",3),0), IF($D$5=Pivots!$A$174,IFERROR(GETPIVOTDATA("Organisation ID",Pivots!$V$132,"Provider Group","Independent learning Provider","Apprenticeships",3),0), IF($D$5=Pivots!$A$175,IFERROR(GETPIVOTDATA("Organisation ID",Pivots!$V$132,"Provider Group","Community Learning and Skills Provider","Apprenticeships",3),0), IF($D$5=Pivots!$A$176,IFERROR(GETPIVOTDATA("Organisation ID",Pivots!$V$132,"Provider Group","16-19 Academy","Apprenticeships",3),0), IF($D$5=Pivots!$A$177,IFERROR(GETPIVOTDATA("Organisation ID",Pivots!$V$132,"Provider Group","Dance and Drama College","Apprenticeships",3),0), IF($D$5=Pivots!$A$178,IFERROR(GETPIVOTDATA("Organisation ID",Pivots!$V$132,"Provider Group","Higher Education Institution","Apprenticeships",3),0), IF($D$5=Pivots!$A$179,IFERROR(SUM(GETPIVOTDATA("Organisation ID",Pivots!$V$132,"Provider Group","Next Step ILP","Apprenticeships",3)+GETPIVOTDATA("Organisation ID",Pivots!$V$132,"Provider Group","Next Step Voluntary Organisation","Apprenticeships",3)),0), IF($D$5=Pivots!$A$180,IFERROR(GETPIVOTDATA("Organisation ID",Pivots!$V$132,"Provider Group","Prisons","Apprenticeships",3),0),0)))))))))) -> 0 | I18: =IF($D$5=Pivots!$A$171,IFERROR(GETPIVOTDATA("Organisation ID",Pivots!$V$132,"Apprenticeships",4),0), IF($D$5=Pivots!$A$172,IFERROR(GETPIVOTDATA("Organisation ID",Pivots!$V$132,"Provider Group","College","Apprenticeships",4),0), IF($D$5=Pivots!$A$173,IFERROR(GETPIVOTDATA("Organisation ID",Pivots!$V$132,"Provider Group","Independent Specialist College","Apprenticeships",4),0), IF($D$5=Pivots!$A$174,IFERROR(GETPIVOTDATA("Organisation ID",Pivots!$V$132,"Provider Group","Independent learning Provider","Apprenticeships",4),0), IF($D$5=Pivots!$A$175,IFERROR(GETPIVOTDATA("Organisation ID",Pivots!$V$132,"Provider Group","Community Learning and Skills Provider","Apprenticeships",4),0), IF($D$5=Pivots!$A$176,IFERROR(GETPIVOTDATA("Organisation ID",Pivots!$V$132,"Provider Group","16-19 Academy","Apprenticeships",4),0), IF($D$5=Pivots!$A$177,IFERROR(GETPIVOTDATA("Organisation ID",Pivots!$V$132,"Provider Group","Dance and Drama College","Apprenticeships",4),0), IF($D$5=Pivots!$A$178,IFERROR(GETPIVOTDATA("Organisation ID",Pivots!$V$132,"Provider Group","Higher Education Institution","Apprenticeships",4),0), IF($D$5=Pivots!$A$179,IFERROR(SUM(GETPIVOTDATA("Organisation ID",Pivots!$V$132,"Provider Group","Next Step ILP","Apprenticeships",4)+GETPIVOTDATA("Organisation ID",Pivots!$V$132,"Provider Group","Next Step Voluntary Organisation","Apprenticeships",4)),0), IF($D$5=Pivots!$A$180,IFERROR(GETPIVOTDATA("Organisation ID",Pivots!$V$132,"Provider Group","Prisons","Apprenticeships",4),0),0)))))))))) -> 0 | K18: 0 | L18: 0 | M18: 0 | N18: 0
B19: Traineeships | D19: =SUM(F19:I19) -> 0 | F19: =IF($D$5=Pivots!$A$171,IFERROR(GETPIVOTDATA("Organisation ID",Pivots!$V$150,"Traineeships",1),0), IF($D$5=Pivots!$A$172,IFERROR(GETPIVOTDATA("Organisation ID",Pivots!$V$150,"Provider Group","College","Traineeships",1),0), IF($D$5=Pivots!$A$173,IFERROR(GETPIVOTDATA("Organisation ID",Pivots!$V$150,"Provider Group","Independent Specialist College","Traineeships",1),0), IF($D$5=Pivots!$A$174,IFERROR(GETPIVOTDATA("Organisation ID",Pivots!$V$150,"Provider Group","Independent learning Provider","Traineeships",1),0), IF($D$5=Pivots!$A$175,IFERROR(GETPIVOTDATA("Organisation ID",Pivots!$V$150,"Provider Group","Community Learning and Skills Provider","Traineeships",1),0), IF($D$5=Pivots!$A$176,IFERROR(GETPIVOTDATA("Organisation ID",Pivots!$V$150,"Provider Group","16-19 Academy","Traineeships",1),0), IF($D$5=Pivots!$A$177,IFERROR(GETPIVOTDATA("Organisation ID",Pivots!$V$150,"Provider Group","Dance and Drama College","Traineeships",1),0), IF($D$5=Pivots!$A$178,IFERROR(GETPIVOTDATA("Organisation ID",Pivots!$V$150,"Provider Group","Higher Education Institution","Traineeships",1),0), IF($D$5=Pivots!$A$179,IFERROR(SUM(GETPIVOTDATA("Organisation ID",Pivots!$V$150,"Provider Group","Next Step ILP","Traineeships",1)+GETPIVOTDATA("Organisation ID",Pivots!$V$150,"Provider Group","Next Step Voluntary Organisation","Traineeships",1)),0), IF($D$5=Pivots!$A$180,IFERROR(GETPIVOTDATA("Organisation ID",Pivots!$V$150,"Provider Group","Prisons","Traineeships",1),0),0)))))))))) -> 0 | G19: =IF($D$5=Pivots!$A$171,IFERROR(GETPIVOTDATA("Organisation ID",Pivots!$V$150,"Traineeships",2),0), IF($D$5=Pivots!$A$172,IFERROR(GETPIVOTDATA("Organisation ID",Pivots!$V$150,"Provider Group","College","Traineeships",2),0), IF($D$5=Pivots!$A$173,IFERROR(GETPIVOTDATA("Organisation ID",Pivots!$V$150,"Provider Group","Independent Specialist College","Traineeships",2),0), IF($D$5=Pivots!$A$174,IFERROR(GETPIVOTDATA("Organisation ID",Pivots!$V$150,"Provider Group","Independent learning Provider","Traineeships",2),0), IF($D$5=Pivots!$A$175,IFERROR(GETPIVOTDATA("Organisation ID",Pivots!$V$150,"Provider Group","Community Learning and Skills Provider","Traineeships",2),0), IF($D$5=Pivots!$A$176,IFERROR(GETPIVOTDATA("Organisation ID",Pivots!$V$150,"Provider Group","16-19 Academy","Traineeships",2),0), IF($D$5=Pivots!$A$177,IFERROR(GETPIVOTDATA("Organisation ID",Pivots!$V$150,"Provider Group","Dance and Drama College","Traineeships",2),0), IF($D$5=Pivots!$A$178,IFERROR(GETPIVOTDATA("Organisation ID",Pivots!$V$150,"Provider Group","Higher Education Institution","Traineeships",2),0), IF($D$5=Pivots!$A$179,IFERROR(SUM(GETPIVOTDATA("Organisation ID",Pivots!$V$150,"Provider Group","Next Step ILP","Traineeships",2)+GETPIVOTDATA("Organisation ID",Pivots!$V$150,"Provider Group","Next Step Voluntary Organisation","Traineeships",2)),0), IF($D$5=Pivots!$A$180,IFERROR(GETPIVOTDATA("Organisation ID",Pivots!$V$150,"Provider Group","Prisons","Traineeships",2),0),0)))))))))) -> 0 | H19: =IF($D$5=Pivots!$A$171,IFERROR(GETPIVOTDATA("Organisation ID",Pivots!$V$150,"Traineeships",3),0), IF($D$5=Pivots!$A$172,IFERROR(GETPIVOTDATA("Organisation ID",Pivots!$V$150,"Provider Group","College","Traineeships",3),0), IF($D$5=Pivots!$A$173,IFERROR(GETPIVOTDATA("Organisation ID",Pivots!$V$150,"Provider Group","Independent Specialist College","Traineeships",3),0), IF($D$5=Pivots!$A$174,IFERROR(GETPIVOTDATA("Organisation ID",Pivots!$V$150,"Provider Group","Independent learning Provider","Traineeships",3),0), IF($D$5=Pivots!$A$175,IFERROR(GETPIVOTDATA("Organisation ID",Pivots!$V$150,"Provider Group","Community Learning and Skills Provider","Traineeships",3),0), IF($D$5=Pivots!$A$176,IFERROR(GETPIVOTDATA("Organisation ID",Pivots!$V$150,"Provider Group","16-19 Academy","Traineeships",3),0), IF($D$5=Pivots!$A$177,IFERROR(GETPIVOTDATA("Organisation ID",Pivots!$V$150,"Provider Group","Dance and Drama College","Traineeships",3),0), IF($D$5=Pivots!$A$178,IFERROR(GETPIVOTDATA("Organisation ID",Pivots!$V$150,"Provider Group","Higher Education Institution","Traineeships",3),0), IF($D$5=Pivots!$A$179,IFERROR(SUM(GETPIVOTDATA("Organisation ID",Pivots!$V$150,"Provider Group","Next Step ILP","Traineeships",3)+GETPIVOTDATA("Organisation ID",Pivots!$V$150,"Provider Group","Next Step Voluntary Organisation","Traineeships",3)),0), IF($D$5=Pivots!$A$180,IFERROR(GETPIVOTDATA("Organisation ID",Pivots!$V$150,"Provider Group","Prisons","Traineeships",3),0),0)))))))))) -> 0 | I19: =IF($D$5=Pivots!$A$171,IFERROR(GETPIVOTDATA("Organisation ID",Pivots!$V$150,"Traineeships",4),0), IF($D$5=Pivots!$A$172,IFERROR(GETPIVOTDATA("Organisation ID",Pivots!$V$150,"Provider Group","College","Traineeships",4),0), IF($D$5=Pivots!$A$173,IFERROR(GETPIVOTDATA("Organisation ID",Pivots!$V$150,"Provider Group","Independent Specialist College","Traineeships",4),0), IF($D$5=Pivots!$A$174,IFERROR(GETPIVOTDATA("Organisation ID",Pivots!$V$150,"Provider Group","Independent learning Provider","Traineeships",4),0), IF($D$5=Pivots!$A$175,IFERROR(GETPIVOTDATA("Organisation ID",Pivots!$V$150,"Provider Group","Community Learning and Skills Provider","Traineeships",4),0), IF($D$5=Pivots!$A$176,IFERROR(GETPIVOTDATA("Organisation ID",Pivots!$V$150,"Provider Group","16-19 Academy","Traineeships",4),0), IF($D$5=Pivots!$A$177,IFERROR(GETPIVOTDATA("Organisation ID",Pivots!$V$150,"Provider Group","Dance and Drama College","Traineeships",4),0), IF($D$5=Pivots!$A$178,IFERROR(GETPIVOTDATA("Organisation ID",Pivots!$V$150,"Provider Group","Higher Education Institution","Traineeships",4),0), IF($D$5=Pivots!$A$179,IFERROR(SUM(GETPIVOTDATA("Organisation ID",Pivots!$V$150,"Provider Group","Next Step ILP","Traineeships",4)+GETPIVOTDATA("Organisation ID",Pivots!$V$150,"Provider Group","Next Step Voluntary Organisation","Traineeships",4)),0), IF($D$5=Pivots!$A$180,IFERROR(GETPIVOTDATA("Organisation ID",Pivots!$V$150,"Provider Group","Prisons","Traineeships",4),0),0)))))))))) -> 0 | K19: =IFERROR(F19/$D19*100,0) -> 0 | L19: =IFERROR(G19/$D19*100,0) -> 0 | M19: =IFERROR(H19/$D19*100,0) -> 0 | N19: =IFERROR(I19/$D19*100,0) -> 0
B20: Provision for learners with high needs | D20: 0 | F20: =IF($D$5=Pivots!$A$171,IFERROR(GETPIVOTDATA("Organisation ID",Pivots!$V$168,"Provision for learners with high needs",1),0), IF($D$5=Pivots!$A$172,IFERROR(GETPIVOTDATA("Organisation ID",Pivots!$V$168,"Provider Group","College","Provision for learners with high needs",1),0), IF($D$5=Pivots!$A$173,IFERROR(GETPIVOTDATA("Organisation ID",Pivots!$V$168,"Provider Group","Independent Specialist College","Provision for learners with high needs",1),0), IF($D$5=Pivots!$A$174,IFERROR(GETPIVOTDATA("Organisation ID",Pivots!$V$168,"Provider Group","Independent learning Provider","Provision for learners with high needs",1),0), IF($D$5=Pivots!$A$175,IFERROR(GETPIVOTDATA("Organisation ID",Pivots!$V$168,"Provider Group","Community Learning and Skills Provider","Provision for learners with high needs",1),0), IF($D$5=Pivots!$A$176,IFERROR(GETPIVOTDATA("Organisation ID",Pivots!$V$168,"Provider Group","16-19 Academy","Provision for learners with high needs",1),0), IF($D$5=Pivots!$A$177,IFERROR(GETPIVOTDATA("Organisation ID",Pivots!$V$168,"Provider Group","Dance and Drama College","Provision for learners with high needs",1),0), IF($D$5=Pivots!$A$178,IFERROR(GETPIVOTDATA("Organisation ID",Pivots!$V$168,"Provider Group","Higher Education Institution","Provision for learners with high needs",1),0), IF($D$5=Pivots!$A$179,IFERROR(SUM(GETPIVOTDATA("Organisation ID",Pivots!$V$168,"Provider Group","Next Step ILP","Provision for learners with high needs",1)+GETPIVOTDATA("Organisation ID",Pivots!$V$168,"Provider Group","Next Step Voluntary Organisation","Provision for learners with high needs",1)),0), IF($D$5=Pivots!$A$180,IFERROR(GETPIVOTDATA("Organisation ID",Pivots!$V$168,"Provider Group","Prisons","Provision for learners with high needs",1),0),0)))))))))) -> 0 | G20: =IF($D$5=Pivots!$A$171,IFERROR(GETPIVOTDATA("Organisation ID",Pivots!$V$168,"Provision for learners with high needs",2),0), IF($D$5=Pivots!$A$172,IFERROR(GETPIVOTDATA("Organisation ID",Pivots!$V$168,"Provider Group","College","Provision for learners with high needs",2),0), IF($D$5=Pivots!$A$173,IFERROR(GETPIVOTDATA("Organisation ID",Pivots!$V$168,"Provider Group","Independent Specialist College","Provision for learners with high needs",2),0), IF($D$5=Pivots!$A$174,IFERROR(GETPIVOTDATA("Organisation ID",Pivots!$V$168,"Provider Group","Independent learning Provider","Provision for learners with high needs",2),0), IF($D$5=Pivots!$A$175,IFERROR(GETPIVOTDATA("Organisation ID",Pivots!$V$168,"Provider Group","Community Learning and Skills Provider","Provision for learners with high needs",2),0), IF($D$5=Pivots!$A$176,IFERROR(GETPIVOTDATA("Organisation ID",Pivots!$V$168,"Provider Group","16-19 Academy","Provision for learners with high needs",2),0), IF($D$5=Pivots!$A$177,IFERROR(GETPIVOTDATA("Organisation ID",Pivots!$V$168,"Provider Group","Dance and Drama College","Provision for learners with high needs",2),0), IF($D$5=Pivots!$A$178,IFERROR(GETPIVOTDATA("Organisation ID",Pivots!$V$168,"Provider Group","Higher Education Institution","Provision for learners with high needs",2),0), IF($D$5=Pivots!$A$179,IFERROR(SUM(GETPIVOTDATA("Organisation ID",Pivots!$V$168,"Provider Group","Next Step ILP","Provision for learners with high needs",2)+GETPIVOTDATA("Organisation ID",Pivots!$V$168,"Provider Group","Next Step Voluntary Organisation","Provision for learners with high needs",2)),0), IF($D$5=Pivots!$A$180,IFERROR(GETPIVOTDATA("Organisation ID",Pivots!$V$168,"Provider Group","Prisons","Provision for learners with high needs",2),0),0)))))))))) -> 0 | H20: =IF($D$5=Pivots!$A$171,IFERROR(GETPIVOTDATA("Organisation ID",Pivots!$V$168,"Provision for learners with high needs",3),0), IF($D$5=Pivots!$A$172,IFERROR(GETPIVOTDATA("Organisation ID",Pivots!$V$168,"Provider Group","College","Provision for learners with high needs",3),0), IF($D$5=Pivots!$A$173,IFERROR(GETPIVOTDATA("Organisation ID",Pivots!$V$168,"Provider Group","Independent Specialist College","Provision for learners with high needs",3),0), IF($D$5=Pivots!$A$174,IFERROR(GETPIVOTDATA("Organisation ID",Pivots!$V$168,"Provider Group","Independent learning Provider","Provision for learners with high needs",3),0), IF($D$5=Pivots!$A$175,IFERROR(GETPIVOTDATA("Organisation ID",Pivots!$V$168,"Provider Group","Community Learning and Skills Provider","Provision for learners with high needs",3),0), IF($D$5=Pivots!$A$176,IFERROR(GETPIVOTDATA("Organisation ID",Pivots!$V$168,"Provider Group","16-19 Academy","Provision for learners with high needs",3),0), IF($D$5=Pivots!$A$177,IFERROR(GETPIVOTDATA("Organisation ID",Pivots!$V$168,"Provider Group","Dance and Drama College","Provision for learners with high needs",3),0), IF($D$5=Pivots!$A$178,IFERROR(GETPIVOTDATA("Organisation ID",Pivots!$V$168,"Provider Group","Higher Education Institution","Provision for learners with high needs",3),0), IF($D$5=Pivots!$A$179,IFERROR(SUM(GETPIVOTDATA("Organisation ID",Pivots!$V$168,"Provider Group","Next Step ILP","Provision for learners with high needs",3)+GETPIVOTDATA("Organisation ID",Pivots!$V$168,"Provider Group","Next Step Voluntary Organisation","Provision for learners with high needs",3)),0), IF($D$5=Pivots!$A$180,IFERROR(GETPIVOTDATA("Organisation ID",Pivots!$V$168,"Provider Group","Prisons","Provision for learners with high needs",3),0),0)))))))))) -> 0 | I20: =IF($D$5=Pivots!$A$171,IFERROR(GETPIVOTDATA("Organisation ID",Pivots!$V$168,"Provision for learners with high needs",4),0), IF($D$5=Pivots!$A$172,IFERROR(GETPIVOTDATA("Organisation ID",Pivots!$V$168,"Provider Group","College","Provision for learners with high needs",4),0), IF($D$5=Pivots!$A$173,IFERROR(GETPIVOTDATA("Organisation ID",Pivots!$V$168,"Provider Group","Independent Specialist College","Provision for learners with high needs",4),0), IF($D$5=Pivots!$A$174,IFERROR(GETPIVOTDATA("Organisation ID",Pivots!$V$168,"Provider Group","Independent learning Provider","Provision for learners with high needs",4),0), IF($D$5=Pivots!$A$175,IFERROR(GETPIVOTDATA("Organisation ID",Pivots!$V$168,"Provider Group","Community Learning and Skills Provider","Provision for learners with high needs",4),0), IF($D$5=Pivots!$A$176,IFERROR(GETPIVOTDATA("Organisation ID",Pivots!$V$168,"Provider Group","16-19 Academy","Provision for learners with high needs",4),0), IF($D$5=Pivots!$A$177,IFERROR(GETPIVOTDATA("Organisation ID",Pivots!$V$168,"Provider Group","Dance and Drama College","Provision for learners with high needs",4),0), IF($D$5=Pivots!$A$178,IFERROR(GETPIVOTDATA("Organisation ID",Pivots!$V$168,"Provider Group","Higher Education Institution","Provision for learners with high needs",4),0), IF($D$5=Pivots!$A$179,IFERROR(SUM(GETPIVOTDATA("Organisation ID",Pivots!$V$168,"Provider Group","Next Step ILP","Provision for learners with high needs",4)+GETPIVOTDATA("Organisation ID",Pivots!$V$168,"Provider Group","Next Step Voluntary Organisation","Provision for learners with high needs",4)),0), IF($D$5=Pivots!$A$180,IFERROR(GETPIVOTDATA("Organisation ID",Pivots!$V$168,"Provider Group","Prisons","Provision for learners with high needs",4),0),0)))))))))) -> 0 | K20: 0 | L20: 0 | M20: 0 | N20: 0
B21: Full-time provision for 14 to 16-year-olds | D21: =SUM(F21:I21) -> 0 | F21: =IF($D$5=Pivots!$A$171,IFERROR(GETPIVOTDATA("Organisation ID",Pivots!$V$186,"Full-time provision for 14 to 16-year-olds",1),0), IF($D$5=Pivots!$A$172,IFERROR(GETPIVOTDATA("Organisation ID",Pivots!$V$186,"Provider Group","College","Full-time provision for 14 to 16-year-olds",1),0), IF($D$5=Pivots!$A$173,IFERROR(GETPIVOTDATA("Organisation ID",Pivots!$V$186,"Provider Group","Independent Specialist College","Full-time provision for 14 to 16-year-olds",1),0), IF($D$5=Pivots!$A$174,IFERROR(GETPIVOTDATA("Organisation ID",Pivots!$V$186,"Provider Group","Independent learning Provider","Full-time provision for 14 to 16-year-olds",1),0), IF($D$5=Pivots!$A$175,IFERROR(GETPIVOTDATA("Organisation ID",Pivots!$V$186,"Provider Group","Community Learning and Skills Provider","Full-time provision for 14 to 16-year-olds",1),0), IF($D$5=Pivots!$A$176,IFERROR(GETPIVOTDATA("Organisation ID",Pivots!$V$186,"Provider Group","16-19 Academy","Full-time provision for 14 to 16-year-olds",1),0), IF($D$5=Pivots!$A$177,IFERROR(GETPIVOTDATA("Organisation ID",Pivots!$V$186,"Provider Group","Dance and Drama College","Full-time provision for 14 to 16-year-olds",1),0), IF($D$5=Pivots!$A$178,IFERROR(GETPIVOTDATA("Organisation ID",Pivots!$V$186,"Provider Group","Higher Education Institution","Full-time provision for 14 to 16-year-olds",1),0), IF($D$5=Pivots!$A$179,IFERROR(SUM(GETPIVOTDATA("Organisation ID",Pivots!$V$186,"Provider Group","Next Step ILP","Full-time provision for 14 to 16-year-olds",1)+GETPIVOTDATA("Organisation ID",Pivots!$V$186,"Provider Group","Next Step Voluntary Organisation","Full-time provision for 14 to 16-year-olds",1)),0), IF($D$5=Pivots!$A$180,IFERROR(GETPIVOTDATA("Organisation ID",Pivots!$V$186,"Provider Group","Prisons","Full-time provision for 14 to 16-year-olds",1),0),0)))))))))) -> 0 | G21: =IF($D$5=Pivots!$A$171,IFERROR(GETPIVOTDATA("Organisation ID",Pivots!$V$186,"Full-time provision for 14 to 16-year-olds",2),0), IF($D$5=Pivots!$A$172,IFERROR(GETPIVOTDATA("Organisation ID",Pivots!$V$186,"Provider Group","College","Full-time provision for 14 to 16-year-olds",2),0), IF($D$5=Pivots!$A$173,IFERROR(GETPIVOTDATA("Organisation ID",Pivots!$V$186,"Provider Group","Independent Specialist College","Full-time provision for 14 to 16-year-olds",2),0), IF($D$5=Pivots!$A$174,IFERROR(GETPIVOTDATA("Organisation ID",Pivots!$V$186,"Provider Group","Independent learning Provider","Full-time provision for 14 to 16-year-olds",2),0), IF($D$5=Pivots!$A$175,IFERROR(GETPIVOTDATA("Organisation ID",Pivots!$V$186,"Provider Group","Community Learning and Skills Provider","Full-time provision for 14 to 16-year-olds",2),0), IF($D$5=Pivots!$A$176,IFERROR(GETPIVOTDATA("Organisation ID",Pivots!$V$186,"Provider Group","16-19 Academy","Full-time provision for 14 to 16-year-olds",2),0), IF($D$5=Pivots!$A$177,IFERROR(GETPIVOTDATA("Organisation ID",Pivots!$V$186,"Provider Group","Dance and Drama College","Full-time provision for 14 to 16-year-olds",2),0), IF($D$5=Pivots!$A$178,IFERROR(GETPIVOTDATA("Organisation ID",Pivots!$V$186,"Provider Group","Higher Education Institution","Full-time provision for 14 to 16-year-olds",2),0), IF($D$5=Pivots!$A$179,IFERROR(SUM(GETPIVOTDATA("Organisation ID",Pivots!$V$186,"Provider Group","Next Step ILP","Full-time provision for 14 to 16-year-olds",2)+GETPIVOTDATA("Organisation ID",Pivots!$V$186,"Provider Group","Next Step Voluntary Organisation","Full-time provision for 14 to 16-year-olds",2)),0), IF($D$5=Pivots!$A$180,IFERROR(GETPIVOTDATA("Organisation ID",Pivots!$V$186,"Provider Group","Prisons","Full-time provision for 14 to 16-year-olds",2),0),0)))))))))) -> 0 | H21: =IF($D$5=Pivots!$A$171,IFERROR(GETPIVOTDATA("Organisation ID",Pivots!$V$186,"Full-time provision for 14 to 16-year-olds",3),0), IF($D$5=Pivots!$A$172,IFERROR(GETPIVOTDATA("Organisation ID",Pivots!$V$186,"Provider Group","College","Full-time provision for 14 to 16-year-olds",3),0), IF($D$5=Pivots!$A$173,IFERROR(GETPIVOTDATA("Organisation ID",Pivots!$V$186,"Provider Group","Independent Specialist College","Full-time provision for 14 to 16-year-olds",3),0), IF($D$5=Pivots!$A$174,IFERROR(GETPIVOTDATA("Organisation ID",Pivots!$V$186,"Provider Group","Independent learning Provider","Full-time provision for 14 to 16-year-olds",3),0), IF($D$5=Pivots!$A$175,IFERROR(GETPIVOTDATA("Organisation ID",Pivots!$V$186,"Provider Group","Community Learning and Skills Provider","Full-time provision for 14 to 16-year-olds",3),0), IF($D$5=Pivots!$A$176,IFERROR(GETPIVOTDATA("Organisation ID",Pivots!$V$186,"Provider Group","16-19 Academy","Full-time provision for 14 to 16-year-olds",3),0), IF($D$5=Pivots!$A$177,IFERROR(GETPIVOTDATA("Organisation ID",Pivots!$V$186,"Provider Group","Dance and Drama College","Full-time provision for 14 to 16-year-olds",3),0), IF($D$5=Pivots!$A$178,IFERROR(GETPIVOTDATA("Organisation ID",Pivots!$V$186,"Provider Group","Higher Education Institution","Full-time provision for 14 to 16-year-olds",3),0), IF($D$5=Pivots!$A$179,IFERROR(SUM(GETPIVOTDATA("Organisation ID",Pivots!$V$186,"Provider Group","Next Step ILP","Full-time provision for 14 to 16-year-olds",3)+GETPIVOTDATA("Organisation ID",Pivots!$V$186,"Provider Group","Next Step Voluntary Organisation","Full-time provision for 14 to 16-year-olds",3)),0), IF($D$5=Pivots!$A$180,IFERROR(GETPIVOTDATA("Organisation ID",Pivots!$V$186,"Provider Group","Prisons","Full-time provision for 14 to 16-year-olds",3),0),0)))))))))) -> 0 | I21: =IF($D$5=Pivots!$A$171,IFERROR(GETPIVOTDATA("Organisation ID",Pivots!$V$186,"Full-time provision for 14 to 16-year-olds",4),0), IF($D$5=Pivots!$A$172,IFERROR(GETPIVOTDATA("Organisation ID",Pivots!$V$186,"Provider Group","College","Full-time provision for 14 to 16-year-olds",4),0), IF($D$5=Pivots!$A$173,IFERROR(GETPIVOTDATA("Organisation ID",Pivots!$V$186,"Provider Group","Independent Specialist College","Full-time provision for 14 to 16-year-olds",4),0), IF($D$5=Pivots!$A$174,IFERROR(GETPIVOTDATA("Organisation ID",Pivots!$V$186,"Provider Group","Independent learning Provider","Full-time provision for 14 to 16-year-olds",4),0), IF($D$5=Pivots!$A$175,IFERROR(GETPIVOTDATA("Organisation ID",Pivots!$V$186,"Provider Group","Community Learning and Skills Provider","Full-time provision for 14 to 16-year-olds",4),0), IF($D$5=Pivots!$A$176,IFERROR(GETPIVOTDATA("Organisation ID",Pivots!$V$186,"Provider Group","16-19 Academy","Full-time provision for 14 to 16-year-olds",4),0), IF($D$5=Pivots!$A$177,IFERROR(GETPIVOTDATA("Organisation ID",Pivots!$V$186,"Provider Group","Dance and Drama College","Full-time provision for 14 to 16-year-olds",4),0), IF($D$5=Pivots!$A$178,IFERROR(GETPIVOTDATA("Organisation ID",Pivots!$V$186,"Provider Group","Higher Education Institution","Full-time provision for 14 to 16-year-olds",4),0), IF($D$5=Pivots!$A$179,IFERROR(SUM(GETPIVOTDATA("Organisation ID",Pivots!$V$186,"Provider Group","Next Step ILP","Full-time provision for 14 to 16-year-olds",4)+GETPIVOTDATA("Organisation ID",Pivots!$V$186,"Provider Group","Next Step Voluntary Organisation","Full-time provision for 14 to 16-year-olds",4)),0), IF($D$5=Pivots!$A$180,IFERROR(GETPIVOTDATA("Organisation ID",Pivots!$V$186,"Provider Group","Prisons","Full-time provision for 14 to 16-year-olds",4),0),0)))))))))) -> 0 | K21: =IFERROR(F21/$D21*100,0) -> 0 | L21: =IFERROR(G21/$D21*100,0) -> 0 | M21: =IFERROR(H21/$D21*100,0) -> 0 | N21: =IFERROR(I21/$D21*100,0) -> 0
N22: Source: Ofsted inspection data
B24: 2. Percentages are rounded and may not add to 100. Where the number of inspections is small, percentages should be treated with caution.

Sheet INSTRUCTIONS (hidden)
A1: PRE-QA
A3: Step | B3: Description | C3: Link | D3: Notes
A4: 1 | B4: Run stored procedures in SQL and get data ready to paste into excel.
A5: 2 | B5: Paste dataset 1 (full and other inspections all together - not for publication) into the "In-year data (1)" tab. Do not populate the "In-year data" tab - this comes after QA is complete! | C5: Dataset 1 (all) tab
A6: 3 | B6: Ensure that the named range "Table_1_DS1" refers to the whole of this tab. This named range is used in several pivot tables. | D6: If you add or remove rows during QA you may have to revisit this stage to ensure named ranges are consistent.
A7: 4 | B7: Paste dataset 1P into the "In-year prisons" tab | C7: In-year prisons
A8: 5 | B8: Ensure that the named range "Table_2a_DS1P" refers to the whole of this dataset. This named range is used for the table on prison inspections. | D8: If you add or remove rows during QA you may have to revisit this stage to ensure named ranges are consistent.
A9: 6 | B9: Paste dataset 2 into the "Most recent insp" tab. | C9: Most recent insp
A10: 7 | B10: Ensure that the named range "Table_2_DS1" refers to the whole of this dataset. This is used for a number of charts and tables. | D10: If you add or remove rows during QA you may have to revisit this stage to ensure named ranges are consistent.
A11: 8 | B11: Update the "In-year historical dataset (1H)" dataset. You'll need to open the previous official stats release, copy and paste the entirety of the "In-year data" tab from that release to the bottom of this sheet. This effectively adds last year's data to the historical record. You'll likely need to faff with the columns to ensure they line up properly (sorry!). You'll also need to paste in the current reporting year into column AA (e.g. you might need to add rows for 2015/2016) | C11: In-year historical (1H)
A12: 9 | B12: Navigate to the "Pivots" tab. Click on a pivot table and select "refresh all" | C12: Pivots tab
A13: 10 | B13: Quickly scan the whole "pivots" tab for any obvious errors, issues or fails (for example, NULLS, blanks or unknown data values). Check especially for anything that falls outside of standard provider or event groupings. Such data will need careful attention and may need corrections in the code. | C13: Pivots tab
A14: 11 | B14: Quickly scan the charts and tables for any obvious errors, issues or fails (for example rows with all 0 entries but where data exists).
A15: 12 | B15: If starting a new period (June Official Stats release), you'll need to do some work on charts that contain historical information, by copying the information from the previous OS release into a new row, as follows:
A16: 13 | B16: Chart 3 - add a new row below the top row. You should now have a blank row 12. Now type the appropriate reporting year (e.g. 1 September 2015 - 31 August 2016) into cell B12. Type into cell A12 the year reference (e.g. 2015/2016) as per dataset 1H. You'll also need to update cells A11 and B11 for the current reporting year (e.g. 1 September 2016 - 28 February 2017 and "2016/2017"). | D16: If you change tab names the dropdown menus will stop working. Ask Adam Bennell for help with the VBA if this happens!
A17: 14 | B17: Next, copy the formulae from cells C13:H13 into C12:H12. This should populate with the previous year's data (do a quick sense check against the last official stats if you need to be sure) | C17: C3 in-year outcomes over time
A18: 15 | B18: Do the same thing for Chart 4. | C18: C4 In-year Grade 3 outcomes
A19: 16 | B19: You'll also need to update C6. Add in last year's data as a new row below row 7 (paste values as this is a static table). Then type this year's dates into cell B7.
A20: 17 | B20: You're now ready to QA the data, charts and tables!
A22: POST-QA!
A24: Step | B24: Description | C24: Link | D24: Notes
A25: 1 | B25: I'm assuming you've now fully QA-d the data and are happy that it is ready for publication This last bit is the tidying up and hiding things stage to make sure this document is ready to upload to the website.
A26: 2 | B26: Go to "Dataset 1 (all)" tab and filter for just items in Dataset 1a. Then paste this data into the "In-year data" tab. | C26: Dataset 1 (all) tab
A27: 3 | B27: Next, hide the Dataset 1 (all) tab. It is still required for charts and tables but is not needed to view by joe public. | C27: Dataset 1 (all) tab
A28: 4 | B28: Now it's time to delete or hide columns in the underlying data. To to the "In-year data" tab that you've just pasted dataset 1a into. Each column highlighted in red, delete it (it was important for QA but you don’t need to publish it!). Each column highlighted in orange, hide it! | C28: In-year data
A29: 5 | B29: Do the same for In-year prisons | C29: In-year prisons
A30: 6 | B30: Do the same for Most recent insp | C30: Most recent insp
A31: 7 | B31: Hide In-year historical (1H) tab. | C31: In-year historical (1H)
A32: 8 | B32: Tidy up chart 2 where no data is present by deleting any rows that have all 0's. (There might not be any, but just in case) | C32: C2 In-year provider outcomes
A33: 9 | B33: Fill in the "Dates1" tab with dates of the latest publication. These should populate automatically everywhere else. | C33: Dates1
A34: 10 | B34: Fill in the cover sheet and notes sheet where necessary. The remit team might need to help you.
A35: 11 | B35: Finally, delete this instructions sheet and check everything looks good for publication! Thanks for reading!

Sheet T3a Prison outcomes
B2: Table 3a: Inspection outcomes of prison and young offender institutions, by judgement
B3: ="Reports published between "&Reporting_period1 -> Reports published between 1 September 2015 and 29 February 2016
E4: 1 | F4: 2 | G4: 3 | H4: 4
C5: Total number inspected | E5: Number of inspections | J5: Percentage of inspections
E6: Outstanding | F6: Good | G6: Requires improvement | H6: Inadequate | J6: Outstanding | K6: Good | L6: Requires improvement | M6: Inadequate
A7: Overall effectiveness of learning and skills and work activities | B7: Overall effectiveness of learning and skills and work activities (overall effectiveness) | C7: 22 | E7: 2 | F7: 6 | G7: 11 | H7: 3 | J7: 9.090909091 | K7: 27.27272727 | L7: 50 | M7: 13.63636364
A8: Outcomes for prisoners engaged in learning and skills and work activities | B8: Outcomes for prisoners engaged in learning and skills and work activities (outcomes for learners) | C8: 22 | E8: 2 | F8: 9 | G8: 9 | H8: 2 | J8: 9.090909091 | K8: 40.90909091 | L8: 40.90909091 | M8: 9.090909091
A9: Quality of learning and skills and work activities including the quality of teaching, learning and assessment | B9: Quality of learning and skills and work activities, including the quality of teaching, training, learning and assessment (quality of teaching, learning and assessment) | C9: 22 | E9: 2 | F9: 10 | G9: 9 | H9: 1 | J9: 9.090909091 | K9: 45.45454545 | L9: 40.90909091 | M9: 4.545454545
A10: Effectiveness of the leadership and management of learning and skills and work activities | B10: Effectiveness of the leadership and management of learning and skills and work activities (effectiveness of leadership and management) | C10: 22 | E10: 2 | F10: 5 | G10: 13 | H10: 2 | J10: 9.090909091 | K10: 22.72727273 | L10: 59.09090909 | M10: 9.090909091
A11: Personal development & behaviour | B11: Personal development and behaviour (personal development, behaviour and welfare)1 | C11: 5 | E11: 0 | F11: 0 | G11: 5 | H11: 0 | J11: 0 | K11: 0 | L11: 100 | M11: 0
A12: Offender Learning and Skills Service | B12: Judgement on the quality of the Offender Learning and Skills Service (OLASS) provision | C12: 19 | E12: 2 | F12: 8 | G12: 7 | H12: 2 | J12: 10.52631579 | K12: 42.10526316 | L12: 36.84210526 | M12: 10.52631579
A13: National Careers Service | B13: Judgement on the quality of the National Career Service (NCS) provision | C13: 16 | E13: 1 | F13: 8 | G13: 7 | H13: 0 | J13: 6.25 | K13: 50 | L13: 43.75 | M13: 0
F14: Source: Ofsted inspection data and Her Majesty's Inspectorate of Prisons (HMIP)
B15: 1. The personal development and behaviour judgement came in to effect on 1 September 2015; no judgement was made for the 17 inspections conducted during 2014/15.
B16: 2. Approximate equivalent judgement in the Common Inspection Framework for further education and skills is shown in brackets.
B17: 3. Percentages are rounded and may not add to 100. Where the number of inspections is small, percentages should be treated with caution.

Sheet T4 Most recent outcomes
B2: Table 4: Inspection outcomes for further education and skills providers at their most recent inspection
B3: ="As at "&Inspections_To -> As at 29 February 2016
F5: Inspection judgement: | H5: Overall effectiveness
I6: 1 | J6: 2 | K6: 3 | L6: 4
D7: Total number of open and funded providers | F7: Number of providers that have not yet been inspected | H7: Number of providers with an inspection judgement | N7: Percentage of providers with an inspection judgement
H8: Total | I8: Outstanding | J8: Good | K8: Requires improvement / satisfactory8 | L8: Inadequate | N8: Outstanding | O8: Good | P8: Requires improvement / satisfactory8 | Q8: Inadequate
B9: All further education and skills providers1 | D9: =GETPIVOTDATA("Organisation ID",Pivots!$CM$5) -> 1130 | F9: =D9-H9 -> 55 | H9: =SUM(H10:H17) -> 1075 | I9: =SUM(I10:I17) -> 156 | J9: =SUM(J10:J17) -> 745 | K9: =SUM(K10:K17) -> 148 | L9: =SUM(L10:L17) -> 26 | N9: =IFERROR(I9/$H9*100,0) -> 14.51162791 | O9: =IFERROR(J9/$H9*100,0) -> 69.30232558 | P9: 13.76744186 | Q9: 2.418604651
A10: College | B10: Colleges2 | D10: =GETPIVOTDATA("Organisation ID",Pivots!$CM$5,"Provider Group",$A10) -> 323 | F10: =D10-H10 -> 1 | H10: =IF($H$5=Pivots!$C$171,GETPIVOTDATA("Organisation ID",Pivots!$CM$21,"Provider Group",$A10), IF($H$5=Pivots!$C$172,GETPIVOTDATA("URN",Pivots!$CM$39,"Provider Group",$A10), IF($H$5=Pivots!$C$174,GETPIVOTDATA("URN",Pivots!$CM$57,"Provider Group",$A10), IF($H$5=Pivots!$C$173,GETPIVOTDATA("URN",Pivots!$CM$75,"Provider Group",$A10), IF($H$5=Pivots!$C$175,GETPIVOTDATA("URN",Pivots!$CM$93,"Provider Group",$A10), IF($H$5=Pivots!$C$176,GETPIVOTDATA("URN",Pivots!$CM$111,"Provider Group",$A10), IF($H$5=Pivots!$C$177,GETPIVOTDATA("URN",Pivots!$CM$129,"Provider Group",$A10), IF($H$5=Pivots!$C$178,GETPIVOTDATA("URN",Pivots!$CM$147,"Provider Group",$A10), IF($H$5=Pivots!$C$179,GETPIVOTDATA("URN",Pivots!$CM$165,"Provider Group",$A10), IF($H$5=Pivots!$C$180,GETPIVOTDATA("URN",Pivots!$CM$183,"Provider Group",$A10), IF($H$5=Pivots!$C$181,GETPIVOTDATA("URN",Pivots!$CM$201,"Provider Group",$A10),0))))))))))) -> 322 | I10: =IF($H$5=Pivots!$C$171,GETPIVOTDATA("Organisation ID",Pivots!$CM$21,"Provider Group",$A10,"Overall effectiveness",I$6), IF($H$5=Pivots!$C$172,GETPIVOTDATA("URN",Pivots!$CM$39,"Provider Group",$A10,"Effectiveness of leadership and management",I$6), IF($H$5=Pivots!$C$174,GETPIVOTDATA("URN",Pivots!$CM$57,"Provider Group",$A10,"Personal development, behaviour and welfare",I$6), IF($H$5=Pivots!$C$173,GETPIVOTDATA("URN",Pivots!$CM$75,"Provider Group",$A10,"Quality of teaching, learning and assessment",I$6), IF($H$5=Pivots!$C$175,GETPIVOTDATA("URN",Pivots!$CM$93,"Provider Group",$A10,"Outcomes for learners",I$6), ))))) -> 66 | J10: =IF($H$5=Pivots!$C$171,GETPIVOTDATA("Organisation ID",Pivots!$CM$21,"Provider Group",$A10,"Overall effectiveness",J$6), IF($H$5=Pivots!$C$172,GETPIVOTDATA("URN",Pivots!$CM$39,"Provider Group",$A10,"Effectiveness of leadership and management",J$6), IF($H$5=Pivots!$C$174,GETPIVOTDATA("URN",Pivots!$CM$57,"Provider Group",$A10,"Personal development, behaviour and welfare",J$6), IF($H$5=Pivots!$C$173,GETPIVOTDATA("URN",Pivots!$CM$75,"Provider Group",$A10,"Quality of teaching, learning and assessment",J$6), IF($H$5=Pivots!$C$175,GETPIVOTDATA("URN",Pivots!$CM$93,"Provider Group",$A10,"Outcomes for learners",J$6), ))))) -> 198 | K10: =IF($H$5=Pivots!$C$171,GETPIVOTDATA("Organisation ID",Pivots!$CM$21,"Provider Group",$A10,"Overall effectiveness",K$6), IF($H$5=Pivots!$C$172,GETPIVOTDATA("URN",Pivots!$CM$39,"Provider Group",$A10,"Effectiveness of leadership and management",K$6), IF($H$5=Pivots!$C$174,GETPIVOTDATA("URN",Pivots!$CM$57,"Provider Group",$A10,"Personal development, behaviour and welfare",K$6), IF($H$5=Pivots!$C$173,GETPIVOTDATA("URN",Pivots!$CM$75,"Provider Group",$A10,"Quality of teaching, learning and assessment",K$6), IF($H$5=Pivots!$C$175,GETPIVOTDATA("URN",Pivots!$CM$93,"Provider Group",$A10,"Outcomes for learners",K$6), ))))) -> 45 | L10: =IF($H$5=Pivots!$C$171,GETPIVOTDATA("Organisation ID",Pivots!$CM$21,"Provider Group",$A10,"Overall effectiveness",L$6), IF($H$5=Pivots!$C$172,GETPIVOTDATA("URN",Pivots!$CM$39,"Provider Group",$A10,"Effectiveness of leadership and management",L$6), IF($H$5=Pivots!$C$174,GETPIVOTDATA("URN",Pivots!$CM$57,"Provider Group",$A10,"Personal development, behaviour and welfare",L$6), IF($H$5=Pivots!$C$173,GETPIVOTDATA("URN",Pivots!$CM$75,"Provider Group",$A10,"Quality of teaching, learning and assessment",L$6), IF($H$5=Pivots!$C$175,GETPIVOTDATA("URN",Pivots!$CM$93,"Provider Group",$A10,"Outcomes for learners",L$6), ))))) -> 13 | N10: 20.49689441 | O10: 61.49068323 | P10: 13.97515528 | Q10: 4.037267081
A11: Independent specialist college | B11: Independent specialist colleges | D11: =GETPIVOTDATA("Organisation ID",Pivots!$CM$5,"Provider Group",$A11) -> 62 | F11: 9 | H11: =IF($H$5=Pivots!$C$171,GETPIVOTDATA("Organisation ID",Pivots!$CM$21,"Provider Group",$A11), IF($H$5=Pivots!$C$172,GETPIVOTDATA("URN",Pivots!$CM$39,"Provider Group",$A11), IF($H$5=Pivots!$C$174,GETPIVOTDATA("URN",Pivots!$CM$57,"Provider Group",$A11), IF($H$5=Pivots!$C$173,GETPIVOTDATA("URN",Pivots!$CM$75,"Provider Group",$A11), IF($H$5=Pivots!$C$175,GETPIVOTDATA("URN",Pivots!$CM$93,"Provider Group",$A11), IF($H$5=Pivots!$C$176,GETPIVOTDATA("URN",Pivots!$CM$111,"Provider Group",$A11), IF($H$5=Pivots!$C$177,GETPIVOTDATA("URN",Pivots!$CM$129,"Provider Group",$A11), IF($H$5=Pivots!$C$178,GETPIVOTDATA("URN",Pivots!$CM$147,"Provider Group",$A11), IF($H$5=Pivots!$C$179,GETPIVOTDATA("URN",Pivots!$CM$165,"Provider Group",$A11), IF($H$5=Pivots!$C$180,GETPIVOTDATA("URN",Pivots!$CM$183,"Provider Group",$A11), IF($H$5=Pivots!$C$181,GETPIVOTDATA("URN",Pivots!$CM$201,"Provider Group",$A11),0))))))))))) -> 53 | I11: =IF($H$5=Pivots!$C$171,GETPIVOTDATA("Organisation ID",Pivots!$CM$21,"Provider Group",$A11,"Overall effectiveness",I$6), IF($H$5=Pivots!$C$172,GETPIVOTDATA("URN",Pivots!$CM$39,"Provider Group",$A11,"Effectiveness of leadership and management",I$6), IF($H$5=Pivots!$C$174,GETPIVOTDATA("URN",Pivots!$CM$57,"Provider Group",$A11,"Personal development, behaviour and welfare",I$6), IF($H$5=Pivots!$C$173,GETPIVOTDATA("URN",Pivots!$CM$75,"Provider Group",$A11,"Quality of teaching, learning and assessment",I$6), IF($H$5=Pivots!$C$175,GETPIVOTDATA("URN",Pivots!$CM$93,"Provider Group",$A11,"Outcomes for learners",I$6), ))))) -> 7 | J11: =IF($H$5=Pivots!$C$171,GETPIVOTDATA("Organisation ID",Pivots!$CM$21,"Provider Group",$A11,"Overall effectiveness",J$6), IF($H$5=Pivots!$C$172,GETPIVOTDATA("URN",Pivots!$CM$39,"Provider Group",$A11,"Effectiveness of leadership and management",J$6), IF($H$5=Pivots!$C$174,GETPIVOTDATA("URN",Pivots!$CM$57,"Provider Group",$A11,"Personal development, behaviour and welfare",J$6), IF($H$5=Pivots!$C$173,GETPIVOTDATA("URN",Pivots!$CM$75,"Provider Group",$A11,"Quality of teaching, learning and assessment",J$6), IF($H$5=Pivots!$C$175,GETPIVOTDATA("URN",Pivots!$CM$93,"Provider Group",$A11,"Outcomes for learners",J$6), ))))) -> 38 | K11: =IF($H$5=Pivots!$C$171,GETPIVOTDATA("Organisation ID",Pivots!$CM$21,"Provider Group",$A11,"Overall effectiveness",K$6), IF($H$5=Pivots!$C$172,GETPIVOTDATA("URN",Pivots!$CM$39,"Provider Group",$A11,"Effectiveness of leadership and management",K$6), IF($H$5=Pivots!$C$174,GETPIVOTDATA("URN",Pivots!$CM$57,"Provider Group",$A11,"Personal development, behaviour and welfare",K$6), IF($H$5=Pivots!$C$173,GETPIVOTDATA("URN",Pivots!$CM$75,"Provider Group",$A11,"Quality of teaching, learning and assessment",K$6), IF($H$5=Pivots!$C$175,GETPIVOTDATA("URN",Pivots!$CM$93,"Provider Group",$A11,"Outcomes for learners",K$6), ))))) -> 8 | L11: =IF($H$5=Pivots!$C$171,GETPIVOTDATA("Organisation ID",Pivots!$CM$21,"Provider Group",$A11,"Overall effectiveness",L$6), IF($H$5=Pivots!$C$172,GETPIVOTDATA("URN",Pivots!$CM$39,"Provider Group",$A11,"Effectiveness of leadership and management",L$6), IF($H$5=Pivots!$C$174,GETPIVOTDATA("URN",Pivots!$CM$57,"Provider Group",$A11,"Personal development, behaviour and welfare",L$6), IF($H$5=Pivots!$C$173,GETPIVOTDATA("URN",Pivots!$CM$75,"Provider Group",$A11,"Quality of teaching, learning and assessment",L$6), IF($H$5=Pivots!$C$175,GETPIVOTDATA("URN",Pivots!$CM$93,"Provider Group",$A11,"Outcomes for learners",L$6), ))))) -> 0 | N11: 13.20754717 | O11: 71.69811321 | P11: 15.09433962 | Q11: 0
A12: Independent learning provider | B12: Independent learning providers3 | D12: =GETPIVOTDATA("Organisation ID",Pivots!$CM$5,"Provider Group",$A12) -> 430 | F12: 16 | H12: =IF($H$5=Pivots!$C$171,GETPIVOTDATA("Organisation ID",Pivots!$CM$21,"Provider Group",$A12), IF($H$5=Pivots!$C$172,GETPIVOTDATA("URN",Pivots!$CM$39,"Provider Group",$A12), IF($H$5=Pivots!$C$174,GETPIVOTDATA("URN",Pivots!$CM$57,"Provider Group",$A12), IF($H$5=Pivots!$C$173,GETPIVOTDATA("URN",Pivots!$CM$75,"Provider Group",$A12), IF($H$5=Pivots!$C$175,GETPIVOTDATA("URN",Pivots!$CM$93,"Provider Group",$A12), IF($H$5=Pivots!$C$176,GETPIVOTDATA("URN",Pivots!$CM$111,"Provider Group",$A12), IF($H$5=Pivots!$C$177,GETPIVOTDATA("URN",Pivots!$CM$129,"Provider Group",$A12), IF($H$5=Pivots!$C$178,GETPIVOTDATA("URN",Pivots!$CM$147,"Provider Group",$A12), IF($H$5=Pivots!$C$179,GETPIVOTDATA("URN",Pivots!$CM$165,"Provider Group",$A12), IF($H$5=Pivots!$C$180,GETPIVOTDATA("URN",Pivots!$CM$183,"Provider Group",$A12), IF($H$5=Pivots!$C$181,GETPIVOTDATA("URN",Pivots!$CM$201,"Provider Group",$A12),0))))))))))) -> 414 | I12: =IF($H$5=Pivots!$C$171,GETPIVOTDATA("Organisation ID",Pivots!$CM$21,"Provider Group",$A12,"Overall effectiveness",I$6), IF($H$5=Pivots!$C$172,GETPIVOTDATA("URN",Pivots!$CM$39,"Provider Group",$A12,"Effectiveness of leadership and management",I$6), IF($H$5=Pivots!$C$174,GETPIVOTDATA("URN",Pivots!$CM$57,"Provider Group",$A12,"Personal development, behaviour and welfare",I$6), IF($H$5=Pivots!$C$173,GETPIVOTDATA("URN",Pivots!$CM$75,"Provider Group",$A12,"Quality of teaching, learning and assessment",I$6), IF($H$5=Pivots!$C$175,GETPIVOTDATA("URN",Pivots!$CM$93,"Provider Group",$A12,"Outcomes for learners",I$6), ))))) -> 49 | J12: =IF($H$5=Pivots!$C$171,GETPIVOTDATA("Organisation ID",Pivots!$CM$21,"Provider Group",$A12,"Overall effectiveness",J$6), IF($H$5=Pivots!$C$172,GETPIVOTDATA("URN",Pivots!$CM$39,"Provider Group",$A12,"Effectiveness of leadership and management",J$6), IF($H$5=Pivots!$C$174,GETPIVOTDATA("URN",Pivots!$CM$57,"Provider Group",$A12,"Personal development, behaviour and welfare",J$6), IF($H$5=Pivots!$C$173,GETPIVOTDATA("URN",Pivots!$CM$75,"Provider Group",$A12,"Quality of teaching, learning and assessment",J$6), IF($H$5=Pivots!$C$175,GETPIVOTDATA("URN",Pivots!$CM$93,"Provider Group",$A12,"Outcomes for learners",J$6), ))))) -> 297 | K12: =IF($H$5=Pivots!$C$171,GETPIVOTDATA("Organisation ID",Pivots!$CM$21,"Provider Group",$A12,"Overall effectiveness",K$6), IF($H$5=Pivots!$C$172,GETPIVOTDATA("URN",Pivots!$CM$39,"Provider Group",$A12,"Effectiveness of leadership and management",K$6), IF($H$5=Pivots!$C$174,GETPIVOTDATA("URN",Pivots!$CM$57,"Provider Group",$A12,"Personal development, behaviour and welfare",K$6), IF($H$5=Pivots!$C$173,GETPIVOTDATA("URN",Pivots!$CM$75,"Provider Group",$A12,"Quality of teaching, learning and assessment",K$6), IF($H$5=Pivots!$C$175,GETPIVOTDATA("URN",Pivots!$CM$93,"Provider Group",$A12,"Outcomes for learners",K$6), ))))) -> 61 | L12: =IF($H$5=Pivots!$C$171,GETPIVOTDATA("Organisation ID",Pivots!$CM$21,"Provider Group",$A12,"Overall effectiveness",L$6), IF($H$5=Pivots!$C$172,GETPIVOTDATA("URN",Pivots!$CM$39,"Provider Group",$A12,"Effectiveness of leadership and management",L$6), IF($H$5=Pivots!$C$174,GETPIVOTDATA("URN",Pivots!$CM$57,"Provider Group",$A12,"Personal development, behaviour and welfare",L$6), IF($H$5=Pivots!$C$173,GETPIVOTDATA("URN",Pivots!$CM$75,"Provider Group",$A12,"Quality of teaching, learning and assessment",L$6), IF($H$5=Pivots!$C$175,GETPIVOTDATA("URN",Pivots!$CM$93,"Provider Group",$A12,"Outcomes for learners",L$6), ))))) -> 7 | N12: 11.83574879 | O12: 71.73913043 | P12: 14.73429952 | Q12: 1.690821256
A13: Community learning and skills provider | B13: Community learning and skills providers4 | D13: =GETPIVOTDATA("Organisation ID",Pivots!$CM$5,"Provider Group",$A13) -> 238 | F13: 3 | H13: =IF($H$5=Pivots!$C$171,GETPIVOTDATA("Organisation ID",Pivots!$CM$21,"Provider Group",$A13), IF($H$5=Pivots!$C$172,GETPIVOTDATA("URN",Pivots!$CM$39,"Provider Group",$A13), IF($H$5=Pivots!$C$174,GETPIVOTDATA("URN",Pivots!$CM$57,"Provider Group",$A13), IF($H$5=Pivots!$C$173,GETPIVOTDATA("URN",Pivots!$CM$75,"Provider Group",$A13), IF($H$5=Pivots!$C$175,GETPIVOTDATA("URN",Pivots!$CM$93,"Provider Group",$A13), IF($H$5=Pivots!$C$176,GETPIVOTDATA("URN",Pivots!$CM$111,"Provider Group",$A13), IF($H$5=Pivots!$C$177,GETPIVOTDATA("URN",Pivots!$CM$129,"Provider Group",$A13), IF($H$5=Pivots!$C$178,GETPIVOTDATA("URN",Pivots!$CM$147,"Provider Group",$A13), IF($H$5=Pivots!$C$179,GETPIVOTDATA("URN",Pivots!$CM$165,"Provider Group",$A13), IF($H$5=Pivots!$C$180,GETPIVOTDATA("URN",Pivots!$CM$183,"Provider Group",$A13), IF($H$5=Pivots!$C$181,GETPIVOTDATA("URN",Pivots!$CM$201,"Provider Group",$A13),0))))))))))) -> 235 | I13: =IF($H$5=Pivots!$C$171,GETPIVOTDATA("Organisation ID",Pivots!$CM$21,"Provider Group",$A13,"Overall effectiveness",I$6), IF($H$5=Pivots!$C$172,GETPIVOTDATA("URN",Pivots!$CM$39,"Provider Group",$A13,"Effectiveness of leadership and management",I$6), IF($H$5=Pivots!$C$174,GETPIVOTDATA("URN",Pivots!$CM$57,"Provider Group",$A13,"Personal development, behaviour and welfare",I$6), IF($H$5=Pivots!$C$173,GETPIVOTDATA("URN",Pivots!$CM$75,"Provider Group",$A13,"Quality of teaching, learning and assessment",I$6), IF($H$5=Pivots!$C$175,GETPIVOTDATA("URN",Pivots!$CM$93,"Provider Group",$A13,"Outcomes for learners",I$6), ))))) -> 13 | J13: =IF($H$5=Pivots!$C$171,GETPIVOTDATA("Organisation ID",Pivots!$CM$21,"Provider Group",$A13,"Overall effectiveness",J$6), IF($H$5=Pivots!$C$172,GETPIVOTDATA("URN",Pivots!$CM$39,"Provider Group",$A13,"Effectiveness of leadership and management",J$6), IF($H$5=Pivots!$C$174,GETPIVOTDATA("URN",Pivots!$CM$57,"Provider Group",$A13,"Personal development, behaviour and welfare",J$6), IF($H$5=Pivots!$C$173,GETPIVOTDATA("URN",Pivots!$CM$75,"Provider Group",$A13,"Quality of teaching, learning and assessment",J$6), IF($H$5=Pivots!$C$175,GETPIVOTDATA("URN",Pivots!$CM$93,"Provider Group",$A13,"Outcomes for learners",J$6), ))))) -> 189 | K13: =IF($H$5=Pivots!$C$171,GETPIVOTDATA("Organisation ID",Pivots!$CM$21,"Provider Group",$A13,"Overall effectiveness",K$6), IF($H$5=Pivots!$C$172,GETPIVOTDATA("URN",Pivots!$CM$39,"Provider Group",$A13,"Effectiveness of leadership and management",K$6), IF($H$5=Pivots!$C$174,GETPIVOTDATA("URN",Pivots!$CM$57,"Provider Group",$A13,"Personal development, behaviour and welfare",K$6), IF($H$5=Pivots!$C$173,GETPIVOTDATA("URN",Pivots!$CM$75,"Provider Group",$A13,"Quality of teaching, learning and assessment",K$6), IF($H$5=Pivots!$C$175,GETPIVOTDATA("URN",Pivots!$CM$93,"Provider Group",$A13,"Outcomes for learners",K$6), ))))) -> 29 | L13: =IF($H$5=Pivots!$C$171,GETPIVOTDATA("Organisation ID",Pivots!$CM$21,"Provider Group",$A13,"Overall effectiveness",L$6), IF($H$5=Pivots!$C$172,GETPIVOTDATA("URN",Pivots!$CM$39,"Provider Group",$A13,"Effectiveness of leadership and management",L$6), IF($H$5=Pivots!$C$174,GETPIVOTDATA("URN",Pivots!$CM$57,"Provider Group",$A13,"Personal development, behaviour and welfare",L$6), IF($H$5=Pivots!$C$173,GETPIVOTDATA("URN",Pivots!$CM$75,"Provider Group",$A13,"Quality of teaching, learning and assessment",L$6), IF($H$5=Pivots!$C$175,GETPIVOTDATA("URN",Pivots!$CM$93,"Provider Group",$A13,"Outcomes for learners",L$6), ))))) -> 4 | N13: 5.531914894 | O13: 80.42553191 | P13: 12.34042553 | Q13: 1.70212766
A14: 16-19 Academy | B14: 16-19 academies5 | D14: =GETPIVOTDATA("Organisation ID",Pivots!$CM$5,"Provider Group",$A14) -> 19 | F14: 9 | H14: =IF($H$5=Pivots!$C$171,GETPIVOTDATA("Organisation ID",Pivots!$CM$21,"Provider Group",$A14), IF($H$5=Pivots!$C$172,GETPIVOTDATA("URN",Pivots!$CM$39,"Provider Group",$A14), IF($H$5=Pivots!$C$174,GETPIVOTDATA("URN",Pivots!$CM$57,"Provider Group",$A14), IF($H$5=Pivots!$C$173,GETPIVOTDATA("URN",Pivots!$CM$75,"Provider Group",$A14), IF($H$5=Pivots!$C$175,GETPIVOTDATA("URN",Pivots!$CM$93,"Provider Group",$A14), IF($H$5=Pivots!$C$176,GETPIVOTDATA("URN",Pivots!$CM$111,"Provider Group",$A14), IF($H$5=Pivots!$C$177,GETPIVOTDATA("URN",Pivots!$CM$129,"Provider Group",$A14), IF($H$5=Pivots!$C$178,GETPIVOTDATA("URN",Pivots!$CM$147,"Provider Group",$A14), IF($H$5=Pivots!$C$179,GETPIVOTDATA("URN",Pivots!$CM$165,"Provider Group",$A14), IF($H$5=Pivots!$C$180,GETPIVOTDATA("URN",Pivots!$CM$183,"Provider Group",$A14), IF($H$5=Pivots!$C$181,GETPIVOTDATA("URN",Pivots!$CM$201,"Provider Group",$A14),0))))))))))) -> 10 | I14: =IF($H$5=Pivots!$C$171,GETPIVOTDATA("Organisation ID",Pivots!$CM$21,"Provider Group",$A14,"Overall effectiveness",I$6), IF($H$5=Pivots!$C$172,GETPIVOTDATA("URN",Pivots!$CM$39,"Provider Group",$A14,"Effectiveness of leadership and management",I$6), IF($H$5=Pivots!$C$174,GETPIVOTDATA("URN",Pivots!$CM$57,"Provider Group",$A14,"Personal development, behaviour and welfare",I$6), IF($H$5=Pivots!$C$173,GETPIVOTDATA("URN",Pivots!$CM$75,"Provider Group",$A14,"Quality of teaching, learning and assessment",I$6), IF($H$5=Pivots!$C$175,GETPIVOTDATA("URN",Pivots!$CM$93,"Provider Group",$A14,"Outcomes for learners",I$6), ))))) -> 1 | J14: =IF($H$5=Pivots!$C$171,GETPIVOTDATA("Organisation ID",Pivots!$CM$21,"Provider Group",$A14,"Overall effectiveness",J$6), IF($H$5=Pivots!$C$172,GETPIVOTDATA("URN",Pivots!$CM$39,"Provider Group",$A14,"Effectiveness of leadership and management",J$6), IF($H$5=Pivots!$C$174,GETPIVOTDATA("URN",Pivots!$CM$57,"Provider Group",$A14,"Personal development, behaviour and welfare",J$6), IF($H$5=Pivots!$C$173,GETPIVOTDATA("URN",Pivots!$CM$75,"Provider Group",$A14,"Quality of teaching, learning and assessment",J$6), IF($H$5=Pivots!$C$175,GETPIVOTDATA("URN",Pivots!$CM$93,"Provider Group",$A14,"Outcomes for learners",J$6), ))))) -> 3 | K14: =IF($H$5=Pivots!$C$171,GETPIVOTDATA("Organisation ID",Pivots!$CM$21,"Provider Group",$A14,"Overall effectiveness",K$6), IF($H$5=Pivots!$C$172,GETPIVOTDATA("URN",Pivots!$CM$39,"Provider Group",$A14,"Effectiveness of leadership and management",K$6), IF($H$5=Pivots!$C$174,GETPIVOTDATA("URN",Pivots!$CM$57,"Provider Group",$A14,"Personal development, behaviour and welfare",K$6), IF($H$5=Pivots!$C$173,GETPIVOTDATA("URN",Pivots!$CM$75,"Provider Group",$A14,"Quality of teaching, learning and assessment",K$6), IF($H$5=Pivots!$C$175,GETPIVOTDATA("URN",Pivots!$CM$93,"Provider Group",$A14,"Outcomes for learners",K$6), ))))) -> 4 | L14: =IF($H$5=Pivots!$C$171,GETPIVOTDATA("Organisation ID",Pivots!$CM$21,"Provider Group",$A14,"Overall effectiveness",L$6), IF($H$5=Pivots!$C$172,GETPIVOTDATA("URN",Pivots!$CM$39,"Provider Group",$A14,"Effectiveness of leadership and management",L$6), IF($H$5=Pivots!$C$174,GETPIVOTDATA("URN",Pivots!$CM$57,"Provider Group",$A14,"Personal development, behaviour and welfare",L$6), IF($H$5=Pivots!$C$173,GETPIVOTDATA("URN",Pivots!$CM$75,"Provider Group",$A14,"Quality of teaching, learning and assessment",L$6), IF($H$5=Pivots!$C$175,GETPIVOTDATA("URN",Pivots!$CM$93,"Provider Group",$A14,"Outcomes for learners",L$6), ))))) -> 2 | N14: 10 | O14: 30 | P14: 40 | Q14: 20
A15: Dance and drama college | B15: Dance and drama colleges6 | D15: =GETPIVOTDATA("Organisation ID",Pivots!$CM$5,"Provider Group",$A15) -> 19 | F15: 3 | H15: =IF($H$5=Pivots!$C$171,GETPIVOTDATA("Organisation ID",Pivots!$CM$21,"Provider Group",$A15), IF($H$5=Pivots!$C$172,GETPIVOTDATA("URN",Pivots!$CM$39,"Provider Group",$A15), IF($H$5=Pivots!$C$174,GETPIVOTDATA("URN",Pivots!$CM$57,"Provider Group",$A15), IF($H$5=Pivots!$C$173,GETPIVOTDATA("URN",Pivots!$CM$75,"Provider Group",$A15), IF($H$5=Pivots!$C$175,GETPIVOTDATA("URN",Pivots!$CM$93,"Provider Group",$A15), IF($H$5=Pivots!$C$176,GETPIVOTDATA("URN",Pivots!$CM$111,"Provider Group",$A15), IF($H$5=Pivots!$C$177,GETPIVOTDATA("URN",Pivots!$CM$129,"Provider Group",$A15), IF($H$5=Pivots!$C$178,GETPIVOTDATA("URN",Pivots!$CM$147,"Provider Group",$A15), IF($H$5=Pivots!$C$179,GETPIVOTDATA("URN",Pivots!$CM$165,"Provider Group",$A15), IF($H$5=Pivots!$C$180,GETPIVOTDATA("URN",Pivots!$CM$183,"Provider Group",$A15), IF($H$5=Pivots!$C$181,GETPIVOTDATA("URN",Pivots!$CM$201,"Provider Group",$A15),0))))))))))) -> 16 | I15: =IF($H$5=Pivots!$C$171,GETPIVOTDATA("Organisation ID",Pivots!$CM$21,"Provider Group",$A15,"Overall effectiveness",I$6), IF($H$5=Pivots!$C$172,GETPIVOTDATA("URN",Pivots!$CM$39,"Provider Group",$A15,"Effectiveness of leadership and management",I$6), IF($H$5=Pivots!$C$174,GETPIVOTDATA("URN",Pivots!$CM$57,"Provider Group",$A15,"Personal development, behaviour and welfare",I$6), IF($H$5=Pivots!$C$173,GETPIVOTDATA("URN",Pivots!$CM$75,"Provider Group",$A15,"Quality of teaching, learning and assessment",I$6), IF($H$5=Pivots!$C$175,GETPIVOTDATA("URN",Pivots!$CM$93,"Provider Group",$A15,"Outcomes for learners",I$6), ))))) -> 12 | J15: =IF($H$5=Pivots!$C$171,GETPIVOTDATA("Organisation ID",Pivots!$CM$21,"Provider Group",$A15,"Overall effectiveness",J$6), IF($H$5=Pivots!$C$172,GETPIVOTDATA("URN",Pivots!$CM$39,"Provider Group",$A15,"Effectiveness of leadership and management",J$6), IF($H$5=Pivots!$C$174,GETPIVOTDATA("URN",Pivots!$CM$57,"Provider Group",$A15,"Personal development, behaviour and welfare",J$6), IF($H$5=Pivots!$C$173,GETPIVOTDATA("URN",Pivots!$CM$75,"Provider Group",$A15,"Quality of teaching, learning and assessment",J$6), IF($H$5=Pivots!$C$175,GETPIVOTDATA("URN",Pivots!$CM$93,"Provider Group",$A15,"Outcomes for learners",J$6), ))))) -> 3 | K15: =IF($H$5=Pivots!$C$171,GETPIVOTDATA("Organisation ID",Pivots!$CM$21,"Provider Group",$A15,"Overall effectiveness",K$6), IF($H$5=Pivots!$C$172,GETPIVOTDATA("URN",Pivots!$CM$39,"Provider Group",$A15,"Effectiveness of leadership and management",K$6), IF($H$5=Pivots!$C$174,GETPIVOTDATA("URN",Pivots!$CM$57,"Provider Group",$A15,"Personal development, behaviour and welfare",K$6), IF($H$5=Pivots!$C$173,GETPIVOTDATA("URN",Pivots!$CM$75,"Provider Group",$A15,"Quality of teaching, learning and assessment",K$6), IF($H$5=Pivots!$C$175,GETPIVOTDATA("URN",Pivots!$CM$93,"Provider Group",$A15,"Outcomes for learners",K$6), ))))) -> 1 | L15: =IF($H$5=Pivots!$C$171,GETPIVOTDATA("Organisation ID",Pivots!$CM$21,"Provider Group",$A15,"Overall effectiveness",L$6), IF($H$5=Pivots!$C$172,GETPIVOTDATA("URN",Pivots!$CM$39,"Provider Group",$A15,"Effectiveness of leadership and management",L$6), IF($H$5=Pivots!$C$174,GETPIVOTDATA("URN",Pivots!$CM$57,"Provider Group",$A15,"Personal development, behaviour and welfare",L$6), IF($H$5=Pivots!$C$173,GETPIVOTDATA("URN",Pivots!$CM$75,"Provider Group",$A15,"Quality of teaching, learning and assessment",L$6), IF($H$5=Pivots!$C$175,GETPIVOTDATA("URN",Pivots!$CM$93,"Provider Group",$A15,"Outcomes for learners",L$6), ))))) -> 0 | N15: 75 | O15: 18.75 | P15: 6.25 | Q15: 0
A16: Higher education institution | B16: Higher education institutions7 | D16: =GETPIVOTDATA("Organisation ID",Pivots!$CM$5,"Provider Group",$A16) -> 26 | F16: 1 | H16: =IF($H$5=Pivots!$C$171,GETPIVOTDATA("Organisation ID",Pivots!$CM$21,"Provider Group",$A16), IF($H$5=Pivots!$C$172,GETPIVOTDATA("URN",Pivots!$CM$39,"Provider Group",$A16), IF($H$5=Pivots!$C$174,GETPIVOTDATA("URN",Pivots!$CM$57,"Provider Group",$A16), IF($H$5=Pivots!$C$173,GETPIVOTDATA("URN",Pivots!$CM$75,"Provider Group",$A16), IF($H$5=Pivots!$C$175,GETPIVOTDATA("URN",Pivots!$CM$93,"Provider Group",$A16), IF($H$5=Pivots!$C$176,GETPIVOTDATA("URN",Pivots!$CM$111,"Provider Group",$A16), IF($H$5=Pivots!$C$177,GETPIVOTDATA("URN",Pivots!$CM$129,"Provider Group",$A16), IF($H$5=Pivots!$C$178,GETPIVOTDATA("URN",Pivots!$CM$147,"Provider Group",$A16), IF($H$5=Pivots!$C$179,GETPIVOTDATA("URN",Pivots!$CM$165,"Provider Group",$A16), IF($H$5=Pivots!$C$180,GETPIVOTDATA("URN",Pivots!$CM$183,"Provider Group",$A16), IF($H$5=Pivots!$C$181,GETPIVOTDATA("URN",Pivots!$CM$201,"Provider Group",$A16),0))))))))))) -> 25 | I16: =IF($H$5=Pivots!$C$171,GETPIVOTDATA("Organisation ID",Pivots!$CM$21,"Provider Group",$A16,"Overall effectiveness",I$6), IF($H$5=Pivots!$C$172,GETPIVOTDATA("URN",Pivots!$CM$39,"Provider Group",$A16,"Effectiveness of leadership and management",I$6), IF($H$5=Pivots!$C$174,GETPIVOTDATA("URN",Pivots!$CM$57,"Provider Group",$A16,"Personal development, behaviour and welfare",I$6), IF($H$5=Pivots!$C$173,GETPIVOTDATA("URN",Pivots!$CM$75,"Provider Group",$A16,"Quality of teaching, learning and assessment",I$6), IF($H$5=Pivots!$C$175,GETPIVOTDATA("URN",Pivots!$CM$93,"Provider Group",$A16,"Outcomes for learners",I$6), ))))) -> 8 | J16: =IF($H$5=Pivots!$C$171,GETPIVOTDATA("Organisation ID",Pivots!$CM$21,"Provider Group",$A16,"Overall effectiveness",J$6), IF($H$5=Pivots!$C$172,GETPIVOTDATA("URN",Pivots!$CM$39,"Provider Group",$A16,"Effectiveness of leadership and management",J$6), IF($H$5=Pivots!$C$174,GETPIVOTDATA("URN",Pivots!$CM$57,"Provider Group",$A16,"Personal development, behaviour and welfare",J$6), IF($H$5=Pivots!$C$173,GETPIVOTDATA("URN",Pivots!$CM$75,"Provider Group",$A16,"Quality of teaching, learning and assessment",J$6), IF($H$5=Pivots!$C$175,GETPIVOTDATA("URN",Pivots!$CM$93,"Provider Group",$A16,"Outcomes for learners",J$6), ))))) -> 17 | K16: =IF($H$5=Pivots!$C$171,GETPIVOTDATA("Organisation ID",Pivots!$CM$21,"Provider Group",$A16,"Overall effectiveness",K$6), IF($H$5=Pivots!$C$172,GETPIVOTDATA("URN",Pivots!$CM$39,"Provider Group",$A16,"Effectiveness of leadership and management",K$6), IF($H$5=Pivots!$C$174,GETPIVOTDATA("URN",Pivots!$CM$57,"Provider Group",$A16,"Personal development, behaviour and welfare",K$6), IF($H$5=Pivots!$C$173,GETPIVOTDATA("URN",Pivots!$CM$75,"Provider Group",$A16,"Quality of teaching, learning and assessment",K$6), IF($H$5=Pivots!$C$175,GETPIVOTDATA("URN",Pivots!$CM$93,"Provider Group",$A16,"Outcomes for learners",K$6), ))))) -> 0 | L16: =IF($H$5=Pivots!$C$171,GETPIVOTDATA("Organisation ID",Pivots!$CM$21,"Provider Group",$A16,"Overall effectiveness",L$6), IF($H$5=Pivots!$C$172,GETPIVOTDATA("URN",Pivots!$CM$39,"Provider Group",$A16,"Effectiveness of leadership and management",L$6), IF($H$5=Pivots!$C$174,GETPIVOTDATA("URN",Pivots!$CM$57,"Provider Group",$A16,"Personal development, behaviour and welfare",L$6), IF($H$5=Pivots!$C$173,GETPIVOTDATA("URN",Pivots!$CM$75,"Provider Group",$A16,"Quality of teaching, learning and assessment",L$6), IF($H$5=Pivots!$C$175,GETPIVOTDATA("URN",Pivots!$CM$93,"Provider Group",$A16,"Outcomes for learners",L$6), ))))) -> 0 | N16: 32 | O16: 68 | P16: 0 | Q16: 0
A17: National Careers Service Contractor | B17: National Careers Service contractors | D17: =GETPIVOTDATA("Organisation ID",Pivots!$CM$5,"Provider Group",$A17) -> 13 | F17: 13 | H17: =IF($H$5=Pivots!$C$171,GETPIVOTDATA("Organisation ID",Pivots!$CM$21,"Provider Group",$A17), IF($H$5=Pivots!$C$172,GETPIVOTDATA("URN",Pivots!$CM$39,"Provider Group",$A17), IF($H$5=Pivots!$C$174,GETPIVOTDATA("URN",Pivots!$CM$57,"Provider Group",$A17), IF($H$5=Pivots!$C$173,GETPIVOTDATA("URN",Pivots!$CM$75,"Provider Group",$A17), IF($H$5=Pivots!$C$175,GETPIVOTDATA("URN",Pivots!$CM$93,"Provider Group",$A17), IF($H$5=Pivots!$C$176,GETPIVOTDATA("URN",Pivots!$CM$111,"Provider Group",$A17), IF($H$5=Pivots!$C$177,GETPIVOTDATA("URN",Pivots!$CM$129,"Provider Group",$A17), IF($H$5=Pivots!$C$178,GETPIVOTDATA("URN",Pivots!$CM$147,"Provider Group",$A17), IF($H$5=Pivots!$C$179,GETPIVOTDATA("URN",Pivots!$CM$165,"Provider Group",$A17), IF($H$5=Pivots!$C$180,GETPIVOTDATA("URN",Pivots!$CM$183,"Provider Group",$A17), IF($H$5=Pivots!$C$181,GETPIVOTDATA("URN",Pivots!$CM$201,"Provider Group",$A17),0))))))))))) -> 0 | I17: =IF($H$5=Pivots!$C$171,GETPIVOTDATA("Organisation ID",Pivots!$CM$21,"Provider Group",$A17,"Overall effectiveness",I$6), IF($H$5=Pivots!$C$172,GETPIVOTDATA("URN",Pivots!$CM$39,"Provider Group",$A17,"Effectiveness of leadership and management",I$6), IF($H$5=Pivots!$C$174,GETPIVOTDATA("URN",Pivots!$CM$57,"Provider Group",$A17,"Personal development, behaviour and welfare",I$6), IF($H$5=Pivots!$C$173,GETPIVOTDATA("URN",Pivots!$CM$75,"Provider Group",$A17,"Quality of teaching, learning and assessment",I$6), IF($H$5=Pivots!$C$175,GETPIVOTDATA("URN",Pivots!$CM$93,"Provider Group",$A17,"Outcomes for learners",I$6), ))))) -> 0 | J17: =IF($H$5=Pivots!$C$171,GETPIVOTDATA("Organisation ID",Pivots!$CM$21,"Provider Group",$A17,"Overall effectiveness",J$6), IF($H$5=Pivots!$C$172,GETPIVOTDATA("URN",Pivots!$CM$39,"Provider Group",$A17,"Effectiveness of leadership and management",J$6), IF($H$5=Pivots!$C$174,GETPIVOTDATA("URN",Pivots!$CM$57,"Provider Group",$A17,"Personal development, behaviour and welfare",J$6), IF($H$5=Pivots!$C$173,GETPIVOTDATA("URN",Pivots!$CM$75,"Provider Group",$A17,"Quality of teaching, learning and assessment",J$6), IF($H$5=Pivots!$C$175,GETPIVOTDATA("URN",Pivots!$CM$93,"Provider Group",$A17,"Outcomes for learners",J$6), ))))) -> 0 | K17: =IF($H$5=Pivots!$C$171,GETPIVOTDATA("Organisation ID",Pivots!$CM$21,"Provider Group",$A17,"Overall effectiveness",K$6), IF($H$5=Pivots!$C$172,GETPIVOTDATA("URN",Pivots!$CM$39,"Provider Group",$A17,"Effectiveness of leadership and management",K$6), IF($H$5=Pivots!$C$174,GETPIVOTDATA("URN",Pivots!$CM$57,"Provider Group",$A17,"Personal development, behaviour and welfare",K$6), IF($H$5=Pivots!$C$173,GETPIVOTDATA("URN",Pivots!$CM$75,"Provider Group",$A17,"Quality of teaching, learning and assessment",K$6), IF($H$5=Pivots!$C$175,GETPIVOTDATA("URN",Pivots!$CM$93,"Provider Group",$A17,"Outcomes for learners",K$6), ))))) -> 0 | L17: =IF($H$5=Pivots!$C$171,GETPIVOTDATA("Organisation ID",Pivots!$CM$21,"Provider Group",$A17,"Overall effectiveness",L$6), IF($H$5=Pivots!$C$172,GETPIVOTDATA("URN",Pivots!$CM$39,"Provider Group",$A17,"Effectiveness of leadership and management",L$6), IF($H$5=Pivots!$C$174,GETPIVOTDATA("URN",Pivots!$CM$57,"Provider Group",$A17,"Personal development, behaviour and welfare",L$6), IF($H$5=Pivots!$C$173,GETPIVOTDATA("URN",Pivots!$CM$75,"Provider Group",$A17,"Quality of teaching, learning and assessment",L$6), IF($H$5=Pivots!$C$175,GETPIVOTDATA("URN",Pivots!$CM$93,"Provider Group",$A17,"Outcomes for learners",L$6), ))))) -> 0 | N17: 0 | O17: 0 | P17: 0 | Q17: 0
Q18: Source: Ofsted inspection data
B19: 1. Does not include prison and young offender institution inspections.
B20: 2. Includes general further education colleges, sixth form colleges and specialist further education colleges.
B21: 3. Includes employer providers.
B22: 4. Includes local authority, not for profit and specialist designated providers.
B23: 5. Includes 16-19 free schools, 16-19 academy converters and 16-19 sponsor led academies.
B24: 6. Inspections from 1 September 2015.
B25: 7. Inspection of further education provision only, not provider as a whole.
B26: 8. Prior to 1 September 2012, providers with an inspection outcome of grade 3 were judged as satisfactory.
B27: 9. Percentages are rounded and may not add to 100. Where the number of providers is small, percentages should be treated with caution.

Sheet C1 In-year judgement outcomes
B2: Chart 1: Further education and skills full inspection outcomes this reporting year, by judgement
B3: =Reporting_Period -> 1 September 2015 to 29 February 2016
B5: Select provider group1: | D5: <All providers>
B7: Select provider type: | D7: <All>
F8: 1 | G8: 2 | H8: 3 | I8: 4
D9: Total number of inspections | F9: Number of inspections
F10: Outstanding | G10: Good | H10: Requires improvement | I10: Inadequate
B11: Overall effectiveness | D11: =SUM(F11:I11) -> 152 | F11: =IF(T2_PG="<All providers>", IFERROR(GETPIVOTDATA("Organisation ID",Pivots!$V$6,$B11,F$8),0), IF(OR(ISBLANK(T2_PT),T2_PT="<All>"), IFERROR(GETPIVOTDATA("Organisation ID",Pivots!$V$6,"Provider Group",T2_PG1,$B11,F$8),0), IFERROR(GETPIVOTDATA("Organisation ID",Pivots!$AF$6,"Reporting provider type",T2_PT,$B11,F$8),0))) -> 15 | G11: =IF(T2_PG="<All providers>", IFERROR(GETPIVOTDATA("Organisation ID",Pivots!$V$6,$B11,G$8),0), IF(OR(ISBLANK(T2_PT),T2_PT="<All>"), IFERROR(GETPIVOTDATA("Organisation ID",Pivots!$V$6,"Provider Group",T2_PG1,$B11,G$8),0), IFERROR(GETPIVOTDATA("Organisation ID",Pivots!$AF$6,"Reporting provider type",T2_PT,$B11,G$8),0))) -> 72 | H11: =IF(T2_PG="<All providers>", IFERROR(GETPIVOTDATA("Organisation ID",Pivots!$V$6,$B11,H$8),0), IF(OR(ISBLANK(T2_PT),T2_PT="<All>"), IFERROR(GETPIVOTDATA("Organisation ID",Pivots!$V$6,"Provider Group",T2_PG1,$B11,H$8),0), IFERROR(GETPIVOTDATA("Organisation ID",Pivots!$AF$6,"Reporting provider type",T2_PT,$B11,H$8),0))) -> 47 | I11: =IF(T2_PG="<All providers>", IFERROR(GETPIVOTDATA("Organisation ID",Pivots!$V$6,$B11,I$8),0), IF(OR(ISBLANK(T2_PT),T2_PT="<All>"), IFERROR(GETPIVOTDATA("Organisation ID",Pivots!$V$6,"Provider Group",T2_PG1,$B11,I$8),0), IFERROR(GETPIVOTDATA("Organisation ID",Pivots!$AF$6,"Reporting provider type",T2_PT,$B11,I$8),0))) -> 18
B12: Effectiveness of leadership and management | D12: =SUM(F12:I12) -> 152 | F12: =IF(T2_PG="<All providers>", IFERROR(GETPIVOTDATA("Organisation ID",Pivots!$V$24,$B12,F$8),0), IF(OR(ISBLANK(T2_PT),T2_PT="<All>"), IFERROR(GETPIVOTDATA("Organisation ID",Pivots!$V$24,"Provider Group",T2_PG1,$B12,F$8),0), IFERROR(GETPIVOTDATA("Organisation ID",Pivots!$AF$24,"Reporting provider type",T2_PT,$B12,F$8),0))) -> 16 | G12: =IF(T2_PG="<All providers>", IFERROR(GETPIVOTDATA("Organisation ID",Pivots!$V$24,$B12,G$8),0), IF(OR(ISBLANK(T2_PT),T2_PT="<All>"), IFERROR(GETPIVOTDATA("Organisation ID",Pivots!$V$24,"Provider Group",T2_PG1,$B12,G$8),0), IFERROR(GETPIVOTDATA("Organisation ID",Pivots!$AF$24,"Reporting provider type",T2_PT,$B12,G$8),0))) -> 71 | H12: =IF(T2_PG="<All providers>", IFERROR(GETPIVOTDATA("Organisation ID",Pivots!$V$24,$B12,H$8),0), IF(OR(ISBLANK(T2_PT),T2_PT="<All>"), IFERROR(GETPIVOTDATA("Organisation ID",Pivots!$V$24,"Provider Group",T2_PG1,$B12,H$8),0), IFERROR(GETPIVOTDATA("Organisation ID",Pivots!$AF$24,"Reporting provider type",T2_PT,$B12,H$8),0))) -> 49 | I12: =IF(T2_PG="<All providers>", IFERROR(GETPIVOTDATA("Organisation ID",Pivots!$V$24,$B12,I$8),0), IF(OR(ISBLANK(T2_PT),T2_PT="<All>"), IFERROR(GETPIVOTDATA("Organisation ID",Pivots!$V$24,"Provider Group",T2_PG1,$B12,I$8),0), IFERROR(GETPIVOTDATA("Organisation ID",Pivots!$AF$24,"Reporting provider type",T2_PT,$B12,I$8),0))) -> 16
B13: Quality of teaching, learning and assessment | D13: 152 | F13: =IF(T2_PG="<All providers>", IFERROR(GETPIVOTDATA("Organisation ID",Pivots!$V$42,$B13,F$8),0), IF(OR(ISBLANK(T2_PT),T2_PT="<All>"), IFERROR(GETPIVOTDATA("Organisation ID",Pivots!$V$42,"Provider Group",T2_PG1,$B13,F$8),0), IFERROR(GETPIVOTDATA("Organisation ID",Pivots!$AF$42,"Reporting provider type",T2_PT,$B13,F$8),0))) -> 15 | G13: =IF(T2_PG="<All providers>", IFERROR(GETPIVOTDATA("Organisation ID",Pivots!$V$42,$B13,G$8),0), IF(OR(ISBLANK(T2_PT),T2_PT="<All>"), IFERROR(GETPIVOTDATA("Organisation ID",Pivots!$V$42,"Provider Group",T2_PG1,$B13,G$8),0), IFERROR(GETPIVOTDATA("Organisation ID",Pivots!$AF$42,"Reporting provider type",T2_PT,$B13,G$8),0))) -> 73 | H13: =IF(T2_PG="<All providers>", IFERROR(GETPIVOTDATA("Organisation ID",Pivots!$V$42,$B13,H$8),0), IF(OR(ISBLANK(T2_PT),T2_PT="<All>"), IFERROR(GETPIVOTDATA("Organisation ID",Pivots!$V$42,"Provider Group",T2_PG1,$B13,H$8),0), IFERROR(GETPIVOTDATA("Organisation ID",Pivots!$AF$42,"Reporting provider type",T2_PT,$B13,H$8),0))) -> 52 | I13: =IF(T2_PG="<All providers>", IFERROR(GETPIVOTDATA("Organisation ID",Pivots!$V$42,$B13,I$8),0), IF(OR(ISBLANK(T2_PT),T2_PT="<All>"), IFERROR(GETPIVOTDATA("Organisation ID",Pivots!$V$42,"Provider Group",T2_PG1,$B13,I$8),0), IFERROR(GETPIVOTDATA("Organisation ID",Pivots!$AF$42,"Reporting provider type",T2_PT,$B13,I$8),0))) -> 12
B14: Personal development, behaviour and welfare | D14: 152 | F14: =IF(T2_PG="<All providers>", IFERROR(GETPIVOTDATA("Organisation ID",Pivots!$V$60,$B14,F$8),0), IF(OR(ISBLANK(T2_PT),T2_PT="<All>"), IFERROR(GETPIVOTDATA("Organisation ID",Pivots!$V$60,"Provider Group",T2_PG1,$B14,F$8),0), IFERROR(GETPIVOTDATA("Organisation ID",Pivots!$AF$60,"Reporting provider type",T2_PT,$B14,F$8),0))) -> 18 | G14: =IF(T2_PG="<All providers>", IFERROR(GETPIVOTDATA("Organisation ID",Pivots!$V$60,$B14,G$8),0), IF(OR(ISBLANK(T2_PT),T2_PT="<All>"), IFERROR(GETPIVOTDATA("Organisation ID",Pivots!$V$60,"Provider Group",T2_PG1,$B14,G$8),0), IFERROR(GETPIVOTDATA("Organisation ID",Pivots!$AF$60,"Reporting provider type",T2_PT,$B14,G$8),0))) -> 88 | H14: =IF(T2_PG="<All providers>", IFERROR(GETPIVOTDATA("Organisation ID",Pivots!$V$60,$B14,H$8),0), IF(OR(ISBLANK(T2_PT),T2_PT="<All>"), IFERROR(GETPIVOTDATA("Organisation ID",Pivots!$V$60,"Provider Group",T2_PG1,$B14,H$8),0), IFERROR(GETPIVOTDATA("Organisation ID",Pivots!$AF$60,"Reporting provider type",T2_PT,$B14,H$8),0))) -> 37 | I14: =IF(T2_PG="<All providers>", IFERROR(GETPIVOTDATA("Organisation ID",Pivots!$V$60,$B14,I$8),0), IF(OR(ISBLANK(T2_PT),T2_PT="<All>"), IFERROR(GETPIVOTDATA("Organisation ID",Pivots!$V$60,"Provider Group",T2_PG1,$B14,I$8),0), IFERROR(GETPIVOTDATA("Organisation ID",Pivots!$AF$60,"Reporting provider type",T2_PT,$B14,I$8),0))) -> 9
B15: Outcomes for learners | D15: 152 | F15: =IF(T2_PG="<All providers>", IFERROR(GETPIVOTDATA("Organisation ID",Pivots!$V$78,$B15,F$8),0), IF(OR(ISBLANK(T2_PT),T2_PT="<All>"), IFERROR(GETPIVOTDATA("Organisation ID",Pivots!$V$78,"Provider Group",T2_PG1,$B15,F$8),0), IFERROR(GETPIVOTDATA("Organisation ID",Pivots!$AF$78,"Reporting provider type",T2_PT,$B15,F$8),0))) -> 15 | G15: =IF(T2_PG="<All providers>", IFERROR(GETPIVOTDATA("Organisation ID",Pivots!$V$78,$B15,G$8),0), IF(OR(ISBLANK(T2_PT),T2_PT="<All>"), IFERROR(GETPIVOTDATA("Organisation ID",Pivots!$V$78,"Provider Group",T2_PG1,$B15,G$8),0), IFERROR(GETPIVOTDATA("Organisation ID",Pivots!$AF$78,"Reporting provider type",T2_PT,$B15,G$8),0))) -> 73 | H15: =IF(T2_PG="<All providers>", IFERROR(GETPIVOTDATA("Organisation ID",Pivots!$V$78,$B15,H$8),0), IF(OR(ISBLANK(T2_PT),T2_PT="<All>"), IFERROR(GETPIVOTDATA("Organisation ID",Pivots!$V$78,"Provider Group",T2_PG1,$B15,H$8),0), IFERROR(GETPIVOTDATA("Organisation ID",Pivots!$AF$78,"Reporting provider type",T2_PT,$B15,H$8),0))) -> 50 | I15: =IF(T2_PG="<All providers>", IFERROR(GETPIVOTDATA("Organisation ID",Pivots!$V$78,$B15,I$8),0), IF(OR(ISBLANK(T2_PT),T2_PT="<All>"), IFERROR(GETPIVOTDATA("Organisation ID",Pivots!$V$78,"Provider Group",T2_PG1,$B15,I$8),0), IFERROR(GETPIVOTDATA("Organisation ID",Pivots!$AF$78,"Reporting provider type",T2_PT,$B15,I$8),0))) -> 14
B16: 16 to 19 study programmes | D16: 67 | F16: =IF(T2_PG="<All providers>", IFERROR(GETPIVOTDATA("Organisation ID",Pivots!$V$96,$B16,F$8),0), IF(OR(ISBLANK(T2_PT),T2_PT="<All>"), IFERROR(GETPIVOTDATA("Organisation ID",Pivots!$V$96,"Provider Group",T2_PG1,$B16,F$8),0), IFERROR(GETPIVOTDATA("Organisation ID",Pivots!$AF$96,"Reporting provider type",T2_PT,$B16,F$8),0))) -> 0 | G16: =IF(T2_PG="<All providers>", IFERROR(GETPIVOTDATA("Organisation ID",Pivots!$V$96,$B16,G$8),0), IF(OR(ISBLANK(T2_PT),T2_PT="<All>"), IFERROR(GETPIVOTDATA("Organisation ID",Pivots!$V$96,"Provider Group",T2_PG1,$B16,G$8),0), IFERROR(GETPIVOTDATA("Organisation ID",Pivots!$AF$96,"Reporting provider type",T2_PT,$B16,G$8),0))) -> 26 | H16: =IF(T2_PG="<All providers>", IFERROR(GETPIVOTDATA("Organisation ID",Pivots!$V$96,$B16,H$8),0), IF(OR(ISBLANK(T2_PT),T2_PT="<All>"), IFERROR(GETPIVOTDATA("Organisation ID",Pivots!$V$96,"Provider Group",T2_PG1,$B16,H$8),0), IFERROR(GETPIVOTDATA("Organisation ID",Pivots!$AF$96,"Reporting provider type",T2_PT,$B16,H$8),0))) -> 32 | I16: =IF(T2_PG="<All providers>", IFERROR(GETPIVOTDATA("Organisation ID",Pivots!$V$96,$B16,I$8),0), IF(OR(ISBLANK(T2_PT),T2_PT="<All>"), IFERROR(GETPIVOTDATA("Organisation ID",Pivots!$V$96,"Provider Group",T2_PG1,$B16,I$8),0), IFERROR(GETPIVOTDATA("Organisation ID",Pivots!$AF$96,"Reporting provider type",T2_PT,$B16,I$8),0))) -> 9
B17: Adult learning programmes | D17: 70 | F17: =IF(T2_PG="<All providers>", IFERROR(GETPIVOTDATA("Organisation ID",Pivots!$V$114,$B17,F$8),0), IF(OR(ISBLANK(T2_PT),T2_PT="<All>"), IFERROR(GETPIVOTDATA("Organisation ID",Pivots!$V$114,"Provider Group",T2_PG1,$B17,F$8),0), IFERROR(GETPIVOTDATA("Organisation ID",Pivots!$AF$114,"Reporting provider type",T2_PT,$B17,F$8),0))) -> 2 | G17: =IF(T2_PG="<All providers>", IFERROR(GETPIVOTDATA("Organisation ID",Pivots!$V$114,$B17,G$8),0), IF(OR(ISBLANK(T2_PT),T2_PT="<All>"), IFERROR(GETPIVOTDATA("Organisation ID",Pivots!$V$114,"Provider Group",T2_PG1,$B17,G$8),0), IFERROR(GETPIVOTDATA("Organisation ID",Pivots!$AF$114,"Reporting provider type",T2_PT,$B17,G$8),0))) -> 40 | H17: =IF(T2_PG="<All providers>", IFERROR(GETPIVOTDATA("Organisation ID",Pivots!$V$114,$B17,H$8),0), IF(OR(ISBLANK(T2_PT),T2_PT="<All>"), IFERROR(GETPIVOTDATA("Organisation ID",Pivots!$V$114,"Provider Group",T2_PG1,$B17,H$8),0), IFERROR(GETPIVOTDATA("Organisation ID",Pivots!$AF$114,"Reporting provider type",T2_PT,$B17,H$8),0))) -> 24 | I17: =IF(T2_PG="<All providers>", IFERROR(GETPIVOTDATA("Organisation ID",Pivots!$V$114,$B17,I$8),0), IF(OR(ISBLANK(T2_PT),T2_PT="<All>"), IFERROR(GETPIVOTDATA("Organisation ID",Pivots!$V$114,"Provider Group",T2_PG1,$B17,I$8),0), IFERROR(GETPIVOTDATA("Organisation ID",Pivots!$AF$114,"Reporting provider type",T2_PT,$B17,I$8),0))) -> 4
B18: Apprenticeships | D18: 86 | F18: =IF(T2_PG="<All providers>", IFERROR(GETPIVOTDATA("Organisation ID",Pivots!$V$132,$B18,F$8),0), IF(OR(ISBLANK(T2_PT),T2_PT="<All>"), IFERROR(GETPIVOTDATA("Organisation ID",Pivots!$V$132,"Provider Group",T2_PG1,$B18,F$8),0), IFERROR(GETPIVOTDATA("Organisation ID",Pivots!$AF$132,"Reporting provider type",T2_PT,$B18,F$8),0))) -> 3 | G18: =IF(T2_PG="<All providers>", IFERROR(GETPIVOTDATA("Organisation ID",Pivots!$V$132,$B18,G$8),0), IF(OR(ISBLANK(T2_PT),T2_PT="<All>"), IFERROR(GETPIVOTDATA("Organisation ID",Pivots!$V$132,"Provider Group",T2_PG1,$B18,G$8),0), IFERROR(GETPIVOTDATA("Organisation ID",Pivots!$AF$132,"Reporting provider type",T2_PT,$B18,G$8),0))) -> 52 | H18: =IF(T2_PG="<All providers>", IFERROR(GETPIVOTDATA("Organisation ID",Pivots!$V$132,$B18,H$8),0), IF(OR(ISBLANK(T2_PT),T2_PT="<All>"), IFERROR(GETPIVOTDATA("Organisation ID",Pivots!$V$132,"Provider Group",T2_PG1,$B18,H$8),0), IFERROR(GETPIVOTDATA("Organisation ID",Pivots!$AF$132,"Reporting provider type",T2_PT,$B18,H$8),0))) -> 21 | I18: =IF(T2_PG="<All providers>", IFERROR(GETPIVOTDATA("Organisation ID",Pivots!$V$132,$B18,I$8),0), IF(OR(ISBLANK(T2_PT),T2_PT="<All>"), IFERROR(GETPIVOTDATA("Organisation ID",Pivots!$V$132,"Provider Group",T2_PG1,$B18,I$8),0), IFERROR(GETPIVOTDATA("Organisation ID",Pivots!$AF$132,"Reporting provider type",T2_PT,$B18,I$8),0))) -> 10
B19: Traineeships | D19: 8 | F19: =IF(T2_PG="<All providers>", IFERROR(GETPIVOTDATA("Organisation ID",Pivots!$V$150,$B19,F$8),0), IF(OR(ISBLANK(T2_PT),T2_PT="<All>"), IFERROR(GETPIVOTDATA("Organisation ID",Pivots!$V$150,"Provider Group",T2_PG1,$B19,F$8),0), IFERROR(GETPIVOTDATA("Organisation ID",Pivots!$AF$150,"Reporting provider type",T2_PT,$B19,F$8),0))) -> 0 | G19: =IF(T2_PG="<All providers>", IFERROR(GETPIVOTDATA("Organisation ID",Pivots!$V$150,$B19,G$8),0), IF(OR(ISBLANK(T2_PT),T2_PT="<All>"), IFERROR(GETPIVOTDATA("Organisation ID",Pivots!$V$150,"Provider Group",T2_PG1,$B19,G$8),0), IFERROR(GETPIVOTDATA("Organisation ID",Pivots!$AF$150,"Reporting provider type",T2_PT,$B19,G$8),0))) -> 7 | H19: =IF(T2_PG="<All providers>", IFERROR(GETPIVOTDATA("Organisation ID",Pivots!$V$150,$B19,H$8),0), IF(OR(ISBLANK(T2_PT),T2_PT="<All>"), IFERROR(GETPIVOTDATA("Organisation ID",Pivots!$V$150,"Provider Group",T2_PG1,$B19,H$8),0), IFERROR(GETPIVOTDATA("Organisation ID",Pivots!$AF$150,"Reporting provider type",T2_PT,$B19,H$8),0))) -> 0 | I19: =IF(T2_PG="<All providers>", IFERROR(GETPIVOTDATA("Organisation ID",Pivots!$V$150,$B19,I$8),0), IF(OR(ISBLANK(T2_PT),T2_PT="<All>"), IFERROR(GETPIVOTDATA("Organisation ID",Pivots!$V$150,"Provider Group",T2_PG1,$B19,I$8),0), IFERROR(GETPIVOTDATA("Organisation ID",Pivots!$AF$150,"Reporting provider type",T2_PT,$B19,I$8),0))) -> 1
B20: Provision for learners with high needs | D20: 32 | F20: =IF(T2_PG="<All providers>", IFERROR(GETPIVOTDATA("Organisation ID",Pivots!$V$168,$B20,F$8),0), IF(OR(ISBLANK(T2_PT),T2_PT="<All>"), IFERROR(GETPIVOTDATA("Organisation ID",Pivots!$V$168,"Provider Group",T2_PG1,$B20,F$8),0), IFERROR(GETPIVOTDATA("Organisation ID",Pivots!$AF$168,"Reporting provider type",T2_PT,$B20,F$8),0))) -> 1 | G20: =IF(T2_PG="<All providers>", IFERROR(GETPIVOTDATA("Organisation ID",Pivots!$V$168,$B20,G$8),0), IF(OR(ISBLANK(T2_PT),T2_PT="<All>"), IFERROR(GETPIVOTDATA("Organisation ID",Pivots!$V$168,"Provider Group",T2_PG1,$B20,G$8),0), IFERROR(GETPIVOTDATA("Organisation ID",Pivots!$AF$168,"Reporting provider type",T2_PT,$B20,G$8),0))) -> 19 | H20: =IF(T2_PG="<All providers>", IFERROR(GETPIVOTDATA("Organisation ID",Pivots!$V$168,$B20,H$8),0), IF(OR(ISBLANK(T2_PT),T2_PT="<All>"), IFERROR(GETPIVOTDATA("Organisation ID",Pivots!$V$168,"Provider Group",T2_PG1,$B20,H$8),0), IFERROR(GETPIVOTDATA("Organisation ID",Pivots!$AF$168,"Reporting provider type",T2_PT,$B20,H$8),0))) -> 10 | I20: =IF(T2_PG="<All providers>", IFERROR(GETPIVOTDATA("Organisation ID",Pivots!$V$168,$B20,I$8),0), IF(OR(ISBLANK(T2_PT),T2_PT="<All>"), IFERROR(GETPIVOTDATA("Organisation ID",Pivots!$V$168,"Provider Group",T2_PG1,$B20,I$8),0), IFERROR(GETPIVOTDATA("Organisation ID",Pivots!$AF$168,"Reporting provider type",T2_PT,$B20,I$8),0))) -> 2
B21: Full-time provision for 14 to 16-year-olds | D21: 2 | F21: =IF(T2_PG="<All providers>", IFERROR(GETPIVOTDATA("Organisation ID",Pivots!$V$186,$B21,F$8),0), IF(OR(ISBLANK(T2_PT),T2_PT="<All>"), IFERROR(GETPIVOTDATA("Organisation ID",Pivots!$V$186,"Provider Group",T2_PG1,$B21,F$8),0), IFERROR(GETPIVOTDATA("Organisation ID",Pivots!$AF$186,"Reporting provider type",T2_PT,$B21,F$8),0))) -> 0 | G21: =IF(T2_PG="<All providers>", IFERROR(GETPIVOTDATA("Organisation ID",Pivots!$V$186,$B21,G$8),0), IF(OR(ISBLANK(T2_PT),T2_PT="<All>"), IFERROR(GETPIVOTDATA("Organisation ID",Pivots!$V$186,"Provider Group",T2_PG1,$B21,G$8),0), IFERROR(GETPIVOTDATA("Organisation ID",Pivots!$AF$186,"Reporting provider type",T2_PT,$B21,G$8),0))) -> 2 | H21: =IF(T2_PG="<All providers>", IFERROR(GETPIVOTDATA("Organisation ID",Pivots!$V$186,$B21,H$8),0), IF(OR(ISBLANK(T2_PT),T2_PT="<All>"), IFERROR(GETPIVOTDATA("Organisation ID",Pivots!$V$186,"Provider Group",T2_PG1,$B21,H$8),0), IFERROR(GETPIVOTDATA("Organisation ID",Pivots!$AF$186,"Reporting provider type",T2_PT,$B21,H$8),0))) -> 0 | I21: =IF(T2_PG="<All providers>", IFERROR(GETPIVOTDATA("Organisation ID",Pivots!$V$186,$B21,I$8),0), IF(OR(ISBLANK(T2_PT),T2_PT="<All>"), IFERROR(GETPIVOTDATA("Organisation ID",Pivots!$V$186,"Provider Group",T2_PG1,$B21,I$8),0), IFERROR(GETPIVOTDATA("Organisation ID",Pivots!$AF$186,"Reporting provider type",T2_PT,$B21,I$8),0))) -> 0
I22: Source: Ofsted inspection data
D24: % Outstanding | E24: % Good | F24: % Requires improvement | G24: % Inadequate | H24: Not judged
B25: =B11&" ("&TEXT(D11,"#,##0")&")" -> Overall effectiveness (152) | D25: =IF(IFERROR(ROUND(F11/$D11*100,0),0)=0,NA(),IFERROR(F11/$D11*100,NA())) -> 9.868421053 | E25: =IF(IFERROR(ROUND(G11/$D11*100,0),0)=0,NA(),IFERROR(G11/$D11*100,NA())) -> 47.36842105 | F25: =IF(IFERROR(ROUND(H11/$D11*100,0),0)=0,NA(),IFERROR(H11/$D11*100,NA())) -> 30.92105263 | G25: =IF(IFERROR(ROUND(I11/$D11*100,0),0)=0,NA(),IFERROR(I11/$D11*100,NA())) -> 11.84210526 | H25: =100-(IFERROR(D25,0)+IFERROR(E25,0)+IFERROR(F25,0)+IFERROR(G25,0)) -> 0
B26: Effectiveness of leadership and management (152) | D26: 10.52631579 | E26: 46.71052632 | F26: 32.23684211 | G26: 10.52631579 | H26: =100-(IFERROR(D26,0)+IFERROR(E26,0)+IFERROR(F26,0)+IFERROR(G26,0)) -> 0
B27: Quality of teaching, learning and assessment (152) | D27: 9.868421053 | E27: 48.02631579 | F27: 34.21052632 | G27: 7.894736842 | H27: 0
B28: Personal development, behaviour and welfare (152) | D28: 11.84210526 | E28: 57.89473684 | F28: 24.34210526 | G28: 5.921052632 | H28: 0
B29: Outcomes for learners (152) | D29: 9.868421053 | E29: 48.02631579 | F29: 32.89473684 | G29: 9.210526316 | H29: 0
B30: 16 to 19 study programmes (67) | E30: 38.80597015 | F30: 47.76119403 | G30: 13.43283582 | H30: 0
B31: Adult learning programmes (70) | D31: 2.857142857 | E31: 57.14285714 | F31: 34.28571429 | G31: 5.714285714 | H31: 0
B32: Apprenticeships (86) | D32: 3.488372093 | E32: 60.46511628 | F32: 24.41860465 | G32: 11.62790698 | H32: 0
B33: Traineeships (8) | E33: 87.5 | G33: 12.5 | H33: 0
B34: Provision for learners with high needs (32) | D34: 3.125 | E34: 59.375 | F34: 31.25 | G34: 6.25 | H34: 0
B35: Full-time provision for 14 to 16-year-olds (2) | E35: 100 | H35: 0
B45: 1. See 'notes' tab for a description of which providers are included in each group.
B46: 2. Percentages are rounded and may not add to 100. Where the number of inspections is small, percentages should be treated with caution.

Sheet C2 In-year provider outcomes
B2: Chart 2: Further education and skills full and short inspection outcomes this reporting year, by overall effectiveness and provider group
B3: =Reporting_Period -> 1 September 2015 to 29 February 2016
C6: Total number of inspections | D6: Number of inspections
D7: Outstanding | E7: Good | F7: Requires improvement | G7: Inadequate
B8: All further education and skills providers1 | C8: =SUM(D8:G8) -> 199 | D8: =SUM(D9:D16) -> 15 | E8: =SUM(E9:E16) -> 119 | F8: 47 | G8: 18
A9: College | B9: Colleges2 | C9: =SUM(D9:G9) -> 60 | D9: =GETPIVOTDATA("URN",Pivots!$GH$5,"Provider Group",$A9,"Overall effectiveness",1) -> 0 | E9: =GETPIVOTDATA("URN",Pivots!$GH$5,"Provider Group",$A9,"Overall effectiveness",2) -> 34 | F9: =GETPIVOTDATA("URN",Pivots!$GH$5,"Provider Group",$A9,"Overall effectiveness",3) -> 17 | G9: =GETPIVOTDATA("URN",Pivots!$GH$5,"Provider Group",$A9,"Overall effectiveness",4) -> 9
A10: Independent Specialist College | B10: Independent specialist colleges | C10: 10 | D10: =GETPIVOTDATA("URN",Pivots!$GH$5,"Provider Group",$A10,"Overall effectiveness",1) -> 0 | E10: =GETPIVOTDATA("URN",Pivots!$GH$5,"Provider Group",$A10,"Overall effectiveness",2) -> 5 | F10: =GETPIVOTDATA("URN",Pivots!$GH$5,"Provider Group",$A10,"Overall effectiveness",3) -> 5 | G10: =GETPIVOTDATA("URN",Pivots!$GH$5,"Provider Group",$A10,"Overall effectiveness",4) -> 0
A11: Independent learning Provider | B11: Independent learning providers3 | C11: 70 | D11: =GETPIVOTDATA("URN",Pivots!$GH$5,"Provider Group",$A11,"Overall effectiveness",1) -> 2 | E11: =GETPIVOTDATA("URN",Pivots!$GH$5,"Provider Group",$A11,"Overall effectiveness",2) -> 48 | F11: =GETPIVOTDATA("URN",Pivots!$GH$5,"Provider Group",$A11,"Overall effectiveness",3) -> 13 | G11: =GETPIVOTDATA("URN",Pivots!$GH$5,"Provider Group",$A11,"Overall effectiveness",4) -> 7
A12: Community Learning and Skills Provider | B12: Community learning and skills providers4 | C12: 39 | D12: =GETPIVOTDATA("URN",Pivots!$GH$5,"Provider Group",$A12,"Overall effectiveness",1) -> 1 | E12: =GETPIVOTDATA("URN",Pivots!$GH$5,"Provider Group",$A12,"Overall effectiveness",2) -> 26 | F12: =GETPIVOTDATA("URN",Pivots!$GH$5,"Provider Group",$A12,"Overall effectiveness",3) -> 10 | G12: =GETPIVOTDATA("URN",Pivots!$GH$5,"Provider Group",$A12,"Overall effectiveness",4) -> 2
A13: 16-19 Academy | B13: 16-19 academies5 | C13: 2 | D13: =GETPIVOTDATA("URN",Pivots!$GH$5,"Provider Group",$A13,"Overall effectiveness",1) -> 0 | E13: =GETPIVOTDATA("URN",Pivots!$GH$5,"Provider Group",$A13,"Overall effectiveness",2) -> 1 | F13: =GETPIVOTDATA("URN",Pivots!$GH$5,"Provider Group",$A13,"Overall effectiveness",3) -> 1 | G13: =GETPIVOTDATA("URN",Pivots!$GH$5,"Provider Group",$A13,"Overall effectiveness",4) -> 0
A14: Dance and Drama College | B14: Dance and drama colleges6 | C14: 16 | D14: =GETPIVOTDATA("URN",Pivots!$GH$5,"Provider Group",$A14,"Overall effectiveness",1) -> 12 | E14: =GETPIVOTDATA("URN",Pivots!$GH$5,"Provider Group",$A14,"Overall effectiveness",2) -> 3 | F14: =GETPIVOTDATA("URN",Pivots!$GH$5,"Provider Group",$A14,"Overall effectiveness",3) -> 1 | G14: =GETPIVOTDATA("URN",Pivots!$GH$5,"Provider Group",$A14,"Overall effectiveness",4) -> 0
A15: Higher Education Institution | B15: Higher education institutions7 | C15: 2 | D15: =GETPIVOTDATA("URN",Pivots!$GH$5,"Provider Group",$A15,"Overall effectiveness",1) -> 0 | E15: =GETPIVOTDATA("URN",Pivots!$GH$5,"Provider Group",$A15,"Overall effectiveness",2) -> 2 | F15: =GETPIVOTDATA("URN",Pivots!$GH$5,"Provider Group",$A15,"Overall effectiveness",3) -> 0 | G15: =GETPIVOTDATA("URN",Pivots!$GH$5,"Provider Group",$A15,"Overall effectiveness",4) -> 0
A16: National Careers Service Contractor | B16: National Careers Service contractors | C16: 0 | D16: =GETPIVOTDATA("URN",Pivots!$GH$5,"Provider Group",$A16,"Overall effectiveness",1) -> 0 | E16: =GETPIVOTDATA("URN",Pivots!$GH$5,"Provider Group",$A16,"Overall effectiveness",2) -> 0 | F16: =GETPIVOTDATA("URN",Pivots!$GH$5,"Provider Group",$A16,"Overall effectiveness",3) -> 0 | G16: =GETPIVOTDATA("URN",Pivots!$GH$5,"Provider Group",$A16,"Overall effectiveness",4) -> 0
G17: Source: Ofsted inspection data
C20: % Outstanding | D20: % Good | E20: % Requires improvement | F20: % Inadequate
B21: =IF(OR(RIGHT(B8,1)="1",RIGHT(B8,1)="2",RIGHT(B8,1)="3",RIGHT(B8,1)="4",RIGHT(B8,1)="5",RIGHT(B8,1)="6",RIGHT(B8,1)="7",RIGHT(B8,1)="8",RIGHT(B8,1)="9"),LEFT(B8,LEN(B8)-1),B8)&" ("&TEXT(C8,"#,##0")&")" -> All further education and skills providers (199) | C21: =IFERROR(IF(ROUND(D8/$C8*100,0)=0,NA(),D8/$C8*100),NA()) -> 7.537688442 | D21: =IFERROR(IF(ROUND(E8/$C8*100,0)=0,NA(),E8/$C8*100),NA()) -> 59.79899497 | E21: 23.61809045 | F21: 9.045226131
B22: =IF(OR(RIGHT(B9,1)="1",RIGHT(B9,1)="2",RIGHT(B9,1)="3",RIGHT(B9,1)="4",RIGHT(B9,1)="5",RIGHT(B9,1)="6",RIGHT(B9,1)="7",RIGHT(B9,1)="8",RIGHT(B9,1)="9"),LEFT(B9,LEN(B9)-1),B9)&" ("&TEXT(C9,"#,##0")&")" -> Colleges (60) | C22: =IFERROR(IF(ROUND(D9/$C9*100,0)=0,NA(),D9/$C9*100),NA()) ->  | D22: 56.66666667 | E22: 28.33333333 | F22: 15
B23: Independent specialist colleges (10) | C23: =IFERROR(IF(ROUND(D10/$C10*100,0)=0,NA(),D10/$C10*100),NA()) ->  | D23: 50 | E23: 50
B24: Independent learning providers (70) | C24: =IFERROR(IF(ROUND(D11/$C11*100,0)=0,NA(),D11/$C11*100),NA()) -> 2.857142857 | D24: 68.57142857 | E24: 18.57142857 | F24: 10
B25: Community learning and skills providers (39) | C25: =IFERROR(IF(ROUND(D12/$C12*100,0)=0,NA(),D12/$C12*100),NA()) -> 2.564102564 | D25: 66.66666667 | E25: 25.64102564 | F25: 5.128205128
B26: 16-19 academies (2) | C26: =IFERROR(IF(ROUND(D13/$C13*100,0)=0,NA(),D13/$C13*100),NA()) ->  | D26: 50 | E26: 50
B27: Dance and drama colleges (16) | C27: =IFERROR(IF(ROUND(D14/$C14*100,0)=0,NA(),D14/$C14*100),NA()) -> 75 | D27: 18.75 | E27: 6.25
B28: Higher education institutions (2) | C28: =IFERROR(IF(ROUND(D15/$C15*100,0)=0,NA(),D15/$C15*100),NA()) ->  | D28: 100
B29: National Careers Service contractors (0) | C29: =IFERROR(IF(ROUND(D16/$C16*100,0)=0,NA(),D16/$C16*100),NA()) -> 
B40: 1. Does not include prison and young offender institution inspections.
B41: 2. Includes general further education colleges, sixth form colleges and specialist further education colleges.
B42: 3. Includes employer providers.
B43: 4. Includes local authority, not for profit and specialist designated providers.
B44: 5. Includes 16-19 free schools, 16-19 academy converters and 16-19 sponsor led academies.
B45: 6. Inspections from 1 September 2015.
B46: 7. Inspection of further education provision only, not provider as a whole.
B47: 8. Percentages are rounded and may not add to 100. Where the number of inspections is small, percentages should be treated with caution.

Sheet C3 In-year outcomes over time
B2: Chart 3: Further education and skills full and short inspection outcomes, by overall effectiveness and reporting year
B3: ="1 September 2010 to "&Inspections_To -> 1 September 2010 to 29 February 2016
B5: Select provider group1: | D5: <All providers>
B7: Select provider type: | D7: <All>
E8: 1 | F8: 2 | G8: 3 | H8: 4
C9: Total number of inspections | E9: Number of inspections
E10: Outstanding | F10: Good | G10: Requires improvement / satisfactory2 | H10: Inadequate
B11: 1 September 2015 - 29 February 2016 | C11: =SUM(E11:H11) -> 199 | E11: =IF(T2_PG="<All providers>", IFERROR(GETPIVOTDATA("Organisation ID",Pivots!$AP$6,"Overall effectiveness",E$8),0), IF(T2_PT="<All>", IFERROR(GETPIVOTDATA("Organisation ID",Pivots!$AP$6,"Provider Group",T2_PG1,"Overall effectiveness",E$8),0), IFERROR(GETPIVOTDATA("Organisation ID",Pivots!$AZ$6,"Reporting provider type",T2_PT,"Overall effectiveness",E$8),0))) -> 15 | F11: =IF(T2_PG="<All providers>", IFERROR(GETPIVOTDATA("Organisation ID",Pivots!$AP$6,"Overall effectiveness",F$8),0), IF(T2_PT="<All>", IFERROR(GETPIVOTDATA("Organisation ID",Pivots!$AP$6,"Provider Group",T2_PG1,"Overall effectiveness",F$8),0), IFERROR(GETPIVOTDATA("Organisation ID",Pivots!$AZ$6,"Reporting provider type",T2_PT,"Overall effectiveness",F$8),0))) -> 119 | G11: =IF(T2_PG="<All providers>", IFERROR(GETPIVOTDATA("Organisation ID",Pivots!$AP$6,"Overall effectiveness",G$8),0), IF(T2_PT="<All>", IFERROR(GETPIVOTDATA("Organisation ID",Pivots!$AP$6,"Provider Group",T2_PG1,"Overall effectiveness",G$8),0), IFERROR(GETPIVOTDATA("Organisation ID",Pivots!$AZ$6,"Reporting provider type",T2_PT,"Overall effectiveness",G$8),0))) -> 47 | H11: =IF(T2_PG="<All providers>", IFERROR(GETPIVOTDATA("Organisation ID",Pivots!$AP$6,"Overall effectiveness",H$8),0), IF(T2_PT="<All>", IFERROR(GETPIVOTDATA("Organisation ID",Pivots!$AP$6,"Provider Group",T2_PG1,"Overall effectiveness",H$8),0), IFERROR(GETPIVOTDATA("Organisation ID",Pivots!$AZ$6,"Reporting provider type",T2_PT,"Overall effectiveness",H$8),0))) -> 18
A12: 2014/2015 | B12: 1 September 2014 - 31 August 2015 | C12: =SUM(E12:H12) -> 272 | E12: =IF(T2_PG="<All providers>", IFERROR(GETPIVOTDATA("provider Name",Pivots!$EI$28,"Overall effectiveness",E$8,"YEAR",$A12),0), IF(OR(ISBLANK(T2_PT),T2_PT="<All>"), IFERROR(GETPIVOTDATA("provider Name",Pivots!$EI$28,"Reporting Provider Group 1_Name",T2_PG1,"Overall effectiveness",E$8,"YEAR",$A12),0), IFERROR(GETPIVOTDATA("provider Name",Pivots!$ET$28,"Reporting Provider Type_Name",T2_PT,"Overall effectiveness",E$8,"YEAR",$A12),0))) -> 13 | F12: =IF(T2_PG="<All providers>", IFERROR(GETPIVOTDATA("provider Name",Pivots!$EI$28,"Overall effectiveness",F$8,"YEAR",$A12),0), IF(OR(ISBLANK(T2_PT),T2_PT="<All>"), IFERROR(GETPIVOTDATA("provider Name",Pivots!$EI$28,"Reporting Provider Group 1_Name",T2_PG1,"Overall effectiveness",F$8,"YEAR",$A12),0), IFERROR(GETPIVOTDATA("provider Name",Pivots!$ET$28,"Reporting Provider Type_Name",T2_PT,"Overall effectiveness",F$8,"YEAR",$A12),0))) -> 120 | G12: =IF(T2_PG="<All providers>", IFERROR(GETPIVOTDATA("provider Name",Pivots!$EI$28,"Overall effectiveness",G$8,"YEAR",$A12),0), IF(OR(ISBLANK(T2_PT),T2_PT="<All>"), IFERROR(GETPIVOTDATA("provider Name",Pivots!$EI$28,"Reporting Provider Group 1_Name",T2_PG1,"Overall effectiveness",G$8,"YEAR",$A12),0), IFERROR(GETPIVOTDATA("provider Name",Pivots!$ET$28,"Reporting Provider Type_Name",T2_PT,"Overall effectiveness",G$8,"YEAR",$A12),0))) -> 106 | H12: =IF(T2_PG="<All providers>", IFERROR(GETPIVOTDATA("provider Name",Pivots!$EI$28,"Overall effectiveness",H$8,"YEAR",$A12),0), IF(OR(ISBLANK(T2_PT),T2_PT="<All>"), IFERROR(GETPIVOTDATA("provider Name",Pivots!$EI$28,"Reporting Provider Group 1_Name",T2_PG1,"Overall effectiveness",H$8,"YEAR",$A12),0), IFERROR(GETPIVOTDATA("provider Name",Pivots!$ET$28,"Reporting Provider Type_Name",T2_PT,"Overall effectiveness",H$8,"YEAR",$A12),0))) -> 33
A13: 2013/2014 | B13: 1 September 2013 - 31 August 2014 | C13: =SUM(E13:H13) -> 365 | E13: =IF(T2_PG="<All providers>", IFERROR(GETPIVOTDATA("provider Name",Pivots!$EI$28,"Overall effectiveness",E$8,"YEAR",$A13),0), IF(OR(ISBLANK(T2_PT),T2_PT="<All>"), IFERROR(GETPIVOTDATA("provider Name",Pivots!$EI$28,"Reporting Provider Group 1_Name",T2_PG1,"Overall effectiveness",E$8,"YEAR",$A13),0), IFERROR(GETPIVOTDATA("provider Name",Pivots!$ET$28,"Reporting Provider Type_Name",T2_PT,"Overall effectiveness",E$8,"YEAR",$A13),0))) -> 18 | F13: =IF(T2_PG="<All providers>", IFERROR(GETPIVOTDATA("provider Name",Pivots!$EI$28,"Overall effectiveness",F$8,"YEAR",$A13),0), IF(OR(ISBLANK(T2_PT),T2_PT="<All>"), IFERROR(GETPIVOTDATA("provider Name",Pivots!$EI$28,"Reporting Provider Group 1_Name",T2_PG1,"Overall effectiveness",F$8,"YEAR",$A13),0), IFERROR(GETPIVOTDATA("provider Name",Pivots!$ET$28,"Reporting Provider Type_Name",T2_PT,"Overall effectiveness",F$8,"YEAR",$A13),0))) -> 227 | G13: =IF(T2_PG="<All providers>", IFERROR(GETPIVOTDATA("provider Name",Pivots!$EI$28,"Overall effectiveness",G$8,"YEAR",$A13),0), IF(OR(ISBLANK(T2_PT),T2_PT="<All>"), IFERROR(GETPIVOTDATA("provider Name",Pivots!$EI$28,"Reporting Provider Group 1_Name",T2_PG1,"Overall effectiveness",G$8,"YEAR",$A13),0), IFERROR(GETPIVOTDATA("provider Name",Pivots!$ET$28,"Reporting Provider Type_Name",T2_PT,"Overall effectiveness",G$8,"YEAR",$A13),0))) -> 100 | H13: =IF(T2_PG="<All providers>", IFERROR(GETPIVOTDATA("provider Name",Pivots!$EI$28,"Overall effectiveness",H$8,"YEAR",$A13),0), IF(OR(ISBLANK(T2_PT),T2_PT="<All>"), IFERROR(GETPIVOTDATA("provider Name",Pivots!$EI$28,"Reporting Provider Group 1_Name",T2_PG1,"Overall effectiveness",H$8,"YEAR",$A13),0), IFERROR(GETPIVOTDATA("provider Name",Pivots!$ET$28,"Reporting Provider Type_Name",T2_PT,"Overall effectiveness",H$8,"YEAR",$A13),0))) -> 20
A14: 2012/2013 | B14: 1 September 2012 - 31 August 2013 | C14: 373 | E14: =IF(T2_PG="<All providers>", IFERROR(GETPIVOTDATA("provider Name",Pivots!$EI$28,"Overall effectiveness",E$8,"YEAR",$A14),0), IF(OR(ISBLANK(T2_PT),T2_PT="<All>"), IFERROR(GETPIVOTDATA("provider Name",Pivots!$EI$28,"Reporting Provider Group 1_Name",T2_PG1,"Overall effectiveness",E$8,"YEAR",$A14),0), IFERROR(GETPIVOTDATA("provider Name",Pivots!$ET$28,"Reporting Provider Type_Name",T2_PT,"Overall effectiveness",E$8,"YEAR",$A14),0))) -> 13 | F14: =IF(T2_PG="<All providers>", IFERROR(GETPIVOTDATA("provider Name",Pivots!$EI$28,"Overall effectiveness",F$8,"YEAR",$A14),0), IF(OR(ISBLANK(T2_PT),T2_PT="<All>"), IFERROR(GETPIVOTDATA("provider Name",Pivots!$EI$28,"Reporting Provider Group 1_Name",T2_PG1,"Overall effectiveness",F$8,"YEAR",$A14),0), IFERROR(GETPIVOTDATA("provider Name",Pivots!$ET$28,"Reporting Provider Type_Name",T2_PT,"Overall effectiveness",F$8,"YEAR",$A14),0))) -> 194 | G14: =IF(T2_PG="<All providers>", IFERROR(GETPIVOTDATA("provider Name",Pivots!$EI$28,"Overall effectiveness",G$8,"YEAR",$A14),0), IF(OR(ISBLANK(T2_PT),T2_PT="<All>"), IFERROR(GETPIVOTDATA("provider Name",Pivots!$EI$28,"Reporting Provider Group 1_Name",T2_PG1,"Overall effectiveness",G$8,"YEAR",$A14),0), IFERROR(GETPIVOTDATA("provider Name",Pivots!$ET$28,"Reporting Provider Type_Name",T2_PT,"Overall effectiveness",G$8,"YEAR",$A14),0))) -> 134 | H14: =IF(T2_PG="<All providers>", IFERROR(GETPIVOTDATA("provider Name",Pivots!$EI$28,"Overall effectiveness",H$8,"YEAR",$A14),0), IF(OR(ISBLANK(T2_PT),T2_PT="<All>"), IFERROR(GETPIVOTDATA("provider Name",Pivots!$EI$28,"Reporting Provider Group 1_Name",T2_PG1,"Overall effectiveness",H$8,"YEAR",$A14),0), IFERROR(GETPIVOTDATA("provider Name",Pivots!$ET$28,"Reporting Provider Type_Name",T2_PT,"Overall effectiveness",H$8,"YEAR",$A14),0))) -> 32
A15: 2011/2012 | B15: 1 September 2011 - 31 August 2012 | C15: 270 | E15: =IF(T2_PG="<All providers>", IFERROR(GETPIVOTDATA("provider Name",Pivots!$EI$28,"Overall effectiveness",E$8,"YEAR",$A15),0), IF(OR(ISBLANK(T2_PT),T2_PT="<All>"), IFERROR(GETPIVOTDATA("provider Name",Pivots!$EI$28,"Reporting Provider Group 1_Name",T2_PG1,"Overall effectiveness",E$8,"YEAR",$A15),0), IFERROR(GETPIVOTDATA("provider Name",Pivots!$ET$28,"Reporting Provider Type_Name",T2_PT,"Overall effectiveness",E$8,"YEAR",$A15),0))) -> 19 | F15: =IF(T2_PG="<All providers>", IFERROR(GETPIVOTDATA("provider Name",Pivots!$EI$28,"Overall effectiveness",F$8,"YEAR",$A15),0), IF(OR(ISBLANK(T2_PT),T2_PT="<All>"), IFERROR(GETPIVOTDATA("provider Name",Pivots!$EI$28,"Reporting Provider Group 1_Name",T2_PG1,"Overall effectiveness",F$8,"YEAR",$A15),0), IFERROR(GETPIVOTDATA("provider Name",Pivots!$ET$28,"Reporting Provider Type_Name",T2_PT,"Overall effectiveness",F$8,"YEAR",$A15),0))) -> 127 | G15: =IF(T2_PG="<All providers>", IFERROR(GETPIVOTDATA("provider Name",Pivots!$EI$28,"Overall effectiveness",G$8,"YEAR",$A15),0), IF(OR(ISBLANK(T2_PT),T2_PT="<All>"), IFERROR(GETPIVOTDATA("provider Name",Pivots!$EI$28,"Reporting Provider Group 1_Name",T2_PG1,"Overall effectiveness",G$8,"YEAR",$A15),0), IFERROR(GETPIVOTDATA("provider Name",Pivots!$ET$28,"Reporting Provider Type_Name",T2_PT,"Overall effectiveness",G$8,"YEAR",$A15),0))) -> 95 | H15: =IF(T2_PG="<All providers>", IFERROR(GETPIVOTDATA("provider Name",Pivots!$EI$28,"Overall effectiveness",H$8,"YEAR",$A15),0), IF(OR(ISBLANK(T2_PT),T2_PT="<All>"), IFERROR(GETPIVOTDATA("provider Name",Pivots!$EI$28,"Reporting Provider Group 1_Name",T2_PG1,"Overall effectiveness",H$8,"YEAR",$A15),0), IFERROR(GETPIVOTDATA("provider Name",Pivots!$ET$28,"Reporting Provider Type_Name",T2_PT,"Overall effectiveness",H$8,"YEAR",$A15),0))) -> 29
A16: 2010/2011 | B16: 1 September 2010 - 31 August 2011 | C16: 312 | E16: =IF(T2_PG="<All providers>", IFERROR(GETPIVOTDATA("provider Name",Pivots!$EI$28,"Overall effectiveness",E$8,"YEAR",$A16),0), IF(OR(ISBLANK(T2_PT),T2_PT="<All>"), IFERROR(GETPIVOTDATA("provider Name",Pivots!$EI$28,"Reporting Provider Group 1_Name",T2_PG1,"Overall effectiveness",E$8,"YEAR",$A16),0), IFERROR(GETPIVOTDATA("provider Name",Pivots!$ET$28,"Reporting Provider Type_Name",T2_PT,"Overall effectiveness",E$8,"YEAR",$A16),0))) -> 25 | F16: =IF(T2_PG="<All providers>", IFERROR(GETPIVOTDATA("provider Name",Pivots!$EI$28,"Overall effectiveness",F$8,"YEAR",$A16),0), IF(OR(ISBLANK(T2_PT),T2_PT="<All>"), IFERROR(GETPIVOTDATA("provider Name",Pivots!$EI$28,"Reporting Provider Group 1_Name",T2_PG1,"Overall effectiveness",F$8,"YEAR",$A16),0), IFERROR(GETPIVOTDATA("provider Name",Pivots!$ET$28,"Reporting Provider Type_Name",T2_PT,"Overall effectiveness",F$8,"YEAR",$A16),0))) -> 150 | G16: =IF(T2_PG="<All providers>", IFERROR(GETPIVOTDATA("provider Name",Pivots!$EI$28,"Overall effectiveness",G$8,"YEAR",$A16),0), IF(OR(ISBLANK(T2_PT),T2_PT="<All>"), IFERROR(GETPIVOTDATA("provider Name",Pivots!$EI$28,"Reporting Provider Group 1_Name",T2_PG1,"Overall effectiveness",G$8,"YEAR",$A16),0), IFERROR(GETPIVOTDATA("provider Name",Pivots!$ET$28,"Reporting Provider Type_Name",T2_PT,"Overall effectiveness",G$8,"YEAR",$A16),0))) -> 123 | H16: =IF(T2_PG="<All providers>", IFERROR(GETPIVOTDATA("provider Name",Pivots!$EI$28,"Overall effectiveness",H$8,"YEAR",$A16),0), IF(OR(ISBLANK(T2_PT),T2_PT="<All>"), IFERROR(GETPIVOTDATA("provider Name",Pivots!$EI$28,"Reporting Provider Group 1_Name",T2_PG1,"Overall effectiveness",H$8,"YEAR",$A16),0), IFERROR(GETPIVOTDATA("provider Name",Pivots!$ET$28,"Reporting Provider Type_Name",T2_PT,"Overall effectiveness",H$8,"YEAR",$A16),0))) -> 14
H17: Source: Ofsted inspection data
C19: % Outstanding | E19: % Good | F19: ="% Requires improvement / satisfactory"&CHAR(178) -> % Requires improvement / satisfactory² | G19: % Inadequate
B20: =B11&" ("&TEXT(C11,"#,##0")&") Full and Short inspections" -> 1 September 2015 - 29 February 2016 (199) Full and Short inspections | C20: =IF(IFERROR(ROUND(E11/$C11*100,0),0)=0,NA(),E11/$C11*100) -> 7.537688442 | E20: =IF(IFERROR(ROUND(F11/$C11*100,0),0)=0,NA(),F11/$C11*100) -> 59.79899497 | F20: 23.61809045 | G20: 9.045226131
B21: =B12&" ("&TEXT(C12,"#,##0")&") Full inspections only" -> 1 September 2014 - 31 August 2015 (272) Full inspections only | C21: 4.779411765 | E21: =IF(IFERROR(ROUND(F12/$C12*100,0),0)=0,NA(),F12/$C12*100) -> 44.11764706 | F21: 38.97058824 | G21: 12.13235294
B22: =B13&" ("&TEXT(C13,"#,##0")&") Full inspections only" -> 1 September 2013 - 31 August 2014 (365) Full inspections only | C22: 4.931506849 | E22: =IF(IFERROR(ROUND(F13/$C13*100,0),0)=0,NA(),F13/$C13*100) -> 62.19178082 | F22: 27.39726027 | G22: 5.479452055
B23: =B14&" ("&TEXT(C14,"#,##0")&") Full inspections only" -> 1 September 2012 - 31 August 2013 (373) Full inspections only | C23: 3.485254692 | E23: =IF(IFERROR(ROUND(F14/$C14*100,0),0)=0,NA(),F14/$C14*100) -> 52.01072386 | F23: 35.92493298 | G23: 8.579088472
B24: =B15&" ("&TEXT(C15,"#,##0")&") Full inspections only" -> 1 September 2011 - 31 August 2012 (270) Full inspections only | C24: 7.037037037 | E24: =IF(IFERROR(ROUND(F15/$C15*100,0),0)=0,NA(),F15/$C15*100) -> 47.03703704 | F24: 35.18518519 | G24: 10.74074074
B25: =B16&" ("&TEXT(C16,"#,##0")&") Full inspections only" -> 1 September 2010 - 31 August 2011 (312) Full inspections only | C25: 8.012820513 | E25: =IF(IFERROR(ROUND(F16/$C16*100,0),0)=0,NA(),F16/$C16*100) -> 48.07692308 | F25: 39.42307692 | G25: 4.487179487
B39: 1. See 'notes' tab for a description of which providers are included in each group.
B40: 2. Prior to 1 September 2012, providers with an inspection outcome of grade 3 were judged as satisfactory.
B41: 3. Data may vary slightly to that reported in previous years, as the underlying data has been cleansed.
B42: 4. Percentages are rounded and may not add to 100. Where the number of inspections is small, percentages should be treated with caution.

Sheet C4 In-year grade 3 outcomes
B2: Chart 4: Proportion of previously grade 3 further education and skills providers that improved, declined or stayed the same at their next full inspection
B3: ="1 September 2010 - "&Inspections_To -> 1 September 2010 - 29 February 2016
C5: Total number inspected that were previously grade 3 | D5: Number of inspections
D6: Improved | E6: Same | F6: Declined
B7: 1 September 2015 - 29 February 2016 | C7: =SUM(D7:F7) -> 58 | D7: =GETPIVOTDATA("URN",Pivots!$HB$9,"Improved/Declined","Improved") -> 33 | E7: =GETPIVOTDATA("URN",Pivots!$HB$9,"Improved/Declined","Stayed the same") -> 15 | F7: =GETPIVOTDATA("URN",Pivots!$HB$9,"Improved/Declined","Declined") -> 10
B8: ="1 September 2014 - 31 August 2015" -> 1 September 2014 - 31 August 2015 | C8: =SUM(D8:F8) -> 96 | D8: 52 | E8: 34 | F8: 10
B9: ="1 September 2013 - 31 August 2014" -> 1 September 2013 - 31 August 2014 | C9: 188 | D9: 134 | E9: 46 | F9: 8
B10: ="1 September 2012 - 31 August 2013" -> 1 September 2012 - 31 August 2013 | C10: 215 | D10: 108 | E10: 87 | F10: 20
B11: ="1 September 2011 - 31 August 2012" -> 1 September 2011 - 31 August 2012 | C11: 76 | D11: 36 | E11: 31 | F11: 9
B12: ="1 September 2010 - 31 August 2011" -> 1 September 2010 - 31 August 2011 | C12: 105 | D12: 57 | E12: 45 | F12: 3
F13: Source: Ofsted inspection data
D16: % Improved | E16: % Same | F16: % Declined
B17: =B7&" ("&C7&")" -> 1 September 2015 - 29 February 2016 (58) | C17: =C7 -> 58 | D17: =D7/$C7*100 -> 56.89655172 | E17: =E7/$C7*100 -> 25.86206897 | F17: 17.24137931
B18: 1 September 2014 - 31 August 2015 (96) | C18: 96 | D18: 54.16666667 | E18: =E8/$C8*100 -> 35.41666667 | F18: 10.41666667
B19: 1 September 2013 - 31 August 2014 (188) | C19: 188 | D19: 71.27659574 | E19: 24.46808511 | F19: 4.255319149
B20: 1 September 2012 - 31 August 2013 (215) | C20: 215 | D20: 50.23255814 | E20: 40.46511628 | F20: 9.302325581
B21: 1 September 2011 - 31 August 2012 (76) | C21: 76 | D21: 47.36842105 | E21: 40.78947368 | F21: 11.84210526
B22: 1 September 2010 - 31 August 2011 (105) | C22: 105 | D22: 54.28571429 | E22: 42.85714286 | F22: 2.857142857
K35: 1
B38: 1. Data may vary slightly to that reported in previous years, as the underlying data has been cleansed.
B39: 2. Percentages are rounded and may not add to 100. Where the number of inspections is small, percentages should be treated with caution.

Sheet C5 Most recent outcomes
B2: Chart 5: Overall effectiveness of further education and skills providers at their most recent inspection
B3: ="As at "&Inspections_To -> As at 29 February 2016
C5: Inspection judgement: | H5: Overall effectiveness
I6: 1 | J6: 2 | K6: 3 | L6: 4
D7: Total number of open and funded providers | F7: Number of providers that have not yet been inspected | H7: Number of providers with inspection judgement
H8: Total | I8: Outstanding | J8: Good | K8: Requires improvement / satisfactory8 | L8: Inadequate | M8: Not judged
B9: All further education and skills providers1 | D9: =GETPIVOTDATA("Organisation ID",Pivots!$CM$5) -> 1130 | F9: =D9-H9 -> 55 | H9: =SUM(H10:H17) -> 1075 | I9: =SUM(I10:I17) -> 156 | J9: =SUM(J10:J17) -> 745 | K9: =SUM(K10:K17) -> 148 | L9: =SUM(L10:L17) -> 26
A10: College | B10: Colleges2 | D10: =GETPIVOTDATA("Organisation ID",Pivots!$CM$5,"Provider Group",A10) -> 323 | F10: =D10-H10 -> 1 | H10: =IF($H$5=Pivots!$C$171,GETPIVOTDATA("Organisation ID",Pivots!$CM$21,"Provider Group",$A10), IF($H$5=Pivots!$C$172,GETPIVOTDATA("URN",Pivots!$CM$39,"Provider Group",$A10), IF($H$5=Pivots!$C$174,GETPIVOTDATA("URN",Pivots!$CM$57,"Provider Group",$A10), IF($H$5=Pivots!$C$173,GETPIVOTDATA("URN",Pivots!$CM$75,"Provider Group",$A10), IF($H$5=Pivots!$C$175,GETPIVOTDATA("URN",Pivots!$CM$93,"Provider Group",$A10), IF($H$5=Pivots!$C$176,GETPIVOTDATA("URN",Pivots!$CM$111,"Provider Group",$A10), IF($H$5=Pivots!$C$177,GETPIVOTDATA("URN",Pivots!$CM$129,"Provider Group",$A10), IF($H$5=Pivots!$C$178,GETPIVOTDATA("URN",Pivots!$CM$147,"Provider Group",$A10), IF($H$5=Pivots!$C$179,GETPIVOTDATA("URN",Pivots!$CM$165,"Provider Group",$A10), IF($H$5=Pivots!$C$180,GETPIVOTDATA("URN",Pivots!$CM$183,"Provider Group",$A10), IF($H$5=Pivots!$C$181,GETPIVOTDATA("URN",Pivots!$CM$201,"Provider Group",$A10),0))))))))))) -> 322 | I10: =IF($H$5=Pivots!$C$171,GETPIVOTDATA("Organisation ID",Pivots!$CM$21,"Provider Group",$A10,"Overall effectiveness",I$6), IF($H$5=Pivots!$C$172,GETPIVOTDATA("URN",Pivots!$CM$39,"Provider Group",$A10,"Effectiveness of leadership and management",I$6), IF($H$5=Pivots!$C$174,GETPIVOTDATA("URN",Pivots!$CM$57,"Provider Group",$A10,"Personal development, behaviour and welfare",I$6), IF($H$5=Pivots!$C$173,GETPIVOTDATA("URN",Pivots!$CM$75,"Provider Group",$A10,"Quality of teaching, learning and assessment",I$6), IF($H$5=Pivots!$C$175,GETPIVOTDATA("URN",Pivots!$CM$93,"Provider Group",$A10,"Outcomes for learners",I$6)))))) -> 66 | J10: =IF($H$5=Pivots!$C$171,GETPIVOTDATA("Organisation ID",Pivots!$CM$21,"Provider Group",$A10,"Overall effectiveness",J$6), IF($H$5=Pivots!$C$172,GETPIVOTDATA("URN",Pivots!$CM$39,"Provider Group",$A10,"Effectiveness of leadership and management",J$6), IF($H$5=Pivots!$C$174,GETPIVOTDATA("URN",Pivots!$CM$57,"Provider Group",$A10,"Personal development, behaviour and welfare",J$6), IF($H$5=Pivots!$C$173,GETPIVOTDATA("URN",Pivots!$CM$75,"Provider Group",$A10,"Quality of teaching, learning and assessment",J$6), IF($H$5=Pivots!$C$175,GETPIVOTDATA("URN",Pivots!$CM$93,"Provider Group",$A10,"Outcomes for learners",J$6)))))) -> 198 | K10: =IF($H$5=Pivots!$C$171,GETPIVOTDATA("Organisation ID",Pivots!$CM$21,"Provider Group",$A10,"Overall effectiveness",K$6), IF($H$5=Pivots!$C$172,GETPIVOTDATA("URN",Pivots!$CM$39,"Provider Group",$A10,"Effectiveness of leadership and management",K$6), IF($H$5=Pivots!$C$174,GETPIVOTDATA("URN",Pivots!$CM$57,"Provider Group",$A10,"Personal development, behaviour and welfare",K$6), IF($H$5=Pivots!$C$173,GETPIVOTDATA("URN",Pivots!$CM$75,"Provider Group",$A10,"Quality of teaching, learning and assessment",K$6), IF($H$5=Pivots!$C$175,GETPIVOTDATA("URN",Pivots!$CM$93,"Provider Group",$A10,"Outcomes for learners",K$6)))))) -> 45 | L10: =IF($H$5=Pivots!$C$171,GETPIVOTDATA("Organisation ID",Pivots!$CM$21,"Provider Group",$A10,"Overall effectiveness",L$6), IF($H$5=Pivots!$C$172,GETPIVOTDATA("URN",Pivots!$CM$39,"Provider Group",$A10,"Effectiveness of leadership and management",L$6), IF($H$5=Pivots!$C$174,GETPIVOTDATA("URN",Pivots!$CM$57,"Provider Group",$A10,"Personal development, behaviour and welfare",L$6), IF($H$5=Pivots!$C$173,GETPIVOTDATA("URN",Pivots!$CM$75,"Provider Group",$A10,"Quality of teaching, learning and assessment",L$6), IF($H$5=Pivots!$C$175,GETPIVOTDATA("URN",Pivots!$CM$93,"Provider Group",$A10,"Outcomes for learners",L$6)))))) -> 13
A11: Independent Specialist College | B11: Independent specialist colleges | D11: =GETPIVOTDATA("Organisation ID",Pivots!$CM$5,"Provider Group",A11) -> 62 | F11: 9 | H11: =IF($H$5=Pivots!$C$171,GETPIVOTDATA("Organisation ID",Pivots!$CM$21,"Provider Group",$A11), IF($H$5=Pivots!$C$172,GETPIVOTDATA("URN",Pivots!$CM$39,"Provider Group",$A11), IF($H$5=Pivots!$C$174,GETPIVOTDATA("URN",Pivots!$CM$57,"Provider Group",$A11), IF($H$5=Pivots!$C$173,GETPIVOTDATA("URN",Pivots!$CM$75,"Provider Group",$A11), IF($H$5=Pivots!$C$175,GETPIVOTDATA("URN",Pivots!$CM$93,"Provider Group",$A11), IF($H$5=Pivots!$C$176,GETPIVOTDATA("URN",Pivots!$CM$111,"Provider Group",$A11), IF($H$5=Pivots!$C$177,GETPIVOTDATA("URN",Pivots!$CM$129,"Provider Group",$A11), IF($H$5=Pivots!$C$178,GETPIVOTDATA("URN",Pivots!$CM$147,"Provider Group",$A11), IF($H$5=Pivots!$C$179,GETPIVOTDATA("URN",Pivots!$CM$165,"Provider Group",$A11), IF($H$5=Pivots!$C$180,GETPIVOTDATA("URN",Pivots!$CM$183,"Provider Group",$A11), IF($H$5=Pivots!$C$181,GETPIVOTDATA("URN",Pivots!$CM$201,"Provider Group",$A11),0))))))))))) -> 53 | I11: =IF($H$5=Pivots!$C$171,GETPIVOTDATA("Organisation ID",Pivots!$CM$21,"Provider Group",$A11,"Overall effectiveness",I$6), IF($H$5=Pivots!$C$172,GETPIVOTDATA("URN",Pivots!$CM$39,"Provider Group",$A11,"Effectiveness of leadership and management",I$6), IF($H$5=Pivots!$C$174,GETPIVOTDATA("URN",Pivots!$CM$57,"Provider Group",$A11,"Personal development, behaviour and welfare",I$6), IF($H$5=Pivots!$C$173,GETPIVOTDATA("URN",Pivots!$CM$75,"Provider Group",$A11,"Quality of teaching, learning and assessment",I$6), IF($H$5=Pivots!$C$175,GETPIVOTDATA("URN",Pivots!$CM$93,"Provider Group",$A11,"Outcomes for learners",I$6)))))) -> 7 | J11: =IF($H$5=Pivots!$C$171,GETPIVOTDATA("Organisation ID",Pivots!$CM$21,"Provider Group",$A11,"Overall effectiveness",J$6), IF($H$5=Pivots!$C$172,GETPIVOTDATA("URN",Pivots!$CM$39,"Provider Group",$A11,"Effectiveness of leadership and management",J$6), IF($H$5=Pivots!$C$174,GETPIVOTDATA("URN",Pivots!$CM$57,"Provider Group",$A11,"Personal development, behaviour and welfare",J$6), IF($H$5=Pivots!$C$173,GETPIVOTDATA("URN",Pivots!$CM$75,"Provider Group",$A11,"Quality of teaching, learning and assessment",J$6), IF($H$5=Pivots!$C$175,GETPIVOTDATA("URN",Pivots!$CM$93,"Provider Group",$A11,"Outcomes for learners",J$6)))))) -> 38 | K11: =IF($H$5=Pivots!$C$171,GETPIVOTDATA("Organisation ID",Pivots!$CM$21,"Provider Group",$A11,"Overall effectiveness",K$6), IF($H$5=Pivots!$C$172,GETPIVOTDATA("URN",Pivots!$CM$39,"Provider Group",$A11,"Effectiveness of leadership and management",K$6), IF($H$5=Pivots!$C$174,GETPIVOTDATA("URN",Pivots!$CM$57,"Provider Group",$A11,"Personal development, behaviour and welfare",K$6), IF($H$5=Pivots!$C$173,GETPIVOTDATA("URN",Pivots!$CM$75,"Provider Group",$A11,"Quality of teaching, learning and assessment",K$6), IF($H$5=Pivots!$C$175,GETPIVOTDATA("URN",Pivots!$CM$93,"Provider Group",$A11,"Outcomes for learners",K$6)))))) -> 8 | L11: =IF($H$5=Pivots!$C$171,GETPIVOTDATA("Organisation ID",Pivots!$CM$21,"Provider Group",$A11,"Overall effectiveness",L$6), IF($H$5=Pivots!$C$172,GETPIVOTDATA("URN",Pivots!$CM$39,"Provider Group",$A11,"Effectiveness of leadership and management",L$6), IF($H$5=Pivots!$C$174,GETPIVOTDATA("URN",Pivots!$CM$57,"Provider Group",$A11,"Personal development, behaviour and welfare",L$6), IF($H$5=Pivots!$C$173,GETPIVOTDATA("URN",Pivots!$CM$75,"Provider Group",$A11,"Quality of teaching, learning and assessment",L$6), IF($H$5=Pivots!$C$175,GETPIVOTDATA("URN",Pivots!$CM$93,"Provider Group",$A11,"Outcomes for learners",L$6)))))) -> 0
A12: Independent learning Provider | B12: Independent learning providers3 | D12: =GETPIVOTDATA("Organisation ID",Pivots!$CM$5,"Provider Group",A12) -> 430 | F12: 16 | H12: =IF($H$5=Pivots!$C$171,GETPIVOTDATA("Organisation ID",Pivots!$CM$21,"Provider Group",$A12), IF($H$5=Pivots!$C$172,GETPIVOTDATA("URN",Pivots!$CM$39,"Provider Group",$A12), IF($H$5=Pivots!$C$174,GETPIVOTDATA("URN",Pivots!$CM$57,"Provider Group",$A12), IF($H$5=Pivots!$C$173,GETPIVOTDATA("URN",Pivots!$CM$75,"Provider Group",$A12), IF($H$5=Pivots!$C$175,GETPIVOTDATA("URN",Pivots!$CM$93,"Provider Group",$A12), IF($H$5=Pivots!$C$176,GETPIVOTDATA("URN",Pivots!$CM$111,"Provider Group",$A12), IF($H$5=Pivots!$C$177,GETPIVOTDATA("URN",Pivots!$CM$129,"Provider Group",$A12), IF($H$5=Pivots!$C$178,GETPIVOTDATA("URN",Pivots!$CM$147,"Provider Group",$A12), IF($H$5=Pivots!$C$179,GETPIVOTDATA("URN",Pivots!$CM$165,"Provider Group",$A12), IF($H$5=Pivots!$C$180,GETPIVOTDATA("URN",Pivots!$CM$183,"Provider Group",$A12), IF($H$5=Pivots!$C$181,GETPIVOTDATA("URN",Pivots!$CM$201,"Provider Group",$A12),0))))))))))) -> 414 | I12: =IF($H$5=Pivots!$C$171,GETPIVOTDATA("Organisation ID",Pivots!$CM$21,"Provider Group",$A12,"Overall effectiveness",I$6), IF($H$5=Pivots!$C$172,GETPIVOTDATA("URN",Pivots!$CM$39,"Provider Group",$A12,"Effectiveness of leadership and management",I$6), IF($H$5=Pivots!$C$174,GETPIVOTDATA("URN",Pivots!$CM$57,"Provider Group",$A12,"Personal development, behaviour and welfare",I$6), IF($H$5=Pivots!$C$173,GETPIVOTDATA("URN",Pivots!$CM$75,"Provider Group",$A12,"Quality of teaching, learning and assessment",I$6), IF($H$5=Pivots!$C$175,GETPIVOTDATA("URN",Pivots!$CM$93,"Provider Group",$A12,"Outcomes for learners",I$6)))))) -> 49 | J12: =IF($H$5=Pivots!$C$171,GETPIVOTDATA("Organisation ID",Pivots!$CM$21,"Provider Group",$A12,"Overall effectiveness",J$6), IF($H$5=Pivots!$C$172,GETPIVOTDATA("URN",Pivots!$CM$39,"Provider Group",$A12,"Effectiveness of leadership and management",J$6), IF($H$5=Pivots!$C$174,GETPIVOTDATA("URN",Pivots!$CM$57,"Provider Group",$A12,"Personal development, behaviour and welfare",J$6), IF($H$5=Pivots!$C$173,GETPIVOTDATA("URN",Pivots!$CM$75,"Provider Group",$A12,"Quality of teaching, learning and assessment",J$6), IF($H$5=Pivots!$C$175,GETPIVOTDATA("URN",Pivots!$CM$93,"Provider Group",$A12,"Outcomes for learners",J$6)))))) -> 297 | K12: =IF($H$5=Pivots!$C$171,GETPIVOTDATA("Organisation ID",Pivots!$CM$21,"Provider Group",$A12,"Overall effectiveness",K$6), IF($H$5=Pivots!$C$172,GETPIVOTDATA("URN",Pivots!$CM$39,"Provider Group",$A12,"Effectiveness of leadership and management",K$6), IF($H$5=Pivots!$C$174,GETPIVOTDATA("URN",Pivots!$CM$57,"Provider Group",$A12,"Personal development, behaviour and welfare",K$6), IF($H$5=Pivots!$C$173,GETPIVOTDATA("URN",Pivots!$CM$75,"Provider Group",$A12,"Quality of teaching, learning and assessment",K$6), IF($H$5=Pivots!$C$175,GETPIVOTDATA("URN",Pivots!$CM$93,"Provider Group",$A12,"Outcomes for learners",K$6)))))) -> 61 | L12: =IF($H$5=Pivots!$C$171,GETPIVOTDATA("Organisation ID",Pivots!$CM$21,"Provider Group",$A12,"Overall effectiveness",L$6), IF($H$5=Pivots!$C$172,GETPIVOTDATA("URN",Pivots!$CM$39,"Provider Group",$A12,"Effectiveness of leadership and management",L$6), IF($H$5=Pivots!$C$174,GETPIVOTDATA("URN",Pivots!$CM$57,"Provider Group",$A12,"Personal development, behaviour and welfare",L$6), IF($H$5=Pivots!$C$173,GETPIVOTDATA("URN",Pivots!$CM$75,"Provider Group",$A12,"Quality of teaching, learning and assessment",L$6), IF($H$5=Pivots!$C$175,GETPIVOTDATA("URN",Pivots!$CM$93,"Provider Group",$A12,"Outcomes for learners",L$6)))))) -> 7
A13: Community Learning and Skills Provider | B13: Community learning and skills providers4 | D13: =GETPIVOTDATA("Organisation ID",Pivots!$CM$5,"Provider Group",A13) -> 238 | F13: 3 | H13: =IF($H$5=Pivots!$C$171,GETPIVOTDATA("Organisation ID",Pivots!$CM$21,"Provider Group",$A13), IF($H$5=Pivots!$C$172,GETPIVOTDATA("URN",Pivots!$CM$39,"Provider Group",$A13), IF($H$5=Pivots!$C$174,GETPIVOTDATA("URN",Pivots!$CM$57,"Provider Group",$A13), IF($H$5=Pivots!$C$173,GETPIVOTDATA("URN",Pivots!$CM$75,"Provider Group",$A13), IF($H$5=Pivots!$C$175,GETPIVOTDATA("URN",Pivots!$CM$93,"Provider Group",$A13), IF($H$5=Pivots!$C$176,GETPIVOTDATA("URN",Pivots!$CM$111,"Provider Group",$A13), IF($H$5=Pivots!$C$177,GETPIVOTDATA("URN",Pivots!$CM$129,"Provider Group",$A13), IF($H$5=Pivots!$C$178,GETPIVOTDATA("URN",Pivots!$CM$147,"Provider Group",$A13), IF($H$5=Pivots!$C$179,GETPIVOTDATA("URN",Pivots!$CM$165,"Provider Group",$A13), IF($H$5=Pivots!$C$180,GETPIVOTDATA("URN",Pivots!$CM$183,"Provider Group",$A13), IF($H$5=Pivots!$C$181,GETPIVOTDATA("URN",Pivots!$CM$201,"Provider Group",$A13),0))))))))))) -> 235 | I13: =IF($H$5=Pivots!$C$171,GETPIVOTDATA("Organisation ID",Pivots!$CM$21,"Provider Group",$A13,"Overall effectiveness",I$6), IF($H$5=Pivots!$C$172,GETPIVOTDATA("URN",Pivots!$CM$39,"Provider Group",$A13,"Effectiveness of leadership and management",I$6), IF($H$5=Pivots!$C$174,GETPIVOTDATA("URN",Pivots!$CM$57,"Provider Group",$A13,"Personal development, behaviour and welfare",I$6), IF($H$5=Pivots!$C$173,GETPIVOTDATA("URN",Pivots!$CM$75,"Provider Group",$A13,"Quality of teaching, learning and assessment",I$6), IF($H$5=Pivots!$C$175,GETPIVOTDATA("URN",Pivots!$CM$93,"Provider Group",$A13,"Outcomes for learners",I$6)))))) -> 13 | J13: =IF($H$5=Pivots!$C$171,GETPIVOTDATA("Organisation ID",Pivots!$CM$21,"Provider Group",$A13,"Overall effectiveness",J$6), IF($H$5=Pivots!$C$172,GETPIVOTDATA("URN",Pivots!$CM$39,"Provider Group",$A13,"Effectiveness of leadership and management",J$6), IF($H$5=Pivots!$C$174,GETPIVOTDATA("URN",Pivots!$CM$57,"Provider Group",$A13,"Personal development, behaviour and welfare",J$6), IF($H$5=Pivots!$C$173,GETPIVOTDATA("URN",Pivots!$CM$75,"Provider Group",$A13,"Quality of teaching, learning and assessment",J$6), IF($H$5=Pivots!$C$175,GETPIVOTDATA("URN",Pivots!$CM$93,"Provider Group",$A13,"Outcomes for learners",J$6)))))) -> 189 | K13: =IF($H$5=Pivots!$C$171,GETPIVOTDATA("Organisation ID",Pivots!$CM$21,"Provider Group",$A13,"Overall effectiveness",K$6), IF($H$5=Pivots!$C$172,GETPIVOTDATA("URN",Pivots!$CM$39,"Provider Group",$A13,"Effectiveness of leadership and management",K$6), IF($H$5=Pivots!$C$174,GETPIVOTDATA("URN",Pivots!$CM$57,"Provider Group",$A13,"Personal development, behaviour and welfare",K$6), IF($H$5=Pivots!$C$173,GETPIVOTDATA("URN",Pivots!$CM$75,"Provider Group",$A13,"Quality of teaching, learning and assessment",K$6), IF($H$5=Pivots!$C$175,GETPIVOTDATA("URN",Pivots!$CM$93,"Provider Group",$A13,"Outcomes for learners",K$6)))))) -> 29 | L13: =IF($H$5=Pivots!$C$171,GETPIVOTDATA("Organisation ID",Pivots!$CM$21,"Provider Group",$A13,"Overall effectiveness",L$6), IF($H$5=Pivots!$C$172,GETPIVOTDATA("URN",Pivots!$CM$39,"Provider Group",$A13,"Effectiveness of leadership and management",L$6), IF($H$5=Pivots!$C$174,GETPIVOTDATA("URN",Pivots!$CM$57,"Provider Group",$A13,"Personal development, behaviour and welfare",L$6), IF($H$5=Pivots!$C$173,GETPIVOTDATA("URN",Pivots!$CM$75,"Provider Group",$A13,"Quality of teaching, learning and assessment",L$6), IF($H$5=Pivots!$C$175,GETPIVOTDATA("URN",Pivots!$CM$93,"Provider Group",$A13,"Outcomes for learners",L$6)))))) -> 4
A14: 16-19 Academy | B14: 16-19 academies5 | D14: =GETPIVOTDATA("Organisation ID",Pivots!$CM$5,"Provider Group",A14) -> 19 | F14: 9 | H14: =IF($H$5=Pivots!$C$171,GETPIVOTDATA("Organisation ID",Pivots!$CM$21,"Provider Group",$A14), IF($H$5=Pivots!$C$172,GETPIVOTDATA("URN",Pivots!$CM$39,"Provider Group",$A14), IF($H$5=Pivots!$C$174,GETPIVOTDATA("URN",Pivots!$CM$57,"Provider Group",$A14), IF($H$5=Pivots!$C$173,GETPIVOTDATA("URN",Pivots!$CM$75,"Provider Group",$A14), IF($H$5=Pivots!$C$175,GETPIVOTDATA("URN",Pivots!$CM$93,"Provider Group",$A14), IF($H$5=Pivots!$C$176,GETPIVOTDATA("URN",Pivots!$CM$111,"Provider Group",$A14), IF($H$5=Pivots!$C$177,GETPIVOTDATA("URN",Pivots!$CM$129,"Provider Group",$A14), IF($H$5=Pivots!$C$178,GETPIVOTDATA("URN",Pivots!$CM$147,"Provider Group",$A14), IF($H$5=Pivots!$C$179,GETPIVOTDATA("URN",Pivots!$CM$165,"Provider Group",$A14), IF($H$5=Pivots!$C$180,GETPIVOTDATA("URN",Pivots!$CM$183,"Provider Group",$A14), IF($H$5=Pivots!$C$181,GETPIVOTDATA("URN",Pivots!$CM$201,"Provider Group",$A14),0))))))))))) -> 10 | I14: =IF($H$5=Pivots!$C$171,GETPIVOTDATA("Organisation ID",Pivots!$CM$21,"Provider Group",$A14,"Overall effectiveness",I$6), IF($H$5=Pivots!$C$172,GETPIVOTDATA("URN",Pivots!$CM$39,"Provider Group",$A14,"Effectiveness of leadership and management",I$6), IF($H$5=Pivots!$C$174,GETPIVOTDATA("URN",Pivots!$CM$57,"Provider Group",$A14,"Personal development, behaviour and welfare",I$6), IF($H$5=Pivots!$C$173,GETPIVOTDATA("URN",Pivots!$CM$75,"Provider Group",$A14,"Quality of teaching, learning and assessment",I$6), IF($H$5=Pivots!$C$175,GETPIVOTDATA("URN",Pivots!$CM$93,"Provider Group",$A14,"Outcomes for learners",I$6)))))) -> 1 | J14: =IF($H$5=Pivots!$C$171,GETPIVOTDATA("Organisation ID",Pivots!$CM$21,"Provider Group",$A14,"Overall effectiveness",J$6), IF($H$5=Pivots!$C$172,GETPIVOTDATA("URN",Pivots!$CM$39,"Provider Group",$A14,"Effectiveness of leadership and management",J$6), IF($H$5=Pivots!$C$174,GETPIVOTDATA("URN",Pivots!$CM$57,"Provider Group",$A14,"Personal development, behaviour and welfare",J$6), IF($H$5=Pivots!$C$173,GETPIVOTDATA("URN",Pivots!$CM$75,"Provider Group",$A14,"Quality of teaching, learning and assessment",J$6), IF($H$5=Pivots!$C$175,GETPIVOTDATA("URN",Pivots!$CM$93,"Provider Group",$A14,"Outcomes for learners",J$6)))))) -> 3 | K14: =IF($H$5=Pivots!$C$171,GETPIVOTDATA("Organisation ID",Pivots!$CM$21,"Provider Group",$A14,"Overall effectiveness",K$6), IF($H$5=Pivots!$C$172,GETPIVOTDATA("URN",Pivots!$CM$39,"Provider Group",$A14,"Effectiveness of leadership and management",K$6), IF($H$5=Pivots!$C$174,GETPIVOTDATA("URN",Pivots!$CM$57,"Provider Group",$A14,"Personal development, behaviour and welfare",K$6), IF($H$5=Pivots!$C$173,GETPIVOTDATA("URN",Pivots!$CM$75,"Provider Group",$A14,"Quality of teaching, learning and assessment",K$6), IF($H$5=Pivots!$C$175,GETPIVOTDATA("URN",Pivots!$CM$93,"Provider Group",$A14,"Outcomes for learners",K$6)))))) -> 4 | L14: =IF($H$5=Pivots!$C$171,GETPIVOTDATA("Organisation ID",Pivots!$CM$21,"Provider Group",$A14,"Overall effectiveness",L$6), IF($H$5=Pivots!$C$172,GETPIVOTDATA("URN",Pivots!$CM$39,"Provider Group",$A14,"Effectiveness of leadership and management",L$6), IF($H$5=Pivots!$C$174,GETPIVOTDATA("URN",Pivots!$CM$57,"Provider Group",$A14,"Personal development, behaviour and welfare",L$6), IF($H$5=Pivots!$C$173,GETPIVOTDATA("URN",Pivots!$CM$75,"Provider Group",$A14,"Quality of teaching, learning and assessment",L$6), IF($H$5=Pivots!$C$175,GETPIVOTDATA("URN",Pivots!$CM$93,"Provider Group",$A14,"Outcomes for learners",L$6)))))) -> 2
A15: Dance and Drama College | B15: Dance and drama colleges6 | D15: =GETPIVOTDATA("Organisation ID",Pivots!$CM$5,"Provider Group",A15) -> 19 | F15: 3 | H15: =IF($H$5=Pivots!$C$171,GETPIVOTDATA("Organisation ID",Pivots!$CM$21,"Provider Group",$A15), IF($H$5=Pivots!$C$172,GETPIVOTDATA("URN",Pivots!$CM$39,"Provider Group",$A15), IF($H$5=Pivots!$C$174,GETPIVOTDATA("URN",Pivots!$CM$57,"Provider Group",$A15), IF($H$5=Pivots!$C$173,GETPIVOTDATA("URN",Pivots!$CM$75,"Provider Group",$A15), IF($H$5=Pivots!$C$175,GETPIVOTDATA("URN",Pivots!$CM$93,"Provider Group",$A15), IF($H$5=Pivots!$C$176,GETPIVOTDATA("URN",Pivots!$CM$111,"Provider Group",$A15), IF($H$5=Pivots!$C$177,GETPIVOTDATA("URN",Pivots!$CM$129,"Provider Group",$A15), IF($H$5=Pivots!$C$178,GETPIVOTDATA("URN",Pivots!$CM$147,"Provider Group",$A15), IF($H$5=Pivots!$C$179,GETPIVOTDATA("URN",Pivots!$CM$165,"Provider Group",$A15), IF($H$5=Pivots!$C$180,GETPIVOTDATA("URN",Pivots!$CM$183,"Provider Group",$A15), IF($H$5=Pivots!$C$181,GETPIVOTDATA("URN",Pivots!$CM$201,"Provider Group",$A15),0))))))))))) -> 16 | I15: =IF($H$5=Pivots!$C$171,GETPIVOTDATA("Organisation ID",Pivots!$CM$21,"Provider Group",$A15,"Overall effectiveness",I$6), IF($H$5=Pivots!$C$172,GETPIVOTDATA("URN",Pivots!$CM$39,"Provider Group",$A15,"Effectiveness of leadership and management",I$6), IF($H$5=Pivots!$C$174,GETPIVOTDATA("URN",Pivots!$CM$57,"Provider Group",$A15,"Personal development, behaviour and welfare",I$6), IF($H$5=Pivots!$C$173,GETPIVOTDATA("URN",Pivots!$CM$75,"Provider Group",$A15,"Quality of teaching, learning and assessment",I$6), IF($H$5=Pivots!$C$175,GETPIVOTDATA("URN",Pivots!$CM$93,"Provider Group",$A15,"Outcomes for learners",I$6)))))) -> 12 | J15: =IF($H$5=Pivots!$C$171,GETPIVOTDATA("Organisation ID",Pivots!$CM$21,"Provider Group",$A15,"Overall effectiveness",J$6), IF($H$5=Pivots!$C$172,GETPIVOTDATA("URN",Pivots!$CM$39,"Provider Group",$A15,"Effectiveness of leadership and management",J$6), IF($H$5=Pivots!$C$174,GETPIVOTDATA("URN",Pivots!$CM$57,"Provider Group",$A15,"Personal development, behaviour and welfare",J$6), IF($H$5=Pivots!$C$173,GETPIVOTDATA("URN",Pivots!$CM$75,"Provider Group",$A15,"Quality of teaching, learning and assessment",J$6), IF($H$5=Pivots!$C$175,GETPIVOTDATA("URN",Pivots!$CM$93,"Provider Group",$A15,"Outcomes for learners",J$6)))))) -> 3 | K15: =IF($H$5=Pivots!$C$171,GETPIVOTDATA("Organisation ID",Pivots!$CM$21,"Provider Group",$A15,"Overall effectiveness",K$6), IF($H$5=Pivots!$C$172,GETPIVOTDATA("URN",Pivots!$CM$39,"Provider Group",$A15,"Effectiveness of leadership and management",K$6), IF($H$5=Pivots!$C$174,GETPIVOTDATA("URN",Pivots!$CM$57,"Provider Group",$A15,"Personal development, behaviour and welfare",K$6), IF($H$5=Pivots!$C$173,GETPIVOTDATA("URN",Pivots!$CM$75,"Provider Group",$A15,"Quality of teaching, learning and assessment",K$6), IF($H$5=Pivots!$C$175,GETPIVOTDATA("URN",Pivots!$CM$93,"Provider Group",$A15,"Outcomes for learners",K$6)))))) -> 1 | L15: =IF($H$5=Pivots!$C$171,GETPIVOTDATA("Organisation ID",Pivots!$CM$21,"Provider Group",$A15,"Overall effectiveness",L$6), IF($H$5=Pivots!$C$172,GETPIVOTDATA("URN",Pivots!$CM$39,"Provider Group",$A15,"Effectiveness of leadership and management",L$6), IF($H$5=Pivots!$C$174,GETPIVOTDATA("URN",Pivots!$CM$57,"Provider Group",$A15,"Personal development, behaviour and welfare",L$6), IF($H$5=Pivots!$C$173,GETPIVOTDATA("URN",Pivots!$CM$75,"Provider Group",$A15,"Quality of teaching, learning and assessment",L$6), IF($H$5=Pivots!$C$175,GETPIVOTDATA("URN",Pivots!$CM$93,"Provider Group",$A15,"Outcomes for learners",L$6)))))) -> 0
A16: Higher Education Institution | B16: Higher education institutions7 | D16: =GETPIVOTDATA("Organisation ID",Pivots!$CM$5,"Provider Group",A16) -> 26 | F16: 1 | H16: =IF($H$5=Pivots!$C$171,GETPIVOTDATA("Organisation ID",Pivots!$CM$21,"Provider Group",$A16), IF($H$5=Pivots!$C$172,GETPIVOTDATA("URN",Pivots!$CM$39,"Provider Group",$A16), IF($H$5=Pivots!$C$174,GETPIVOTDATA("URN",Pivots!$CM$57,"Provider Group",$A16), IF($H$5=Pivots!$C$173,GETPIVOTDATA("URN",Pivots!$CM$75,"Provider Group",$A16), IF($H$5=Pivots!$C$175,GETPIVOTDATA("URN",Pivots!$CM$93,"Provider Group",$A16), IF($H$5=Pivots!$C$176,GETPIVOTDATA("URN",Pivots!$CM$111,"Provider Group",$A16), IF($H$5=Pivots!$C$177,GETPIVOTDATA("URN",Pivots!$CM$129,"Provider Group",$A16), IF($H$5=Pivots!$C$178,GETPIVOTDATA("URN",Pivots!$CM$147,"Provider Group",$A16), IF($H$5=Pivots!$C$179,GETPIVOTDATA("URN",Pivots!$CM$165,"Provider Group",$A16), IF($H$5=Pivots!$C$180,GETPIVOTDATA("URN",Pivots!$CM$183,"Provider Group",$A16), IF($H$5=Pivots!$C$181,GETPIVOTDATA("URN",Pivots!$CM$201,"Provider Group",$A16),0))))))))))) -> 25 | I16: =IF($H$5=Pivots!$C$171,GETPIVOTDATA("Organisation ID",Pivots!$CM$21,"Provider Group",$A16,"Overall effectiveness",I$6), IF($H$5=Pivots!$C$172,GETPIVOTDATA("URN",Pivots!$CM$39,"Provider Group",$A16,"Effectiveness of leadership and management",I$6), IF($H$5=Pivots!$C$174,GETPIVOTDATA("URN",Pivots!$CM$57,"Provider Group",$A16,"Personal development, behaviour and welfare",I$6), IF($H$5=Pivots!$C$173,GETPIVOTDATA("URN",Pivots!$CM$75,"Provider Group",$A16,"Quality of teaching, learning and assessment",I$6), IF($H$5=Pivots!$C$175,GETPIVOTDATA("URN",Pivots!$CM$93,"Provider Group",$A16,"Outcomes for learners",I$6)))))) -> 8 | J16: =IF($H$5=Pivots!$C$171,GETPIVOTDATA("Organisation ID",Pivots!$CM$21,"Provider Group",$A16,"Overall effectiveness",J$6), IF($H$5=Pivots!$C$172,GETPIVOTDATA("URN",Pivots!$CM$39,"Provider Group",$A16,"Effectiveness of leadership and management",J$6), IF($H$5=Pivots!$C$174,GETPIVOTDATA("URN",Pivots!$CM$57,"Provider Group",$A16,"Personal development, behaviour and welfare",J$6), IF($H$5=Pivots!$C$173,GETPIVOTDATA("URN",Pivots!$CM$75,"Provider Group",$A16,"Quality of teaching, learning and assessment",J$6), IF($H$5=Pivots!$C$175,GETPIVOTDATA("URN",Pivots!$CM$93,"Provider Group",$A16,"Outcomes for learners",J$6)))))) -> 17 | K16: =IF($H$5=Pivots!$C$171,GETPIVOTDATA("Organisation ID",Pivots!$CM$21,"Provider Group",$A16,"Overall effectiveness",K$6), IF($H$5=Pivots!$C$172,GETPIVOTDATA("URN",Pivots!$CM$39,"Provider Group",$A16,"Effectiveness of leadership and management",K$6), IF($H$5=Pivots!$C$174,GETPIVOTDATA("URN",Pivots!$CM$57,"Provider Group",$A16,"Personal development, behaviour and welfare",K$6), IF($H$5=Pivots!$C$173,GETPIVOTDATA("URN",Pivots!$CM$75,"Provider Group",$A16,"Quality of teaching, learning and assessment",K$6), IF($H$5=Pivots!$C$175,GETPIVOTDATA("URN",Pivots!$CM$93,"Provider Group",$A16,"Outcomes for learners",K$6)))))) -> 0 | L16: =IF($H$5=Pivots!$C$171,GETPIVOTDATA("Organisation ID",Pivots!$CM$21,"Provider Group",$A16,"Overall effectiveness",L$6), IF($H$5=Pivots!$C$172,GETPIVOTDATA("URN",Pivots!$CM$39,"Provider Group",$A16,"Effectiveness of leadership and management",L$6), IF($H$5=Pivots!$C$174,GETPIVOTDATA("URN",Pivots!$CM$57,"Provider Group",$A16,"Personal development, behaviour and welfare",L$6), IF($H$5=Pivots!$C$173,GETPIVOTDATA("URN",Pivots!$CM$75,"Provider Group",$A16,"Quality of teaching, learning and assessment",L$6), IF($H$5=Pivots!$C$175,GETPIVOTDATA("URN",Pivots!$CM$93,"Provider Group",$A16,"Outcomes for learners",L$6)))))) -> 0
A17: National Careers Service Contractor | B17: National Careers Service contractors | D17: =GETPIVOTDATA("Organisation ID",Pivots!$CM$5,"Provider Group",A17) -> 13 | F17: 13 | H17: =IF($H$5=Pivots!$C$171,GETPIVOTDATA("Organisation ID",Pivots!$CM$21,"Provider Group",$A17), IF($H$5=Pivots!$C$172,GETPIVOTDATA("URN",Pivots!$CM$39,"Provider Group",$A17), IF($H$5=Pivots!$C$174,GETPIVOTDATA("URN",Pivots!$CM$57,"Provider Group",$A17), IF($H$5=Pivots!$C$173,GETPIVOTDATA("URN",Pivots!$CM$75,"Provider Group",$A17), IF($H$5=Pivots!$C$175,GETPIVOTDATA("URN",Pivots!$CM$93,"Provider Group",$A17), IF($H$5=Pivots!$C$176,GETPIVOTDATA("URN",Pivots!$CM$111,"Provider Group",$A17), IF($H$5=Pivots!$C$177,GETPIVOTDATA("URN",Pivots!$CM$129,"Provider Group",$A17), IF($H$5=Pivots!$C$178,GETPIVOTDATA("URN",Pivots!$CM$147,"Provider Group",$A17), IF($H$5=Pivots!$C$179,GETPIVOTDATA("URN",Pivots!$CM$165,"Provider Group",$A17), IF($H$5=Pivots!$C$180,GETPIVOTDATA("URN",Pivots!$CM$183,"Provider Group",$A17), IF($H$5=Pivots!$C$181,GETPIVOTDATA("URN",Pivots!$CM$201,"Provider Group",$A17),0))))))))))) -> 0 | I17: =IF($H$5=Pivots!$C$171,GETPIVOTDATA("Organisation ID",Pivots!$CM$21,"Provider Group",$A17,"Overall effectiveness",I$6), IF($H$5=Pivots!$C$172,GETPIVOTDATA("URN",Pivots!$CM$39,"Provider Group",$A17,"Effectiveness of leadership and management",I$6), IF($H$5=Pivots!$C$174,GETPIVOTDATA("URN",Pivots!$CM$57,"Provider Group",$A17,"Personal development, behaviour and welfare",I$6), IF($H$5=Pivots!$C$173,GETPIVOTDATA("URN",Pivots!$CM$75,"Provider Group",$A17,"Quality of teaching, learning and assessment",I$6), IF($H$5=Pivots!$C$175,GETPIVOTDATA("URN",Pivots!$CM$93,"Provider Group",$A17,"Outcomes for learners",I$6)))))) -> 0 | J17: =IF($H$5=Pivots!$C$171,GETPIVOTDATA("Organisation ID",Pivots!$CM$21,"Provider Group",$A17,"Overall effectiveness",J$6), IF($H$5=Pivots!$C$172,GETPIVOTDATA("URN",Pivots!$CM$39,"Provider Group",$A17,"Effectiveness of leadership and management",J$6), IF($H$5=Pivots!$C$174,GETPIVOTDATA("URN",Pivots!$CM$57,"Provider Group",$A17,"Personal development, behaviour and welfare",J$6), IF($H$5=Pivots!$C$173,GETPIVOTDATA("URN",Pivots!$CM$75,"Provider Group",$A17,"Quality of teaching, learning and assessment",J$6), IF($H$5=Pivots!$C$175,GETPIVOTDATA("URN",Pivots!$CM$93,"Provider Group",$A17,"Outcomes for learners",J$6)))))) -> 0 | K17: =IF($H$5=Pivots!$C$171,GETPIVOTDATA("Organisation ID",Pivots!$CM$21,"Provider Group",$A17,"Overall effectiveness",K$6), IF($H$5=Pivots!$C$172,GETPIVOTDATA("URN",Pivots!$CM$39,"Provider Group",$A17,"Effectiveness of leadership and management",K$6), IF($H$5=Pivots!$C$174,GETPIVOTDATA("URN",Pivots!$CM$57,"Provider Group",$A17,"Personal development, behaviour and welfare",K$6), IF($H$5=Pivots!$C$173,GETPIVOTDATA("URN",Pivots!$CM$75,"Provider Group",$A17,"Quality of teaching, learning and assessment",K$6), IF($H$5=Pivots!$C$175,GETPIVOTDATA("URN",Pivots!$CM$93,"Provider Group",$A17,"Outcomes for learners",K$6)))))) -> 0 | L17: =IF($H$5=Pivots!$C$171,GETPIVOTDATA("Organisation ID",Pivots!$CM$21,"Provider Group",$A17,"Overall effectiveness",L$6), IF($H$5=Pivots!$C$172,GETPIVOTDATA("URN",Pivots!$CM$39,"Provider Group",$A17,"Effectiveness of leadership and management",L$6), IF($H$5=Pivots!$C$174,GETPIVOTDATA("URN",Pivots!$CM$57,"Provider Group",$A17,"Personal development, behaviour and welfare",L$6), IF($H$5=Pivots!$C$173,GETPIVOTDATA("URN",Pivots!$CM$75,"Provider Group",$A17,"Quality of teaching, learning and assessment",L$6), IF($H$5=Pivots!$C$175,GETPIVOTDATA("URN",Pivots!$CM$93,"Provider Group",$A17,"Outcomes for learners",L$6)))))) -> 0
L18: Source: Ofsted inspection data
I19: % Outstanding | J19: % Good | K19: % Requires improvement / satisfactory | L19: % Inadequate
B20: =IF(OR(RIGHT(B9,1)="1",RIGHT(B9,1)="2",RIGHT(B9,1)="3",RIGHT(B9,1)="4",RIGHT(B9,1)="5",RIGHT(B9,1)="6",RIGHT(B9,1)="7",RIGHT(B9,1)="8",RIGHT(B9,1)="9"),LEFT(B9,LEN(B9)-1),B9)&" ("&TEXT(H9,"#,##0")&")" -> All further education and skills providers (1,075) | I20: =IFERROR(IF(ROUND(I9/$H9*100,0)=0,NA(),I9/$H9*100),NA()) -> 14.51162791 | J20: 69.30232558 | K20: 13.76744186 | L20: 2.418604651 | M20: =100-(IFERROR(I20,0)+IFERROR(J20,0)+IFERROR(K20,0)+IFERROR(L20,0)) -> 0
B21: Colleges (322) | I21: 20.49689441 | J21: 61.49068323 | K21: 13.97515528 | L21: 4.037267081 | M21: =100-(IFERROR(I21,0)+IFERROR(J21,0)+IFERROR(K21,0)+IFERROR(L21,0)) -> 0
B22: Independent specialist colleges (53) | I22: =IFERROR(IF(ROUND(I11/$H11*100,0)=0,NA(),I11/$H11*100),NA()) -> 13.20754717 | J22: 71.69811321 | K22: 15.09433962 | M22: 0
B23: Independent learning providers (414) | I23: =IFERROR(IF(ROUND(I12/$H12*100,0)=0,NA(),I12/$H12*100),NA()) -> 11.83574879 | J23: 71.73913043 | K23: 14.73429952 | L23: 1.690821256 | M23: 0
B24: Community learning and skills providers (235) | I24: =IFERROR(IF(ROUND(I13/$H13*100,0)=0,NA(),I13/$H13*100),NA()) -> 5.531914894 | J24: 80.42553191 | K24: 12.34042553 | L24: 1.70212766 | M24: 0
B25: 16-19 academies (10) | I25: =IFERROR(IF(ROUND(I14/$H14*100,0)=0,NA(),I14/$H14*100),NA()) -> 10 | J25: 30 | K25: 40 | L25: 20 | M25: 0
B26: Dance and drama colleges (16) | I26: =IFERROR(IF(ROUND(I15/$H15*100,0)=0,NA(),I15/$H15*100),NA()) -> 75 | J26: 18.75 | K26: 6.25 | M26: 0
B27: Higher education institutions (25) | I27: =IFERROR(IF(ROUND(I16/$H16*100,0)=0,NA(),I16/$H16*100),NA()) -> 32 | J27: 68 | M27: 0
B28: National Careers Service contractors (0) | I28: =IFERROR(IF(ROUND(I17/$H17*100,0)=0,NA(),I17/$H17*100),NA()) ->  | M28: 100
B43: 1. Does not include prison and young offender institution inspections.
B44: 2. Includes general further education colleges, sixth form colleges and specialist further education colleges.
B45: 3. Includes employer providers.
B46: 4. Includes local authority, not for profit and specialist designated providers.
B47: 5. Includes 16-19 free schools, 16-19 academy converters and 16-19 sponsor led academies.
B48: 6. Inspections from 1 September 2015.
B49: 7. Inspection of further education provision only, not provider as a whole.
B50: 8. Prior to 1 September 2012, providers with an inspection outcome of grade 3 were judged as satisfactory.
B51: 9. Percentages are rounded and may not add to 100. Where the number of providers is small, percentages should be treated with caution.

Sheet C6 Most recent over time
B2: Chart 6: Most recent overall effectiveness of further education and skills providers, over time
B3: ="31 August 2011 to "&Inspections_To -> 31 August 2011 to 29 February 2016
C5: Total number of open and funded providers inspected1 | D5: Number of providers
B6: Latest inspection as at: | D6: Outstanding | E6: Good | F6: Requires improvement / satisfactory2 | G6: Inadequate
B7: =Dates1!B14 -> 29 February 2016 | C7: =SUM(D7:G7) -> 1075 | D7: =GETPIVOTDATA("URN",Pivots!$HU$7,"Overall effectiveness",1) -> 156 | E7: =GETPIVOTDATA("URN",Pivots!$HU$7,"Overall effectiveness",2) -> 745 | F7: =GETPIVOTDATA("URN",Pivots!$HU$7,"Overall effectiveness",3) -> 148 | G7: =GETPIVOTDATA("URN",Pivots!$HU$7,"Overall effectiveness",4) -> 26
B8: =Dates1!B15 -> 31 August 2015 | C8: =SUM(D8:G8) -> 1058 | D8: 141 | E8: 722 | F8: 162 | G8: 33
B9: =Dates1!B16 -> 31 August 2014 | C9: =SUM(D9:G9) -> 1058 | D9: 145 | E9: 712 | F9: 173 | G9: 28
B10: =Dates1!B17 -> 31 August 2013 | C10: 1083 | D10: 151 | E10: 623 | F10: 270 | G10: 39
B11: =Dates1!B18 -> 31 August 2012 | C11: 1130 | D11: 151 | E11: 574 | F11: 371 | G11: 34
B12: =Dates1!B19 -> 31 August 2011 | C12: 1313 | D12: 160 | E12: 665 | F12: 466 | G12: 22
G13: Source: Ofsted inspection data
C15: % Outstanding | D15: % Good | E15: ="% Requires improvement / satisfactory"&CHAR(178) -> % Requires improvement / satisfactory² | F15: % Inadequate
B16: =B7&" ("&TEXT(C7,"#,####")&")" -> 29 February 2016 (1,075) | C16: =IFERROR(D7/$C7*100,0) -> 14.51162791 | D16: 69.30232558 | E16: 13.76744186 | F16: 2.418604651
B17: =B8&" ("&TEXT(C8,"#,####")&")" -> 31 August 2015 (1,058) | C17: 13.32703214 | D17: 68.24196597 | E17: 15.31190926 | F17: 3.119092628
B18: 31 August 2014 (1,058) | C18: 13.70510397 | D18: 67.29678639 | E18: 16.35160681 | F18: 2.646502836
B19: 31 August 2013 (1,083) | C19: 13.94275162 | D19: 57.52539243 | E19: 24.93074792 | F19: 3.601108033
B20: 31 August 2012 (1,130) | C20: 13.36283186 | D20: 50.79646018 | E20: 32.83185841 | F20: 3.008849558
B21: 31 August 2011 (1,313) | C21: 12.18583397 | D21: 50.64737243 | E21: 35.49124143 | F21: 1.675552171
B39: 1. Does not include prison and young offender institutions.
B40: 2. Prior to 1 September 2012, providers with an inspection outcome of grade 3 were judged as satisfactory.
B41: 3. Excludes higher education institutions and National Careers Service contractors before 1 September 2015.
B42: 4. Providers that ceased to be funded or closed during the corresponding reporting year are included before 1 September 2015.
B43: 5. Academies introduced from 1 September 2013.
B44: 6. Dance and drama colleges eligible for inclusion from 1 September 2015.
B45: 7. Percentages are rounded and may not add to 100.

Sheet Pivots (hidden)
A2: Table 1 | F2: Re-inspection/Monitoring visits | V2: Table 2 | AF2: Table 2 | AP2: Table 2 | AZ2: Table 2 | CA2: Table 2a - Prison outcomes | CM2: Table 3 - SoN | CV2: Table 4 | EI2: Chart 1 | GA2: Chart 2 | GQ2: Chart 3 | HB2: Chart 4 | HK2: Chart 5 | HU2: Chart 6
F3: Short conversions | EI3: Last day of inspection | EJ3: (All)
V4: Overall effectiveness | AP4: Overall effectiveness | GA4: FULL | GH4: FULL and SHORT | GQ4: Overall effectiveness
CA5: Overall effectiveness of learning and skills and work activities | CM5: Row Labels | CN5: Count of Organisation ID | EI5: Count of URN | EJ5: Column Labels | GA5: Count of URN | GB5: Column Labels | GH5: Count of URN | GI5: Column Labels
A6: Count of Organisation ID | B6: Column Labels | V6: Count of Organisation ID | W6: Column Labels | AF6: Count of Organisation ID | AG6: Column Labels | AP6: Count of Organisation ID | AQ6: Column Labels | AZ6: Count of Organisation ID | BA6: Column Labels | CM6: 16-19 Academy | CN6: 19 | EI6: Row Labels | EJ6: 1 | EK6: 2 | EL6: 3 | EM6: 4 | EN6: NULL | EO6: - | EP6: Grand Total | GA6: Row Labels | GB6: 1 | GC6: 2 | GD6: 3 | GE6: 4 | GF6: Grand Total | GH6: Row Labels | GI6: 1 | GJ6: 2 | GK6: 3 | GL6: 4 | GM6: Grand Total | GQ6: Count of URN | GR6: Column Labels | HB6: Previous overall effectiveness | HC6: 3
A7: Row Labels | B7: Full | C7: Monitoring | D7: Reinspection | E7: Reinspection monitoring | F7: Short | G7: Short | H7: NULL | I7: Grand Total | V7: Row Labels | W7: 0 | X7: 1 | Y7: 2 | Z7: 3 | AA7: 4 | AB7: 9 | AC7: - | AD7: Grand Total | AF7: Row Labels | AG7: 0 | AH7: 1 | AI7: 2 | AJ7: 3 | AK7: 4 | AL7: 9 | AM7: - | AN7: Grand Total | AP7: Row Labels | AQ7: 1 | AR7: 2 | AS7: 3 | AT7: 4 | AU7: - | AV7: (blank) | AW7: Grand Total | AZ7: Row Labels | BA7: 1 | BB7: 2 | BC7: 3 | BD7: 4 | BE7: - | BF7: (blank) | BG7: Grand Total | CA7: Row Labels | CB7: Count of Organisation ID | CM7: College | CN7: 323 | CV7: Inspection type grouping | CW7: (All) | EI7: 16-19 Academy | EJ7: 1 | EK7: 3 | EL7: 4 | EM7: 2 | EN7: 9 | EP7: 19 | GA7: 16-19 Academy | GC7: 1 | GD7: 1 | GF7: 2 | GH7: 16-19 Academy | GJ7: 1 | GK7: 1 | GM7: 2 | GQ7: Row Labels | GR7: 0 | GS7: 1 | GT7: 2 | GU7: 3 | GV7: 4 | GW7: 9 | GX7: - | GY7: Grand Total | HB7: Flag DS_1a | HC7: Y | HK7: Count of URN | HL7: Column Labels | HV7: Column Labels
A8: FES - Full Inspection | B8: 141 | D8: 6 | I8: 147 | V8: 16-19 Academy | Y8: 1 | Z8: 1 | AC8: 4 | AD8: 6 | AF8: 16-19 academy converter | AI8: 1 | AJ8: 1 | AN8: 2 | AP8: 16-19 Academy | AR8: 1 | AS8: 1 | AU8: 4 | AW8: 6 | AZ8: 16-19 academy converter | BB8: 1 | BC8: 1 | BG8: 2 | CA8: 1 | CM8: Community learning and skills provider | CN8: 238 | EI8: College | EJ8: 66 | EK8: 198 | EL8: 45 | EM8: 13 | EN8: 1 | EP8: 323 | GA8: College | GC8: 20 | GD8: 17 | GE8: 9 | GF8: 46 | GH8: College | GJ8: 34 | GK8: 17 | GL8: 9 | GM8: 60 | GQ8: 16-19 Academy | GT8: 1 | GU8: 1 | GX8: 4 | GY8: 6 | HK8: Row Labels | HL8: 1 | HM8: 2 | HN8: 3 | HO8: 4 | HP8: NULL | HQ8: - | HR8: Grand Total | HV8: 1 | HW8: 2 | HX8: 3 | HY8: 4 | HZ8: NULL | IA8: - | IB8: Grand Total
A9: FES - Monitoring Inspection | C9: 1 | E9: 20 | I9: 21 | V9: College | Y9: 20 | Z9: 17 | AA9: 9 | AC9: 24 | AD9: 70 | AF9: 16-19 free school | AM9: 4 | AN9: 4 | AP9: College | AR9: 34 | AS9: 17 | AT9: 9 | AU9: 10 | AW9: 70 | AZ9: 16-19 free school | BE9: 4 | BG9: 4 | CA9: 2 | CB9: 3 | CM9: Dance and drama college | CN9: 19 | CV9: Count of URN | CW9: Column Labels | EI9: Community learning and skills provider | EJ9: 13 | EK9: 189 | EL9: 29 | EM9: 4 | EN9: 3 | EP9: 238 | GA9: Community learning and skills provider | GB9: 1 | GC9: 13 | GD9: 10 | GE9: 2 | GF9: 26 | GH9: Community learning and skills provider | GI9: 1 | GJ9: 26 | GK9: 10 | GL9: 2 | GM9: 39 | GQ9: College | GT9: 20 | GU9: 17 | GV9: 9 | GX9: 24 | GY9: 70 | HB9: Count of URN | HC9: Column Labels | HK9: 16-19 Academy | HL9: 1 | HM9: 3 | HN9: 4 | HO9: 2 | HP9: 9 | HR9: 19 | HU9: Count of URN | HV9: 156 | HW9: 745 | HX9: 148 | HY9: 26 | HZ9: 52 | IA9: 3 | IB9: 1130
A10: FES - Monitoring Inspection/Other | V10: Community learning and skills provider | X10: 1 | Y10: 13 | Z10: 10 | AA10: 2 | AC10: 18 | AD10: 44 | AF10: Dance and drama college | AH10: 12 | AI10: 3 | AJ10: 1 | AN10: 16 | AP10: Community learning and skills provider | AQ10: 1 | AR10: 26 | AS10: 10 | AT10: 2 | AU10: 5 | AW10: 44 | AZ10: Dance and drama college | BA10: 12 | BB10: 3 | BC10: 1 | BG10: 16 | CA10: 3 | CB10: 4 | CM10: Higher education institution | CN10: 26 | CW10: FES - Full Inspection | DD10: FES - Full Inspection Total | DE10: FES - Monitoring Inspection | DL10: FES - Monitoring Inspection Total | DM10: FES - Short inspection | DT10: FES - Short inspection Total | DU10: FES - Short inspection Conversion | EB10: FES - Short inspection Conversion Total | EC10: Grand Total | EI10: Dance and drama college | EJ10: 12 | EK10: 3 | EL10: 1 | EO10: 3 | EP10: 19 | GA10: Dance and drama college | GB10: 12 | GC10: 3 | GD10: 1 | GF10: 16 | GH10: Dance and drama college | GI10: 12 | GJ10: 3 | GK10: 1 | GM10: 16 | GQ10: Community learning and skills provider | GS10: 1 | GT10: 13 | GU10: 10 | GV10: 2 | GX10: 18 | GY10: 44 | HB10: Row Labels | HC10: Declined | HD10: Improved | HE10: Stayed the Same | HF10: Grand Total | HK10: College | HL10: 66 | HM10: 198 | HN10: 45 | HO10: 13 | HP10: 1 | HR10: 323
A11: FES - Short inspection | F11: 47 | I11: 47 | V11: Dance and drama college | X11: 12 | Y11: 3 | Z11: 1 | AD11: 16 | AF11: Employer provider | AJ11: 3 | AK11: 1 | AM11: 4 | AN11: 8 | AP11: Dance and drama college | AQ11: 12 | AR11: 3 | AS11: 1 | AW11: 16 | AZ11: Employer provider | BB11: 2 | BC11: 3 | BD11: 1 | BE11: 2 | BG11: 8 | CA11: 4 | CM11: Independent learning provider | CN11: 430 | CV11: Row Labels | CW11: 0 | CX11: 1 | CY11: 2 | CZ11: 3 | DA11: 4 | DB11: 9 | DC11: - | DE11: 0 | DF11: 1 | DG11: 2 | DH11: 3 | DI11: 4 | DJ11: 9 | DK11: - | DM11: 0 | DN11: 1 | DO11: 2 | DP11: 3 | DQ11: 4 | DR11: 9 | DS11: - | DU11: 0 | DV11: 1 | DW11: 2 | DX11: 3 | DY11: 4 | DZ11: 9 | EA11: - | EI11: Higher education institution | EJ11: 8 | EK11: 17 | EN11: 1 | EP11: 26 | GA11: Higher education institution | GH11: Higher education institution | GJ11: 2 | GM11: 2 | GQ11: Dance and drama college | GS11: 12 | GT11: 3 | GU11: 1 | GY11: 16 | HB11: 16-19 Academy | HD11: 1 | HE11: 1 | HF11: 2 | HK11: Community learning and skills provider | HL11: 13 | HM11: 189 | HN11: 29 | HO11: 4 | HP11: 3 | HR11: 238
A12: FES - Short inspection Conversion | F12: 4 | G12: 1 | I12: 5 | V12: Higher education institution | AC12: 2 | AD12: 2 | AF12: General further education college | AI12: 13 | AJ12: 13 | AK12: 9 | AM12: 20 | AN12: 55 | AP12: Higher education institution | AR12: 2 | AW12: 2 | AZ12: General further education college | BB12: 24 | BC12: 13 | BD12: 9 | BE12: 9 | BG12: 55 | CA12: NULL | CB12: 20 | CM12: Independent specialist college | CN12: 62 | CV12: 16-19 Academy | CY12: 1 | CZ12: 1 | DD12: 2 | DK12: 4 | DL12: 4 | EC12: 6 | EI12: Independent learning provider | EJ12: 49 | EK12: 297 | EL12: 61 | EM12: 7 | EN12: 16 | EP12: 430 | GA12: Independent learning provider | GB12: 2 | GC12: 31 | GD12: 13 | GE12: 7 | GF12: 53 | GH12: Independent learning provider | GI12: 2 | GJ12: 48 | GK12: 13 | GL12: 7 | GM12: 70 | GQ12: Higher education institution | GX12: 2 | GY12: 2 | HB12: College | HC12: 7 | HD12: 9 | HE12: 7 | HF12: 23 | HK12: Dance and drama college | HL12: 12 | HM12: 3 | HN12: 1 | HQ12: 3 | HR12: 19
A13: (blank) | V13: Independent learning provider | X13: 2 | Y13: 31 | Z13: 13 | AA13: 7 | AC13: 19 | AD13: 72 | AF13: Higher education institution | AM13: 2 | AN13: 2 | AP13: Independent learning provider | AQ13: 2 | AR13: 48 | AS13: 13 | AT13: 7 | AU13: 2 | AW13: 72 | AZ13: Higher education institution | BB13: 2 | BG13: 2 | CA13: Grand Total | CB13: 27 | CM13: National careers service contractor | CN13: 13 | CV13: College | CY13: 19 | CZ13: 16 | DA13: 9 | DD13: 44 | DK13: 10 | DL13: 10 | DS13: 14 | DT13: 14 | DW13: 1 | DX13: 1 | EB13: 2 | EC13: 70 | EI13: Independent specialist college | EJ13: 7 | EK13: 38 | EL13: 8 | EN13: 9 | EP13: 62 | GA13: Independent specialist college | GC13: 4 | GD13: 5 | GF13: 9 | GH13: Independent specialist college | GJ13: 5 | GK13: 5 | GM13: 10 | GQ13: Independent learning provider | GS13: 2 | GT13: 31 | GU13: 13 | GV13: 7 | GX13: 19 | GY13: 72 | HB13: Community learning and skills provider | HD13: 2 | HE13: 2 | HF13: 4 | HK13: Higher education institution | HL13: 8 | HM13: 17 | HP13: 1 | HR13: 26
A14: Grand Total | B14: 141 | C14: 1 | D14: 6 | E14: 20 | F14: 51 | G14: 1 | I14: 220 | V14: Independent specialist college | Y14: 4 | Z14: 5 | AC14: 1 | AD14: 10 | AF14: Independent learning provider | AH14: 2 | AI14: 31 | AJ14: 10 | AK14: 6 | AM14: 15 | AN14: 64 | AP14: Independent specialist college | AR14: 5 | AS14: 5 | AW14: 10 | AZ14: Independent learning provider | BA14: 2 | BB14: 46 | BC14: 10 | BD14: 6 | BG14: 64 | CM14: Grand Total | CN14: 1130 | CV14: Community learning and skills provider | CX14: 1 | CY14: 12 | CZ14: 9 | DA14: 2 | DD14: 24 | DK14: 5 | DL14: 5 | DS14: 13 | DT14: 13 | DW14: 1 | DX14: 1 | EB14: 2 | EC14: 44 | EI14: National careers service contractor | EN14: 13 | EP14: 13 | GA14: National Careers Service Contractor | GH14: National Careers Service Contractor | GQ14: Independent specialist college | GT14: 4 | GU14: 5 | GX14: 1 | GY14: 10 | HB14: Dance and drama college | HK14: Independent learning provider | HL14: 49 | HM14: 297 | HN14: 61 | HO14: 7 | HP14: 16 | HR14: 430
V15: (blank) | AF15: Independent specialist college | AI15: 4 | AJ15: 5 | AM15: 1 | AN15: 10 | AP15: (blank) | AZ15: Independent specialist college | BB15: 5 | BC15: 5 | BG15: 10 | CV15: Dance and drama college | CX15: 12 | CY15: 3 | CZ15: 1 | DD15: 16 | EC15: 16 | EI15: Prison | GA15: Not applicable | GH15: (blank) | GQ15: National Careers Service Contractor | HB15: Independent learning provider | HC15: 3 | HD15: 19 | HE15: 4 | HF15: 26 | HK15: Independent specialist college | HL15: 7 | HM15: 38 | HN15: 8 | HP15: 9 | HR15: 62
V16: Prison | AF16: Local authority provider | AH16: 1 | AI16: 10 | AJ16: 5 | AK16: 2 | AM16: 12 | AN16: 30 | AP16: National Careers Service Contractor | AZ16: Local authority provider | BA16: 1 | BB16: 17 | BC16: 5 | BD16: 2 | BE16: 5 | BG16: 30 | CV16: Higher education institution | DS16: 2 | DT16: 2 | EC16: 2 | EI16: (blank) | GA16: Prison | GH16: Grand Total | GI16: 15 | GJ16: 119 | GK16: 47 | GL16: 18 | GM16: 199 | GQ16: Not applicable | HB16: Independent specialist college | HD16: 2 | HE16: 1 | HF16: 3 | HK16: National careers service contractor | HP16: 13 | HR16: 13
V17: National Careers Service Contractor | AF17: Not for profit organisation | AI17: 3 | AJ17: 4 | AM17: 6 | AN17: 13 | AP17: Grand Total | AQ17: 15 | AR17: 119 | AS17: 47 | AT17: 18 | AU17: 21 | AW17: 220 | AZ17: Not for profit organisation | BB17: 9 | BC17: 4 | BG17: 13 | CV17: Independent learning provider | CX17: 2 | CY17: 30 | CZ17: 13 | DA17: 7 | DD17: 52 | DK17: 2 | DL17: 2 | DS17: 17 | DT17: 17 | DW17: 1 | EB17: 1 | EC17: 72 | EI17: Grand Total | EJ17: 156 | EK17: 745 | EL17: 148 | EM17: 26 | EN17: 52 | EO17: 3 | EP17: 1130 | GA17: (blank) | GQ17: Prison | HB17: Prison | HK17: Grand Total | HL17: 156 | HM17: 745 | HN17: 148 | HO17: 26 | HP17: 52 | HQ17: 3 | HR17: 1130
V18: Not applicable | AF18: Sixth form college | AI18: 7 | AJ18: 4 | AM18: 3 | AN18: 14 | AZ18: Sixth form college | BB18: 9 | BC18: 4 | BE18: 1 | BG18: 14 | CV18: Independent specialist college | CY18: 4 | CZ18: 5 | DD18: 9 | DS18: 1 | DT18: 1 | EC18: 10 | GA18: Grand Total | GB18: 15 | GC18: 72 | GD18: 47 | GE18: 18 | GF18: 152 | GQ18: (blank) | HB18: Grand Total | HC18: 10 | HD18: 33 | HE18: 15 | HF18: 58
V19: Grand Total | X19: 15 | Y19: 72 | Z19: 47 | AA19: 18 | AC19: 68 | AD19: 220 | AF19: Specialist designated institution | AJ19: 1 | AN19: 1 | AZ19: Specialist designated institution | BC19: 1 | BG19: 1 | CM19: Overall effectiveness | CV19: National Careers Service Contractor | GQ19: Grand Total | GS19: 15 | GT19: 72 | GU19: 47 | GV19: 18 | GX19: 68 | GY19: 220
AF20: Specialist further education college | AM20: 1 | AN20: 1 | AZ20: Specialist further education college | BB20: 1 | BG20: 1 | CV20: Not applicable
AF21: Grand Total | AH21: 15 | AI21: 72 | AJ21: 47 | AK21: 18 | AM21: 68 | AN21: 220 | AZ21: National Careers Service Contractor | CM21: Count of Organisation ID | CN21: Column Labels | CV21: Prison
V22: Effectiveness of leadership and management | AZ22: Grand Total | BA22: 15 | BB22: 119 | BC22: 47 | BD22: 18 | BE22: 21 | BG22: 220 | CM22: Row Labels | CN22: 1 | CO22: 2 | CP22: 3 | CQ22: 4 | CR22: Grand Total | CV22: (blank) | GQ22: Effectiveness of leadership and management
CA23: Outcomes for prisoners engaged in learning and skills and work activities | CB23: Outcomes for prisoners engaged in learning and skills and work activities | CC23: Outcomes for prisoners engaged in learning and skills and work activities | CD23: Outcomes for prisoners engaged in learning and skills and work activities | CE23: Outcomes for prisoners engaged in learning and skills and work activities | CF23: Outcomes for prisoners engaged in learning and skills and work activities | CG23: Outcomes for prisoners engaged in learning and skills and work activities | CH23: Outcomes for prisoners engaged in learning and skills and work activities | CI23: Outcomes for prisoners engaged in learning and skills and work activities | CJ23: Outcomes for prisoners engaged in learning and skills and work activities | CM23: 16-19 Academy | CN23: 1 | CO23: 3 | CP23: 4 | CQ23: 2 | CR23: 10 | CV23: Grand Total | CX23: 15 | CY23: 69 | CZ23: 45 | DA23: 18 | DD23: 147 | DK23: 21 | DL23: 21 | DS23: 47 | DT23: 47 | DW23: 3 | DX23: 2 | EB23: 5 | EC23: 220
V24: Count of Organisation ID | W24: Column Labels | AF24: Count of Organisation ID | AG24: Column Labels | CM24: College | CN24: 66 | CO24: 198 | CP24: 45 | CQ24: 13 | CR24: 322 | GQ24: Count of URN | GR24: Column Labels
V25: Row Labels | W25: 0 | X25: 1 | Y25: 2 | Z25: 3 | AA25: 4 | AB25: 9 | AC25: - | AD25: Grand Total | AF25: Row Labels | AG25: 0 | AH25: 1 | AI25: 2 | AJ25: 3 | AK25: 4 | AL25: 9 | AM25: - | AN25: Grand Total | CA25: Row Labels | CB25: Count of Organisation ID | CM25: Community learning and skills provider | CN25: 13 | CO25: 189 | CP25: 29 | CQ25: 4 | CR25: 235 | GQ25: Row Labels | GR25: 0 | GS25: 1 | GT25: 2 | GU25: 3 | GV25: 4 | GW25: 9 | GX25: - | GY25: Grand Total
V26: 16-19 Academy | Y26: 1 | Z26: 1 | AC26: 4 | AD26: 6 | AF26: 16-19 academy converter | AI26: 1 | AJ26: 1 | AN26: 2 | CA26: 2 | CB26: 4 | CM26: Dance and drama college | CN26: 12 | CO26: 3 | CP26: 1 | CR26: 16 | GQ26: 16-19 Academy | GT26: 1 | GU26: 1 | GX26: 4 | GY26: 6
V27: College | Y27: 20 | Z27: 19 | AA27: 7 | AC27: 24 | AD27: 70 | AF27: 16-19 free school | AM27: 4 | AN27: 4 | CA27: 3 | CB27: 3 | CM27: Higher education institution | CN27: 8 | CO27: 17 | CR27: 25 | GQ27: College | GT27: 20 | GU27: 19 | GV27: 7 | GX27: 24 | GY27: 70
V28: Community learning and skills provider | X28: 2 | Y28: 12 | Z28: 10 | AA28: 2 | AC28: 18 | AD28: 44 | AF28: Dance and drama college | AH28: 11 | AI28: 4 | AJ28: 1 | AN28: 16 | CA28: NULL | CB28: 20 | CM28: Independent learning provider | CN28: 49 | CO28: 297 | CP28: 61 | CQ28: 7 | CR28: 414 | EI28: Count of provider Name | EJ28: Column Labels | ET28: Count of provider Name | EU28: Column Labels | GQ28: Community learning and skills provider | GS28: 2 | GT28: 12 | GU28: 10 | GV28: 2 | GX28: 18 | GY28: 44
V29: Dance and drama college | X29: 11 | Y29: 4 | Z29: 1 | AD29: 16 | AF29: Employer provider | AJ29: 3 | AK29: 1 | AM29: 4 | AN29: 8 | CA29: Grand Total | CB29: 27 | CM29: Independent specialist college | CN29: 7 | CO29: 38 | CP29: 8 | CR29: 53 | EI29: Row Labels | EJ29: 1 | EK29: 2 | EL29: 3 | EM29: 4 | EN29: NULL | EO29: Grand Total | ET29: Row Labels | EU29: 1 | EV29: 2 | EW29: 3 | EX29: 4 | EY29: NULL | EZ29: Grand Total | GQ29: Dance and drama college | GS29: 11 | GT29: 4 | GU29: 1 | GY29: 16
V30: Higher education institution | AC30: 2 | AD30: 2 | AF30: General further education college | AI30: 13 | AJ30: 15 | AK30: 7 | AM30: 20 | AN30: 55 | CM30: National careers service contractor | EI30: 2010/2011 | EJ30: 25 | EK30: 150 | EL30: 123 | EM30: 14 | EN30: 11 | EO30: 323 | ET30: 2010/2011 | EU30: 25 | EV30: 150 | EW30: 123 | EX30: 14 | EY30: 11 | EZ30: 323 | GQ30: Higher education institution | GX30: 2 | GY30: 2
V31: Independent learning provider | X31: 3 | Y31: 30 | Z31: 13 | AA31: 7 | AC31: 19 | AD31: 72 | AF31: Higher education institution | AM31: 2 | AN31: 2 | CM31: Prison | EI31: College | EJ31: 5 | EK31: 30 | EL31: 34 | EM31: 3 | EO31: 72 | ET31: Dance and Drama College | EY31: 11 | EZ31: 11 | GQ31: Independent learning provider | GS31: 3 | GT31: 30 | GU31: 13 | GV31: 7 | GX31: 19 | GY31: 72
V32: Independent specialist college | Y32: 4 | Z32: 5 | AC32: 1 | AD32: 10 | AF32: Independent learning provider | AH32: 3 | AI32: 30 | AJ32: 10 | AK32: 6 | AM32: 15 | AN32: 64 | CM32: (blank) | EI32: Community Learning and Skills Provider | EJ32: 2 | EK32: 43 | EL32: 26 | EM32: 2 | EO32: 73 | ET32: Employer Provider | EU32: 3 | EV32: 8 | EW32: 5 | EZ32: 16 | GQ32: Independent specialist college | GT32: 4 | GU32: 5 | GX32: 1 | GY32: 10
V33: National Careers Service Contractor | AF33: Independent specialist college | AI33: 4 | AJ33: 5 | AM33: 1 | AN33: 10 | CM33: Grand Total | CN33: 156 | CO33: 745 | CP33: 148 | CQ33: 26 | CR33: 1075 | EI33: Dance and Drama College | EN33: 11 | EO33: 11 | ET33: General further education college | EU33: 5 | EV33: 24 | EW33: 28 | EX33: 2 | EZ33: 59 | GQ33: National Careers Service Contractor
V34: Not applicable | AF34: Local authority provider | AH34: 2 | AI34: 9 | AJ34: 5 | AK34: 2 | AM34: 12 | AN34: 30 | EI34: Higher Education Institution | EK34: 1 | EO34: 1 | ET34: Higher Education Institution | EV34: 1 | EZ34: 1 | GQ34: Not applicable
V35: Prison | AF35: Not for profit organisation | AI35: 3 | AJ35: 4 | AM35: 6 | AN35: 13 | EI35: Independent learning Provider | EJ35: 18 | EK35: 73 | EL35: 56 | EM35: 8 | EO35: 155 | ET35: Independent Learning Provider | EU35: 15 | EV35: 65 | EW35: 51 | EX35: 8 | EZ35: 139 | GQ35: Prison
V36: (blank) | AF36: Sixth form college | AI36: 7 | AJ36: 4 | AM36: 3 | AN36: 14 | EI36: Independent Specialist College | EK36: 3 | EL36: 7 | EM36: 1 | EO36: 11 | ET36: Independent Specialist College | EV36: 3 | EW36: 7 | EX36: 1 | EZ36: 11 | GQ36: (blank)
V37: Grand Total | X37: 16 | Y37: 71 | Z37: 49 | AA37: 16 | AC37: 68 | AD37: 220 | AF37: Specialist designated institution | AJ37: 1 | AN37: 1 | CM37: Effectiveness of leadership and management | EI37: 2011/2012 | EJ37: 19 | EK37: 127 | EL37: 95 | EM37: 29 | EN37: 11 | EO37: 281 | ET37: Local Authority Provider | EV37: 28 | EW37: 8 | EZ37: 36 | GQ37: Grand Total | GS37: 16 | GT37: 71 | GU37: 49 | GV37: 16 | GX37: 68 | GY37: 220
AF38: Specialist further education college | AM38: 1 | AN38: 1 | EI38: College | EJ38: 2 | EK38: 19 | EL38: 26 | EM38: 11 | EO38: 58 | ET38: Not for Profit Organisation | EU38: 1 | EV38: 13 | EW38: 18 | EX38: 2 | EZ38: 34
AF39: Grand Total | AH39: 16 | AI39: 71 | AJ39: 49 | AK39: 16 | AM39: 68 | AN39: 220 | CM39: Count of URN | CN39: Column Labels | EI39: Community Learning and Skills Provider | EJ39: 3 | EK39: 37 | EL39: 19 | EM39: 3 | EO39: 62 | ET39: Sixth form college | EV39: 5 | EW39: 5 | EZ39: 10 | GQ39: Personal development, behaviour and welfare
V40: Quality of teaching, learning and assessment | CM40: Row Labels | CN40: 1 | CO40: 2 | CP40: 3 | CQ40: 4 | CR40: Grand Total | EI40: Dance and Drama College | EN40: 11 | EO40: 11 | ET40: Specialist designated institution | EU40: 1 | EV40: 2 | EZ40: 3
CA41: Quality of learning and skills and work activities including the quality of teaching, learning and assessment | CB41: Quality of learning and skills and work activities including the quality of teaching, learning and assessment | CC41: Quality of learning and skills and work activities including the quality of teaching, learning and assessment | CD41: Quality of learning and skills and work activities including the quality of teaching, learning and assessment | CE41: Quality of learning and skills and work activities including the quality of teaching, learning and assessment | CF41: Quality of learning and skills and work activities including the quality of teaching, learning and assessment | CG41: Quality of learning and skills and work activities including the quality of teaching, learning and assessment | CH41: Quality of learning and skills and work activities including the quality of teaching, learning and assessment | CI41: Quality of learning and skills and work activities including the quality of teaching, learning and assessment | CJ41: Quality of learning and skills and work activities including the quality of teaching, learning and assessment | CM41: 16-19 Academy | CN41: 1 | CO41: 3 | CP41: 4 | CQ41: 2 | CR41: 10 | EI41: Higher Education Institution | EJ41: 3 | EK41: 3 | EL41: 1 | EO41: 7 | ET41: Specialist further education college | EV41: 1 | EW41: 1 | EX41: 1 | EZ41: 3 | GQ41: Count of URN | GR41: Column Labels
V42: Count of Organisation ID | W42: Column Labels | AF42: Count of Organisation ID | AG42: Column Labels | CM42: College | CN42: 88 | CO42: 176 | CP42: 47 | CQ42: 11 | CR42: 322 | EI42: Independent learning Provider | EJ42: 9 | EK42: 62 | EL42: 45 | EM42: 13 | EO42: 129 | ET42: 2011/2012 | EU42: 19 | EV42: 127 | EW42: 95 | EX42: 29 | EY42: 11 | EZ42: 281 | GQ42: Row Labels | GR42: 0 | GS42: 1 | GT42: 2 | GU42: 3 | GV42: 4 | GW42: 9 | GX42: - | GY42: Grand Total
V43: Row Labels | W43: 1 | X43: 2 | Y43: 3 | Z43: 4 | AA43: - | AB43: Grand Total | AF43: Row Labels | AG43: 1 | AH43: 2 | AI43: 3 | AJ43: 4 | AK43: - | AL43: Grand Total | CA43: Row Labels | CB43: Count of Organisation ID | CM43: Community learning and skills provider | CN43: 25 | CO43: 173 | CP43: 33 | CQ43: 4 | CR43: 235 | EI43: Independent Specialist College | EJ43: 2 | EK43: 4 | EL43: 4 | EM43: 2 | EO43: 12 | ET43: Dance and Drama College | EY43: 11 | EZ43: 11 | GQ43: 16-19 Academy | GT43: 1 | GU43: 1 | GX43: 4 | GY43: 6
V44: 16-19 Academy | X44: 1 | Y44: 1 | AA44: 4 | AB44: 6 | AF44: 16-19 academy converter | AH44: 1 | AI44: 1 | AL44: 2 | CA44: 2 | CB44: 5 | CM44: Dance and drama college | CN44: 11 | CO44: 4 | CP44: 1 | CR44: 16 | EI44: National Careers Service Contractor | EK44: 2 | EO44: 2 | ET44: Employer Provider | EU44: 3 | EV44: 11 | EW44: 6 | EX44: 5 | EZ44: 25 | GQ44: College | GS44: 1 | GT44: 24 | GU44: 17 | GV44: 4 | GX44: 24 | GY44: 70
V45: College | X45: 20 | Y45: 21 | Z45: 5 | AA45: 24 | AB45: 70 | AF45: 16-19 free school | AK45: 4 | AL45: 4 | CA45: 3 | CB45: 2 | CM45: Higher education institution | CN45: 5 | CO45: 15 | CP45: 5 | CR45: 25 | EI45: 2012/2013 | EJ45: 13 | EK45: 194 | EL45: 134 | EM45: 32 | EN45: 1 | EO45: 374 | ET45: General further education college | EU45: 2 | EV45: 12 | EW45: 21 | EX45: 7 | EZ45: 42 | GQ45: Community learning and skills provider | GS45: 2 | GT45: 17 | GU45: 7 | GX45: 18 | GY45: 44
V46: Community learning and skills provider | W46: 1 | X46: 14 | Y46: 11 | AA46: 18 | AB46: 44 | AF46: Dance and drama college | AG46: 12 | AH46: 3 | AI46: 1 | AL46: 16 | CA46: NULL | CB46: 20 | CM46: Independent learning provider | CN46: 50 | CO46: 289 | CP46: 68 | CQ46: 7 | CR46: 414 | EI46: College | EJ46: 4 | EK46: 55 | EL46: 42 | EM46: 5 | EO46: 106 | ET46: Higher Education Institution | EU46: 3 | EV46: 3 | EW46: 1 | EZ46: 7 | GQ46: Dance and drama college | GS46: 12 | GT46: 3 | GU46: 1 | GY46: 16
V47: Dance and drama college | W47: 12 | X47: 3 | Y47: 1 | AB47: 16 | AF47: Employer provider | AI47: 3 | AJ47: 1 | AK47: 4 | AL47: 8 | CA47: Grand Total | CB47: 27 | CM47: Independent specialist college | CN47: 7 | CO47: 36 | CP47: 10 | CR47: 53 | EI47: Community Learning and Skills Provider | EJ47: 4 | EK47: 42 | EL47: 25 | EM47: 12 | EO47: 83 | ET47: Independent Learning Provider | EU47: 6 | EV47: 51 | EW47: 39 | EX47: 8 | EZ47: 104 | GQ47: Higher education institution | GX47: 2 | GY47: 2
V48: Higher education institution | AA48: 2 | AB48: 2 | AF48: General further education college | AH48: 13 | AI48: 17 | AJ48: 5 | AK48: 20 | AL48: 55 | CM48: National careers service contractor | EI48: Dance and Drama College | EN48: 1 | EO48: 1 | ET48: Independent Specialist College | EU48: 2 | EV48: 4 | EW48: 4 | EX48: 2 | EZ48: 12 | GQ48: Independent learning provider | GS48: 3 | GT48: 36 | GU48: 9 | GV48: 5 | GX48: 19 | GY48: 72
V49: Independent learning provider | W49: 2 | X49: 31 | Y49: 13 | Z49: 7 | AA49: 19 | AB49: 72 | AF49: Higher education institution | AK49: 2 | AL49: 2 | CM49: Prison | EI49: Higher Education Institution | EJ49: 1 | EK49: 5 | EL49: 1 | EO49: 7 | ET49: Local Authority Provider | EV49: 21 | EW49: 10 | EZ49: 31 | GQ49: Independent specialist college | GT49: 7 | GU49: 2 | GX49: 1 | GY49: 10
V50: Independent specialist college | X50: 4 | Y50: 5 | AA50: 1 | AB50: 10 | AF50: Independent learning provider | AG50: 2 | AH50: 31 | AI50: 10 | AJ50: 6 | AK50: 15 | AL50: 64 | CM50: (blank) | EI50: Independent learning Provider | EJ50: 1 | EK50: 77 | EL50: 61 | EM50: 15 | EO50: 154 | ET50: National Careers Service Contractor | EV50: 2 | EZ50: 2 | GQ50: National Careers Service Contractor
V51: National Careers Service Contractor | AF51: Independent specialist college | AH51: 4 | AI51: 5 | AK51: 1 | AL51: 10 | CM51: Grand Total | CN51: 187 | CO51: 696 | CP51: 168 | CQ51: 24 | CR51: 1075 | EI51: Independent Specialist College | EJ51: 3 | EK51: 8 | EL51: 5 | EO51: 16 | ET51: Not for Profit Organisation | EU51: 3 | EV51: 16 | EW51: 9 | EX51: 3 | EZ51: 31 | GQ51: Not applicable
V52: Not applicable | AF52: Local authority provider | AG52: 1 | AH52: 11 | AI52: 6 | AK52: 12 | AL52: 30 | EI52: National Careers Service Contractor | EK52: 7 | EO52: 7 | ET52: Sixth form college | EV52: 5 | EW52: 4 | EX52: 4 | EZ52: 13 | GQ52: Prison
V53: Prison | AF53: Not for profit organisation | AH53: 3 | AI53: 4 | AK53: 6 | AL53: 13 | EI53: 2013/2014 | EJ53: 18 | EK53: 227 | EL53: 100 | EM53: 20 | EO53: 365 | ET53: Specialist further education college | EV53: 2 | EW53: 1 | EZ53: 3 | GQ53: (blank)
V54: (blank) | AF54: Sixth form college | AH54: 7 | AI54: 4 | AK54: 3 | AL54: 14 | EI54: 16-19 Academy | EJ54: 1 | EK54: 1 | EL54: 2 | EO54: 4 | ET54: 2012/2013 | EU54: 13 | EV54: 194 | EW54: 134 | EX54: 32 | EY54: 1 | EZ54: 374 | GQ54: Grand Total | GS54: 18 | GT54: 88 | GU54: 37 | GV54: 9 | GX54: 68 | GY54: 220
V55: Grand Total | W55: 15 | X55: 73 | Y55: 52 | Z55: 12 | AA55: 68 | AB55: 220 | AF55: Specialist designated institution | AI55: 1 | AL55: 1 | CM55: Personal development, behaviour and welfare | EI55: College | EJ55: 7 | EK55: 64 | EL55: 36 | EM55: 5 | EO55: 112 | ET55: Dance and Drama College | EY55: 1 | EZ55: 1
AF56: Specialist further education college | AK56: 1 | AL56: 1 | EI56: Community Learning and Skills Provider | EJ56: 3 | EK56: 49 | EL56: 17 | EM56: 2 | EO56: 71 | ET56: Employer Provider | EU56: 1 | EV56: 12 | EW56: 6 | EX56: 3 | EZ56: 22 | GQ56: Quality of teaching, learning and assessment
AF57: Grand Total | AG57: 15 | AH57: 73 | AI57: 52 | AJ57: 12 | AK57: 68 | AL57: 220 | CM57: Count of URN | CN57: Column Labels | EI57: Higher Education Institution | EJ57: 2 | EK57: 8 | EO57: 10 | ET57: General further education college | EU57: 2 | EV57: 36 | EW57: 29 | EX57: 4 | EZ57: 71
V58: Personal development, behaviour and welfare | CM58: Row Labels | CN58: 1 | CO58: 2 | CP58: 3 | CQ58: 4 | CR58: Grand Total | EI58: Independent learning Provider | EJ58: 4 | EK58: 83 | EL58: 42 | EM58: 12 | EO58: 141 | ET58: Higher Education Institution | EU58: 1 | EV58: 5 | EW58: 1 | EZ58: 7 | GQ58: Count of URN | GR58: Column Labels
CA59: Effectiveness of the leadership and management of learning and skills and work activities | CM59: 16-19 Academy | CO59: 1 | CP59: 1 | CR59: 2 | EI59: Independent Specialist College | EJ59: 1 | EK59: 16 | EL59: 3 | EM59: 1 | EO59: 21 | ET59: Independent Learning Provider | EV59: 65 | EW59: 55 | EX59: 12 | EZ59: 132 | GQ59: Row Labels | GR59: 0 | GS59: 1 | GT59: 2 | GU59: 3 | GV59: 4 | GW59: 9 | GX59: - | GY59: Grand Total
V60: Count of Organisation ID | W60: Column Labels | AF60: Count of Organisation ID | AG60: Column Labels | CM60: College | CN60: 1 | CO60: 24 | CP60: 17 | CQ60: 4 | CR60: 46 | EI60: National Careers Service Contractor | EK60: 6 | EO60: 6 | ET60: Independent Specialist College | EU60: 3 | EV60: 8 | EW60: 5 | EZ60: 16 | GQ60: 16-19 Academy | GT60: 1 | GU60: 1 | GX60: 4 | GY60: 6
V61: Row Labels | W61: 1 | X61: 2 | Y61: 3 | Z61: 4 | AA61: - | AB61: Grand Total | AF61: Row Labels | AG61: 1 | AH61: 2 | AI61: 3 | AJ61: 4 | AK61: - | AL61: Grand Total | CA61: Row Labels | CB61: Count of Organisation ID | CM61: Community learning and skills provider | CN61: 2 | CO61: 17 | CP61: 7 | CR61: 26 | EI61: 2014/2015 | EJ61: 13 | EK61: 120 | EL61: 106 | EM61: 33 | EO61: 272 | ET61: Local Authority Provider | EU61: 1 | EV61: 26 | EW61: 11 | EX61: 1 | EZ61: 39 | GQ61: College | GT61: 20 | GU61: 21 | GV61: 5 | GX61: 24 | GY61: 70
V62: 16-19 Academy | X62: 1 | Y62: 1 | AA62: 4 | AB62: 6 | AF62: 16-19 academy converter | AH62: 1 | AI62: 1 | AL62: 2 | CA62: 2 | CB62: 4 | CM62: Dance and drama college | CN62: 12 | CO62: 3 | CP62: 1 | CR62: 16 | EI62: 16-19 Academy | EK62: 1 | EL62: 3 | EM62: 2 | EO62: 6 | ET62: National Careers Service Contractor | EV62: 7 | EZ62: 7 | GQ62: Community learning and skills provider | GS62: 1 | GT62: 14 | GU62: 11 | GX62: 18 | GY62: 44
V63: College | W63: 1 | X63: 24 | Y63: 17 | Z63: 4 | AA63: 24 | AB63: 70 | AF63: 16-19 free school | AK63: 4 | AL63: 4 | CA63: 3 | CB63: 3 | CM63: Higher education institution | EI63: College | EJ63: 2 | EK63: 25 | EL63: 31 | EM63: 8 | EO63: 66 | ET63: Not for Profit Organisation | EU63: 2 | EV63: 15 | EW63: 14 | EX63: 10 | EZ63: 41 | GQ63: Dance and drama college | GS63: 12 | GT63: 3 | GU63: 1 | GY63: 16
V64: Community learning and skills provider | W64: 2 | X64: 17 | Y64: 7 | AA64: 18 | AB64: 44 | AF64: Dance and drama college | AG64: 12 | AH64: 3 | AI64: 1 | AL64: 16 | CA64: NULL | CB64: 20 | CM64: Independent learning provider | CN64: 3 | CO64: 36 | CP64: 8 | CQ64: 4 | CR64: 51 | EI64: Community Learning and Skills Provider | EJ64: 2 | EK64: 32 | EL64: 19 | EM64: 7 | EO64: 60 | ET64: Sixth form college | EU64: 2 | EV64: 15 | EW64: 12 | EX64: 1 | EZ64: 30 | GQ64: Higher education institution | GX64: 2 | GY64: 2
V65: Dance and drama college | W65: 12 | X65: 3 | Y65: 1 | AB65: 16 | AF65: Employer provider | AH65: 2 | AI65: 1 | AJ65: 1 | AK65: 4 | AL65: 8 | CA65: Grand Total | CB65: 27 | CM65: Independent specialist college | CO65: 7 | CP65: 2 | CR65: 9 | EI65: Higher Education Institution | EJ65: 2 | EO65: 2 | ET65: Specialist designated institution | EU65: 1 | EV65: 1 | EX65: 1 | EZ65: 3 | GQ65: Independent learning provider | GS65: 2 | GT65: 31 | GU65: 13 | GV65: 7 | GX65: 19 | GY65: 72
V66: Higher education institution | AA66: 2 | AB66: 2 | AF66: General further education college | AG66: 1 | AH66: 15 | AI66: 15 | AJ66: 4 | AK66: 20 | AL66: 55 | CM66: National careers service contractor | EI66: Independent learning Provider | EJ66: 7 | EK66: 57 | EL66: 49 | EM66: 14 | EO66: 127 | ET66: Specialist further education college | EV66: 4 | EW66: 1 | EZ66: 5 | GQ66: Independent specialist college | GT66: 4 | GU66: 5 | GX66: 1 | GY66: 10
V67: Independent learning provider | W67: 3 | X67: 36 | Y67: 9 | Z67: 5 | AA67: 19 | AB67: 72 | AF67: Higher education institution | AK67: 2 | AL67: 2 | CM67: Prison | EI67: Independent Specialist College | EK67: 5 | EL67: 4 | EM67: 2 | EO67: 11 | ET67: 2013/2014 | EU67: 18 | EV67: 227 | EW67: 100 | EX67: 20 | EZ67: 365 | GQ67: National Careers Service Contractor
V68: Independent specialist college | X68: 7 | Y68: 2 | AA68: 1 | AB68: 10 | AF68: Independent learning provider | AG68: 3 | AH68: 34 | AI68: 8 | AJ68: 4 | AK68: 15 | AL68: 64 | CM68: (blank) | EI68: Grand Total | EJ68: 88 | EK68: 818 | EL68: 558 | EM68: 128 | EN68: 23 | EO68: 1615 | ET68: 16-19 Academy Converter | EW68: 2 | EZ68: 2 | GQ68: Not applicable
V69: National Careers Service Contractor | AF69: Independent specialist college | AH69: 7 | AI69: 2 | AK69: 1 | AL69: 10 | CM69: Grand Total | CN69: 18 | CO69: 88 | CP69: 36 | CQ69: 8 | CR69: 150 | ET69: 16-19 Free School | EU69: 1 | EV69: 1 | EZ69: 2 | GQ69: Prison
V70: Not applicable | AF70: Local authority provider | AG70: 2 | AH70: 11 | AI70: 5 | AK70: 12 | AL70: 30 | ET70: Employer Provider | EV70: 6 | EW70: 5 | EX70: 3 | EZ70: 14 | GQ70: (blank)
V71: Prison | AF71: Not for profit organisation | AH71: 6 | AI71: 1 | AK71: 6 | AL71: 13 | ET71: General further education college | EU71: 5 | EV71: 42 | EW71: 26 | EX71: 4 | EZ71: 77 | GQ71: Grand Total | GS71: 15 | GT71: 73 | GU71: 52 | GV71: 12 | GX71: 68 | GY71: 220
V72: (blank) | AF72: Sixth form college | AH72: 9 | AI72: 2 | AK72: 3 | AL72: 14 | ET72: Higher Education Institution | EU72: 2 | EV72: 8 | EZ72: 10
V73: Grand Total | W73: 18 | X73: 88 | Y73: 37 | Z73: 9 | AA73: 68 | AB73: 220 | AF73: Specialist designated institution | AI73: 1 | AL73: 1 | CM73: Quality of teaching, learning and assessment | ET73: Independent Learning Provider | EU73: 4 | EV73: 77 | EW73: 37 | EX73: 9 | EZ73: 127 | GQ73: Outcomes for learners
AF74: Specialist further education college | AK74: 1 | AL74: 1 | ET74: Independent Specialist College | EU74: 1 | EV74: 16 | EW74: 3 | EX74: 1 | EZ74: 21
AF75: Grand Total | AG75: 18 | AH75: 88 | AI75: 37 | AJ75: 9 | AK75: 68 | AL75: 220 | CM75: Count of URN | CN75: Column Labels | ET75: Local Authority Provider | EU75: 1 | EV75: 23 | EW75: 7 | EZ75: 31 | GQ75: Count of URN | GR75: Column Labels
V76: Outcomes for learners | CM76: Row Labels | CN76: 1 | CO76: 2 | CP76: 3 | CQ76: 4 | CR76: Grand Total | ET76: National Careers Service Contractor | EV76: 6 | EZ76: 6 | GQ76: Row Labels | GR76: 0 | GS76: 1 | GT76: 2 | GU76: 3 | GV76: 4 | GW76: 9 | GX76: - | GY76: Grand Total
CA77: Personal development & behaviour | CM77: 16-19 Academy | CN77: 1 | CO77: 3 | CP77: 4 | CQ77: 2 | CR77: 10 | ET77: Not for Profit Organisation | EU77: 1 | EV77: 23 | EW77: 10 | EX77: 2 | EZ77: 36 | GQ77: 16-19 Academy | GT77: 1 | GU77: 1 | GX77: 4 | GY77: 6
V78: Count of Organisation ID | W78: Column Labels | AF78: Count of Organisation ID | AG78: Column Labels | CM78: College | CN78: 46 | CO78: 216 | CP78: 51 | CQ78: 9 | CR78: 322 | ET78: Sixth form college | EU78: 2 | EV78: 19 | EW78: 9 | EX78: 1 | EZ78: 31 | GQ78: College | GT78: 20 | GU78: 19 | GV78: 7 | GX78: 24 | GY78: 70
V79: Row Labels | W79: 0 | X79: 1 | Y79: 2 | Z79: 3 | AA79: 4 | AB79: 9 | AC79: - | AD79: Grand Total | AF79: Row Labels | AG79: 0 | AH79: 1 | AI79: 2 | AJ79: 3 | AK79: 4 | AL79: 9 | AM79: - | AN79: Grand Total | CA79: Row Labels | CB79: Count of Organisation ID | CM79: Community learning and skills provider | CN79: 12 | CO79: 183 | CP79: 40 | CR79: 235 | ET79: Specialist designated institution | EU79: 1 | EV79: 3 | EZ79: 4 | GQ79: Community learning and skills provider | GS79: 1 | GT79: 14 | GU79: 11 | GX79: 18 | GY79: 44
V80: 16-19 Academy | Y80: 1 | Z80: 1 | AC80: 4 | AD80: 6 | AF80: 16-19 academy converter | AI80: 1 | AJ80: 1 | AN80: 2 | CA80: 2 | CB80: 3 | CM80: Dance and drama college | CN80: 12 | CO80: 3 | CP80: 1 | CR80: 16 | ET80: Specialist further education college | EV80: 3 | EW80: 1 | EZ80: 4 | GQ80: Dance and drama college | GS80: 12 | GT80: 3 | GU80: 1 | GY80: 16
V81: College | Y81: 20 | Z81: 19 | AA81: 7 | AC81: 24 | AD81: 70 | AF81: 16-19 free school | AM81: 4 | AN81: 4 | CA81: 3 | CB81: 4 | CM81: Higher education institution | CN81: 7 | CO81: 18 | CR81: 25 | ET81: 2014/2015 | EU81: 13 | EV81: 120 | EW81: 106 | EX81: 33 | EZ81: 272 | GQ81: Higher education institution | GX81: 2 | GY81: 2
V82: Community learning and skills provider | X82: 1 | Y82: 14 | Z82: 11 | AC82: 18 | AD82: 44 | AF82: Dance and drama college | AH82: 12 | AI82: 3 | AJ82: 1 | AN82: 16 | CA82: NULL | CB82: 20 | CM82: Independent learning provider | CN82: 36 | CO82: 303 | CP82: 64 | CQ82: 7 | CR82: 410 | ET82: 16-19 Academy Sponsor Led | EW82: 1 | EZ82: 1 | GQ82: Independent learning provider | GS82: 2 | GT82: 31 | GU82: 13 | GV82: 7 | GX82: 19 | GY82: 72
V83: Dance and drama college | X83: 12 | Y83: 3 | Z83: 1 | AD83: 16 | AF83: Employer provider | AI83: 1 | AJ83: 2 | AK83: 1 | AM83: 4 | AN83: 8 | CA83: Grand Total | CB83: 27 | CM83: Independent specialist college | CN83: 5 | CO83: 39 | CP83: 9 | CR83: 53 | ET83: 16-19 Free School | EV83: 1 | EW83: 2 | EX83: 2 | EZ83: 5 | GQ83: Independent specialist college | GT83: 4 | GU83: 5 | GX83: 1 | GY83: 10
A84: Table 1b | V84: Higher education institution | AC84: 2 | AD84: 2 | AF84: General further education college | AI84: 13 | AJ84: 15 | AK84: 7 | AM84: 20 | AN84: 55 | CM84: National careers service contractor | ET84: Employer Provider | EU84: 3 | EV84: 4 | EW84: 4 | EX84: 2 | EZ84: 13 | GQ84: National Careers Service Contractor
V85: Independent learning provider | X85: 2 | Y85: 31 | Z85: 13 | AA85: 7 | AC85: 19 | AD85: 72 | AF85: Higher education institution | AM85: 2 | AN85: 2 | CM85: Prison | ET85: General further education college | EU85: 2 | EV85: 15 | EW85: 27 | EX85: 5 | EZ85: 49 | GQ85: Not applicable
V86: Independent specialist college | Y86: 4 | Z86: 5 | AC86: 1 | AD86: 10 | AF86: Independent learning provider | AH86: 2 | AI86: 30 | AJ86: 11 | AK86: 6 | AM86: 15 | AN86: 64 | CM86: (blank) | ET86: Higher Education Institution | EU86: 2 | EZ86: 2 | GQ86: Prison
A87: Count of URN | B87: Column Labels | V87: National Careers Service Contractor | AF87: Independent specialist college | AI87: 4 | AJ87: 5 | AM87: 1 | AN87: 10 | CM87: Grand Total | CN87: 119 | CO87: 765 | CP87: 169 | CQ87: 18 | CR87: 1071 | ET87: Independent Learning Provider | EU87: 4 | EV87: 53 | EW87: 45 | EX87: 12 | EZ87: 114 | GQ87: (blank)
B88: FES - Full Inspection | D88: FES - Full Inspection Total | E88: FES - Monitoring Inspection | G88: FES - Monitoring Inspection Total | H88: FES - Short inspection | I88: FES - Short inspection Conversion | J88: Grand Total | V88: Not applicable | AF88: Local authority provider | AH88: 1 | AI88: 11 | AJ88: 6 | AM88: 12 | AN88: 30 | ET88: Independent Specialist College | EV88: 5 | EW88: 4 | EX88: 2 | EZ88: 11 | GQ88: Grand Total | GS88: 15 | GT88: 73 | GU88: 50 | GV88: 14 | GX88: 68 | GY88: 220
A89: Row Labels | B89: Full | C89: Reinspection | E89: Monitoring | F89: Reinspection monitoring | V89: Prison | AF89: Not for profit organisation | AI89: 3 | AJ89: 4 | AM89: 6 | AN89: 13 | ET89: Local Authority Provider | EU89: 1 | EV89: 20 | EW89: 8 | EX89: 4 | EZ89: 33
A90: 16-19 Academy | B90: 2 | D90: 2 | E90: 1 | F90: 3 | G90: 4 | J90: 6 | V90: (blank) | AF90: Sixth form college | AI90: 7 | AJ90: 4 | AM90: 3 | AN90: 14 | ET90: Not for Profit Organisation | EU90: 1 | EV90: 11 | EW90: 11 | EX90: 2 | EZ90: 25 | GQ90: Full-time provision for 14 to 16-year-olds
A91: College | B91: 40 | C91: 4 | D91: 44 | F91: 10 | G91: 10 | H91: 14 | I91: 2 | J91: 70 | V91: Grand Total | X91: 15 | Y91: 73 | Z91: 50 | AA91: 14 | AC91: 68 | AD91: 220 | AF91: Specialist designated institution | AJ91: 1 | AN91: 1 | CM91: Outcomes for learners | ET91: Sixth form college | EV91: 7 | EW91: 4 | EX91: 3 | EZ91: 14
A92: Community learning and skills provider | B92: 22 | C92: 2 | D92: 24 | F92: 5 | G92: 5 | H92: 13 | I92: 2 | J92: 44 | AF92: Specialist further education college | AM92: 1 | AN92: 1 | ET92: Specialist designated institution | EV92: 1 | EX92: 1 | EZ92: 2 | GQ92: Count of URN | GR92: Column Labels
A93: Dance and drama college | B93: 16 | D93: 16 | J93: 16 | AF93: Grand Total | AH93: 15 | AI93: 73 | AJ93: 50 | AK93: 14 | AM93: 68 | AN93: 220 | CM93: Count of URN | CN93: Column Labels | ET93: Specialist further education college | EV93: 3 | EZ93: 3 | GQ93: Row Labels | GR93: 0 | GS93: 1 | GT93: 2 | GU93: 3 | GV93: 4 | GW93: 9 | GX93: - | GY93: Grand Total
A94: Higher education institution | H94: 2 | J94: 2 | V94: 16-19 study programmes | CM94: Row Labels | CN94: 1 | CO94: 2 | CP94: 3 | CQ94: 4 | CR94: Grand Total | ET94: Grand Total | EU94: 88 | EV94: 818 | EW94: 558 | EX94: 128 | EY94: 23 | EZ94: 1615 | GQ94: 16-19 Academy | GX94: 6 | GY94: 6
A95: Independent learning provider | B95: 52 | D95: 52 | F95: 2 | G95: 2 | H95: 17 | I95: 1 | J95: 72 | CA95: Offender Learning and Skills Service | CM95: 16-19 Academy | CN95: 1 | CO95: 3 | CP95: 4 | CQ95: 2 | CR95: 10 | GQ95: College | GT95: 2 | GX95: 68 | GY95: 70
A96: Independent specialist college | B96: 9 | D96: 9 | H96: 1 | J96: 10 | V96: Count of Organisation ID | W96: Column Labels | AF96: Count of Organisation ID | AG96: Column Labels | CM96: College | CN96: 59 | CO96: 167 | CP96: 84 | CQ96: 12 | CR96: 322 | GQ96: Community learning and skills provider | GX96: 44 | GY96: 44
A97: National Careers Service Contractor | V97: Row Labels | W97: 2 | X97: 3 | Y97: 4 | Z97: - | AA97: Grand Total | AF97: Row Labels | AG97: 2 | AH97: 3 | AI97: 4 | AJ97: - | AK97: Grand Total | BX97: Adult learning programmes | CA97: Row Labels | CB97: Count of Organisation ID | CM97: Community learning and skills provider | CN97: 14 | CO97: 183 | CP97: 38 | CR97: 235 | GQ97: Dance and drama college | GX97: 16 | GY97: 16
A98: Not applicable | V98: 16-19 Academy | W98: 1 | X98: 1 | Z98: 4 | AA98: 6 | AF98: 16-19 academy converter | AG98: 1 | AH98: 1 | AK98: 2 | BX98: Apprenticeships | CA98: 0 | CB98: 1 | CM98: Dance and drama college | CN98: 12 | CO98: 3 | CP98: 1 | CR98: 16 | GQ98: Higher education institution | GX98: 2 | GY98: 2
A99: Prison | V99: College | W99: 17 | X99: 23 | Y99: 6 | Z99: 24 | AA99: 70 | AF99: 16-19 free school | AJ99: 4 | AK99: 4 | BX99: Traineeships | CA99: 2 | CB99: 5 | CM99: Higher education institution | CN99: 10 | CO99: 14 | CP99: 1 | CR99: 25 | GQ99: Independent learning provider | GX99: 72 | GY99: 72
A100: (blank) | V100: Community learning and skills provider | W100: 1 | X100: 2 | Z100: 41 | AA100: 44 | AF100: Dance and drama college | AJ100: 16 | AK100: 16 | BX100: Provision for learners with high needs | CA100: 3 | CB100: 1 | CM100: Independent learning provider | CN100: 62 | CO100: 274 | CP100: 66 | CQ100: 8 | CR100: 410 | GQ100: Independent specialist college | GX100: 10 | GY100: 10
A101: Grand Total | B101: 141 | C101: 6 | D101: 147 | E101: 1 | F101: 20 | G101: 21 | H101: 47 | I101: 5 | J101: 220 | V101: Dance and drama college | Z101: 16 | AA101: 16 | AF101: Employer provider | AJ101: 8 | AK101: 8 | BX101: Full-time provision for 14 to 16-year-olds | CA101: NULL | CB101: 20 | CM101: Independent specialist college | CN101: 9 | CO101: 36 | CP101: 8 | CR101: 53 | GQ101: National Careers Service Contractor
V102: Higher education institution | Z102: 2 | AA102: 2 | AF102: General further education college | AG102: 10 | AH102: 19 | AI102: 6 | AJ102: 20 | AK102: 55 | CA102: Grand Total | CB102: 27 | CM102: National careers service contractor | GQ102: Not applicable
V103: Independent learning provider | W103: 7 | X103: 6 | Y103: 3 | Z103: 56 | AA103: 72 | AF103: Higher education institution | AJ103: 2 | AK103: 2 | CM103: Prison | GQ103: Prison
V104: Independent specialist college | Z104: 10 | AA104: 10 | AF104: Independent learning provider | AG104: 7 | AH104: 6 | AI104: 3 | AJ104: 48 | AK104: 64 | CM104: (blank) | GQ104: (blank)
V105: National Careers Service Contractor | AF105: Independent specialist college | AJ105: 10 | AK105: 10 | CM105: Grand Total | CN105: 167 | CO105: 680 | CP105: 202 | CQ105: 22 | CR105: 1071 | GQ105: Grand Total | GT105: 2 | GX105: 218 | GY105: 220
V106: Not applicable | AF106: Local authority provider | AH106: 1 | AJ106: 29 | AK106: 30
V107: Prison | AF107: Not for profit organisation | AG107: 1 | AH107: 1 | AJ107: 11 | AK107: 13 | GQ107: 16-19 study programmes
V108: (blank) | AF108: Sixth form college | AG108: 7 | AH108: 4 | AJ108: 3 | AK108: 14
V109: Grand Total | W109: 26 | X109: 32 | Y109: 9 | Z109: 153 | AA109: 220 | AF109: Specialist designated institution | AJ109: 1 | AK109: 1 | CM109: Full-time provision for 14 to 16-year-olds | GQ109: Count of URN | GR109: Column Labels
AF110: Specialist further education college | AJ110: 1 | AK110: 1 | GQ110: Row Labels | GR110: 0 | GS110: 1 | GT110: 2 | GU110: 3 | GV110: 4 | GW110: 9 | GX110: - | GY110: Grand Total
AF111: Grand Total | AG111: 26 | AH111: 32 | AI111: 9 | AJ111: 153 | AK111: 220 | CM111: Count of URN | CN111: Column Labels | GQ111: 16-19 Academy | GT111: 1 | GU111: 1 | GX111: 4 | GY111: 6
V112: Adult learning programmes | CM112: Row Labels | CN112: 1 | CO112: 2 | CP112: 3 | CQ112: 4 | CR112: Grand Total | GQ112: College | GT112: 17 | GU112: 23 | GV112: 6 | GX112: 24 | GY112: 70
CA113: National Careers Service | CM113: 16-19 Academy | CN113: 1 | CR113: 1 | GQ113: Community learning and skills provider | GT113: 1 | GU113: 2 | GX113: 41 | GY113: 44
V114: Count of Organisation ID | W114: Column Labels | AF114: Count of Organisation ID | AG114: Column Labels | CM114: College | CN114: 1 | CO114: 7 | CR114: 8 | GQ114: Dance and drama college | GX114: 16 | GY114: 16
V115: Row Labels | W115: 1 | X115: 2 | Y115: 3 | Z115: 4 | AA115: - | AB115: Grand Total | AF115: Row Labels | AG115: 1 | AH115: 2 | AI115: 3 | AJ115: 4 | AK115: - | AL115: Grand Total | CA115: Row Labels | CB115: Count of Organisation ID | CM115: Community learning and skills provider | GQ115: Higher education institution | GX115: 2 | GY115: 2
V116: 16-19 Academy | AA116: 6 | AB116: 6 | AF116: 16-19 academy converter | AK116: 2 | AL116: 2 | CA116: 0 | CB116: 1 | CM116: Dance and drama college | GQ116: Independent learning provider | GT116: 7 | GU116: 6 | GV116: 3 | GX116: 56 | GY116: 72
V117: College | W117: 1 | X117: 19 | Y117: 12 | Z117: 2 | AA117: 36 | AB117: 70 | AF117: 16-19 free school | AK117: 4 | AL117: 4 | CA117: 2 | CB117: 4 | CM117: Higher education institution | GQ117: Independent specialist college | GX117: 10 | GY117: 10
V118: Community learning and skills provider | W118: 1 | X118: 12 | Y118: 7 | Z118: 1 | AA118: 23 | AB118: 44 | AF118: Dance and drama college | AK118: 16 | AL118: 16 | CA118: 3 | CB118: 2 | CM118: Independent learning provider | GQ118: National Careers Service Contractor
V119: Dance and drama college | AA119: 16 | AB119: 16 | AF119: Employer provider | AK119: 8 | AL119: 8 | CA119: NULL | CB119: 20 | CM119: Independent specialist college | GQ119: Not applicable
V120: Higher education institution | AA120: 2 | AB120: 2 | AF120: General further education college | AG120: 1 | AH120: 19 | AI120: 12 | AJ120: 2 | AK120: 21 | AL120: 55 | CA120: Grand Total | CB120: 27 | CM120: National careers service contractor | GQ120: Prison
V121: Independent learning provider | X121: 9 | Y121: 5 | Z121: 1 | AA121: 57 | AB121: 72 | AF121: Higher education institution | AK121: 2 | AL121: 2 | CM121: Prison | GQ121: (blank)
V122: Independent specialist college | AA122: 10 | AB122: 10 | AF122: Independent learning provider | AH122: 9 | AI122: 5 | AJ122: 1 | AK122: 49 | AL122: 64 | CM122: (blank) | GQ122: Grand Total | GT122: 26 | GU122: 32 | GV122: 9 | GX122: 153 | GY122: 220
V123: National Careers Service Contractor | AF123: Independent specialist college | AK123: 10 | AL123: 10 | CM123: Grand Total | CN123: 2 | CO123: 7 | CR123: 9
V124: Not applicable | AF124: Local authority provider | AG124: 1 | AH124: 10 | AI124: 5 | AJ124: 1 | AK124: 13 | AL124: 30 | GQ124: Adult learning programmes
V125: Prison | AF125: Not for profit organisation | AH125: 2 | AI125: 1 | AK125: 10 | AL125: 13
V126: (blank) | AF126: Sixth form college | AK126: 14 | AL126: 14 | GQ126: Count of URN | GR126: Column Labels
V127: Grand Total | W127: 2 | X127: 40 | Y127: 24 | Z127: 4 | AA127: 150 | AB127: 220 | AF127: Specialist designated institution | AI127: 1 | AL127: 1 | CM127: 16-19 study programmes | GQ127: Row Labels | GR127: 0 | GS127: 1 | GT127: 2 | GU127: 3 | GV127: 4 | GW127: 9 | GX127: - | GY127: Grand Total
AF128: Specialist further education college | AK128: 1 | AL128: 1 | GQ128: 16-19 Academy | GX128: 6 | GY128: 6
AF129: Grand Total | AG129: 2 | AH129: 40 | AI129: 24 | AJ129: 4 | AK129: 150 | AL129: 220 | CM129: Count of URN | CN129: Column Labels | GQ129: College | GS129: 1 | GT129: 19 | GU129: 12 | GV129: 2 | GX129: 36 | GY129: 70
V130: Apprenticeships | CM130: Row Labels | CN130: 1 | CO130: 2 | CP130: 3 | CQ130: 4 | CR130: Grand Total | GQ130: Community learning and skills provider | GS130: 1 | GT130: 12 | GU130: 7 | GV130: 1 | GX130: 23 | GY130: 44
CM131: 16-19 Academy | CN131: 1 | CO131: 3 | CP131: 4 | CQ131: 2 | CR131: 10 | GQ131: Dance and drama college | GX131: 16 | GY131: 16
V132: Count of Organisation ID | W132: Column Labels | AF132: Count of Organisation ID | AG132: Column Labels | CM132: College | CN132: 9 | CO132: 102 | CP132: 50 | CQ132: 10 | CR132: 171 | GQ132: Higher education institution | GX132: 2 | GY132: 2
V133: Row Labels | W133: 1 | X133: 2 | Y133: 3 | Z133: 4 | AA133: - | AB133: Grand Total | AF133: Row Labels | AG133: 1 | AH133: 2 | AI133: 3 | AJ133: 4 | AK133: - | AL133: Grand Total | CM133: Community learning and skills provider | CN133: 2 | CO133: 28 | CP133: 10 | CQ133: 1 | CR133: 41 | GQ133: Independent learning provider | GT133: 9 | GU133: 5 | GV133: 1 | GX133: 57 | GY133: 72
V134: 16-19 Academy | AA134: 6 | AB134: 6 | AF134: 16-19 academy converter | AK134: 2 | AL134: 2 | CM134: Dance and drama college | GQ134: Independent specialist college | GX134: 10 | GY134: 10
V135: College | W135: 1 | X135: 20 | Y135: 9 | Z135: 4 | AA135: 36 | AB135: 70 | AF135: 16-19 free school | AK135: 4 | AL135: 4 | CM135: Higher education institution | CN135: 4 | CO135: 6 | CR135: 10 | GQ135: National Careers Service Contractor
V136: Community learning and skills provider | X136: 6 | Y136: 2 | AA136: 36 | AB136: 44 | AF136: Dance and drama college | AK136: 16 | AL136: 16 | CM136: Independent learning provider | CN136: 2 | CO136: 44 | CP136: 18 | CQ136: 3 | CR136: 67 | GQ136: Not applicable
